{"text_format":"1","workbook":"xlsx","n_sheets":1,"sheets":["conceptos"],"not_rendered":{"charts":0,"images":2,"macros":1,"external_links":0,"defined_names":1,"comments":0,"pivot_tables":0},"unopened":[],"bounds":{"document_bytes":16777216,"sheet_cells":100000,"rows_first":2000,"rows_last":500,"rows_between":2000,"halvings":0,"cell_chars":16384,"cell_head_chars":4096},"cells_cut":0,"cells_raw":0,"read":"whole","date_system":"1900"}

{"sheet":"conceptos","index":0,"n_rows":427,"n_cols":8,"rows_kept":427,"cut":false,"hidden":false,"merged":[[424,0,424,4],[425,0,426,4],[13,0,13,6],[0,2,0,5],[9,2,9,5],[1,2,3,5],[4,2,4,3],[6,2,6,3],[7,2,7,3],[4,4,4,5],[5,4,5,5],[6,4,6,5],[7,4,7,5],[10,2,10,5],[11,2,11,5],[5,1,8,1]]}
[null,"GOBIERNO DEL ESTADO DE JALISCO","LICITACIÓN PÚBLICA ESTATAL"]
[null,"INSTITUTO DE LA INFRAESTRUCTURA FÍSICA EDUCATIVA DEL","INFEJAL-E-REMBAS20-B-CONA-06094-LP-0235-2020"]
[null,"ESTADO DE JALISCO"]
[]
[null,"DESCRIPCIÓN GENERAL DE LOS TRABAJOS:","FECHA DE INICIO:"]
[null,null,null,"FECHA DE TERMINACIÓN:"]
[null,null,"PLAZO DE EJECUCIÓN:"]
[null,null,"FECHA:"]
[]
[null,"RAZÓN SOCIAL DEL LICITANTE:","NOMBRE, CARGO Y FIRMA DEL LICITANTE:",null,null,null,"DOCUMENTO"]
[]
[]
[]
["PRESUPUESTO DE OBRA"]
[]
["CLAVE","DESCRIPCIÓN","UNIDAD","CANTIDAD","PRECIO UNITARIO ($)","PRECIO UNITARIO ($) CON LETRA","IMPORTE ($) M.N."]
["TRABAJO : BAS-CONA-06094","CONSTRUCCIÓN DE DOS AULAS DIDÁCTICAS, NÚCLEO DE SERVICIOS SANITARIOS, DIRECCIÓN, BODEGA, PATIO CÍVICO, ESTRUCTURA CON LONARIA PARA CUBIERTA DE PATIO CÍVICO, MURO DE CONTENCIÓN, OBRAS DE ACCESIBILIDAD, CASETA PARA HIDRONEUMÁTICO E INSTALACIONES EN OBRA EXTERIOR EN LA ESCUELA PRIMARIA BENITO JUÁREZ CCT 14EPR0086V, UBICADA EN LA CABECERA MUNICIPAL DE ATENGUILLO, JALISCO.",null,null,null,null,{"$f":"TEXT(SUM(G18 + G23 + G150 + G180 + G213 + G282 + G295 + G318 + G340 + G344 + G351), \"$ #,##0.00 ;\")","v":"$ 0.00 "}]
["A","EDIFICIO A",null,null,null,null,{"$f":"TEXT((G19), \"$ #,##0.00 ;\")","v":"$ 0.00 "}]
["A.01(140)","DEMOLICIONES, DESMONTAJES Y MECANICA DE SUELOS    ",null,null,null,null,{"$f":"TEXT(SUM(G20:G22), \"$ #,##0.00 ;\")","v":"$ 0.00 "}]
[140020,"DEMOLICION DE CONSTRUCCION EXISTENTE EN ENDIFICIOS DE UN NIVEL Y/O PLANTA BAJA, INCLUYE: MUROS, CADENAS, CASTILLOS, PISOS,  FIRMES, CIMENTACIONES HASTA 20 CM POR DEBAJO DEL NIVEL DEL TERRENO NATURAL, CUBIERTA A BASE DE BOVEDA DE CUÑA,  DESMANTELAMIENTO DE PERFILES METALICOS ESTRUCTURALES (CON RECUPERACION DE ESTRUCTURA),  RECUBRIMIENTOS, DESMANTELAMIENTO DE CANCELERIA  Y/O HERRERIA. (VENTANAS CON VIDRIOS MAMPARAS METALICAS Y PUERTAS, . DESCINSTALACION DE SALIDAS ELECTRICAS (LAMPARAS, APAGADORES, CONTACTOS, CENTROS DE CARGA TUBERIA CONDUIT. ETC.)  DESMONTAJE DE MUEBLES SANITARIOS E INSTALACION HIDROSANITARIA, ACARREO DE MATERIAL RECUPERABLE A LUGAR INDICADO POR SUPERVISION, HERRAMIENTAS, EQUIPO, MAQUINARIA, LIMPIEZA DEL AREA DE TRABAJO, MANO DE OBRA Y ACARREO DE ESCOMBRO DENTRO Y FUERA DE LA OBRA HASTA EL LUGAR PERMITIDO LAS AUTORIDADES CORRESPONDIENTES, TODAS LA DEMOLICIONES Y DESMONTAJES SE CONCIDERAN  MEDIDO POR M2 DE PROYECCION DE CUBIERTA DEL EDIFICIO.","M2 ","199.6800",0,"CERO PESOS 00/100 M.N.",0,330703]
[140602,"DEMOLICION DE FIRME Y/O PISO DE CONCRETO DE 10 CM DE ESPESOR PROMEDIO, EN SECCIONES OBLIGADAS, INC. CORTE CON DISCO PARA DELIMITAR AREA DE DEMOLICION; MANO DE OBRA, HERRAMIENTA, EQUIPO,  CARGA Y ACARREO INTERIOR Y FUERA DE LA OBRA DEL MATERIAL PRODUCTO DE LA DEMOLICION.","M2 ","18.0000",0,"CERO PESOS 00/100 M.N.",0,330704]
[140621,"DEMOLICION DE CIMIENTO DE MAMPOSTERIA DE PIEDRA BRAZA ASENTADA CON MORTERO CEM-ARE. INCLUYE: HERRAMIENTA, EQUIPO NECESARIO, MATERIAL DE CONSUMO, MANO DE OBRA, RETIRO Y ACARREO DEL MATERIAL DENTRO Y FUERA DE LA OBRA.\n","M3 ","12.6200",0,"CERO PESOS 00/100 M.N.",0,330705]
["F","EDIFICIO F",null,null,null,null,{"$f":"TEXT(SUM(G24 + G31 + G48 + G57 + G71 + G73 + G78 + G89 + G92 + G95 + G101 + G107 + G116 + G129 + G133 + G137), \"$ #,##0.00 ;\")","v":"$ 0.00 "}]
["F.01(150)","TRABAJOS PRELIMINARES                             ",null,null,null,null,{"$f":"TEXT(SUM(G25:G30), \"$ #,##0.00 ;\")","v":"$ 0.00 "}]
[150020,"LIMPIEZA DE TERRENO RETIRANDO BASURA Y DESHIERBE FUERA DE LA OBRA. INCLUYE: HERRAMIENTAS, MANO DE OBRA, RECOLECCION, JUNTA Y RETIRO. (PROYECCION DE CUBIERTA).","M2 ","276.7000",0,"CERO PESOS 00/100 M.N.",0,330706]
[150110,"TRAZO Y NIVELACION DE EDIFICIOS ESTABLECIENDO REFERENCIAS DEFINITIVAS, CON TRANSITO Y NIVEL (EQUIPO TOPOGRAFICO), INCLUYE: PERSONAL TECNICO CALIFICADO, ESTACAS, MOJONERAS, LOCALIZACION DE ENTRE EJES, BANCOS DE NIVEL, MATERIALES PARA SEÑALAMIENTO, EQUIPO, HERRAMIENTA Y MANO DE OBRA.","M2 ","276.7000",0,"CERO PESOS 00/100 M.N.",0,330707]
[150210,"DESPALME DE TERRENO NATURAL POR CUALQUIER MEDIO, CON ESPESOR PROMEDIO DE 20 CM. INCLUYE: CARGA Y ACARREO DEL PRODUCTO FUERA DE LA OBRA, MANO DE OBRA, HERRAMIENTA Y EQUIPO. (PROYECCION DE CUBIERTA).","M2 ","276.7000",0,"CERO PESOS 00/100 M.N.",0,330708]
[152202,"EXCAVACION EN CEPAS POR CUALQUIER MEDIO, MATERIAL TIPO \"A\", DE 0 A 2.00 M. DE PROFUNDIDAD, EN SECO, INCLUYE: AFINE DE TALUDES Y FONDO, TRAPALEOS,  MOVIMIENTOS Y ACARREOS DENTRO DE LA OBRA, HERRAMIENTAS Y MANO DE OBRA, MEDIDO EN BANCO.","M3 ","77.2000",0,"CERO PESOS 00/100 M.N.",0,330709]
[152402,"EXCAVACION A CIELO ABIERTO POR CUALQUIER MEDIO, MATERIAL TIPO \"A\", DE 0 A 2.00 M. DE PROFUNDIDAD, EN SECO, INCLUYE: AFINE DE TALUDES Y FONDO, TRAPALEOS,  MOVIMIENTOS Y ACARREOS DENTRO DE LA OBRA, HERRAMIENTAS Y MANO DE OBRA, MEDIDO EN BANCO.","M3 ","83.0000",0,"CERO PESOS 00/100 M.N.",0,330710]
[156002,"CARGA POR CUALQUIER MEDIO Y ACARREO EN CAMION DE MATERIAL DE DESPERDICIO PRODUCTO DE LAS EXCAVACIONES FUERA DE LA OBRA, A LUGAR PERMITIDO POR LAS AUTORIDADES CORRESPONDIENTES, MEDIDO EN BANCO. INCLUYE CARGA,  ACARREO Y DESCARGA A TIRO LIBRE, HERRAMIENTA, EQUIPO, MATERIALES DE CONSUMO Y MANO DE OBRA.","M3 ","160.2000",0,"CERO PESOS 00/100 M.N.",0,330711]
["F.02(160)","CIMENTACION                                       ",null,null,null,null,{"$f":"TEXT(SUM(G32:G47), \"$ #,##0.00 ;\")","v":"$ 0.00 "}]
[160222,"PLANTILLA DE CONCRETO F'C=100 KG/CM2, TMA=3/4\", DE 5.00 CM DE ESPESOR PROMEDIO. INCLUYE: MATERIALES, HERRAMIENTAS, AFINE, NIVELACION, LIMPIEZA, MANO DE OBRA Y ACARREO DE MATERIALES AL SITIO DE SU UTILIZACION.","M2 ","82.6000",0,"CERO PESOS 00/100 M.N.",0,330712]
[166299,"SUMINISTRO Y FABRICACION DE CONTRATRABE EN CIMENTACION DE  CONCRETO DE F´C=250 KG/CM2, TMA 3/4\" R.N CON DIMENSIONDE DE 0.21 X 0.35 M. ARMADA CON 4 VAR. # 4 + 2 VAR. DEL # 3 Y ESTRIBOS DEL #2@15 +  GRAPAS DEL #2@25 CM. PROMEDIO, INCLUYE: ARMADO, COLADO, CURADO, VIBRADO, CIMBRA COMUN, DESCIMBRA, DESPERDICIOS, TRASLAPES, CRUCES DE VARILLAS CON ELEMENTOS TRANSVERSALES, OCHAVOS EN ARISTAS, MANO DE OBRA, HERRAMIENTA Y ACARREO DE MATERIALES AL SITIO DE SU UTILIZACION, A CUALQUIER ALTURA.","ML ","21.4000",0,"CERO PESOS 00/100 M.N.",0,330713]
[166301,"SUMINISTRO Y FABRICACION DE CONTRATRABE EN CIMENTACION DE  CONCRETO DE F´C=250 KG/CM2, TMA 3/4\" R.N CON DIMENSIONDE DE 0.14 X 0.35 M. ARMADA CON 4 VARILLAS # 3 Y E.N° 2 @ 15 CM. PROMEDIO, INCLUYE: CIMBRA COMUN, DESCIMBRADO, CURADO, VIBRADO, CRUCES DE ACERO CON ELEMENTOS TRANSVERSALES,  PRUEBAS, MATERIALES MENORES Y TODO LO NECESARIO PARA SU CORRECTA EJECUCION.","ML ","39.0000",0,"CERO PESOS 00/100 M.N.",0,330714]
[166303,"SUMINISTRO Y FABRICACION DE CONTRATRABE EN CIMENTACION DE CONCRETO DE F´C=250 KG/CM2, TMA 3/4\" R.N CON DIMENSIONDE DE 0.14 X 0.35 M. ARMADA CON 4 VARILLAS # 4 Y E.N° 2 @ 15 CM. PROMEDIO, INCLUYE: ARMADO, COLADO, CURADO, VIBRADO, PRUEBAS DEL CONCRETO, CIMBRA COMUN, DESCIMBRA, DESPERDICIOS, TRASLAPES, CRUCES DE VARILLAS CON ELEMENTOS TRANSVERSALES, ANDAMIOS, MANO DE OBRA, HERRAMIENTA Y ACARREO DE MATERIALES AL SITIO DE SU UTILIZACION, A CUALQUIER ALTURA.","ML ","31.2000",0,"CERO PESOS 00/100 M.N.",0,330715]
[167210,"CADENA PARA REMATE DE CIMENTACION, DE CONCRETO F'C=250 KG/CM2, T.M.A.=3/4\", CON SECCION DE 14 X 20 CMS., ARMADA CON 4 VARILLAS DEL # 3 Y ESTRIBOS DEL NO. 2 @ 20 CMS., INCLUYE: ARMADO, COLADO, CURADO, VIBRADO, CIMBRA COMUN, DESCIMBRA, DESPERDICIOS, MANO DE OBRA, HERRAMIENTA, MATERIALES Y ACARREO DE MATERIALES AL SITIO DE SU UTILIZACION.","ML ","18.5200",0,"CERO PESOS 00/100 M.N.",0,330716]
[170012,"CIMBRA  ACABADO COMUN, EN CIMENTACION, INCLUYE: DESPERDICIO, HABILITADO, CIMBRADO Y DESCIMBRA, NIVELACION, PLOMEO MATERIAL, MANO DE OBRA , LIMPIEZA, HERRAMIENTA, ACARREO DEL MATRIAL DENTRO Y FUERA DE LA OBRA.","M2 ","32.6900",0,"CERO PESOS 00/100 M.N.",0,330717]
[173003,"SUMINISTRO, HABILITADO, ARMADO Y COLOCACION DE ACERO DE REFUERZO FY=4,200 KG/CM2 (G.E.), DE 3/8\" ( #3 ), EN CIMENTACION, INCLUYE: MATERIALES, HABILITADO,  DOBLECES,  SILLETAS, ALAMBRE, GANCHOS, ESCUADRAS, TRASLAPES, DESPERDICIOS HERRAMIENTAS, MANO DE OBRA Y ACARREO DE MATERIALES AL SITIO DE SU COLOCACION.","KG ","270.0500",0,"CERO PESOS 00/100 M.N.",0,330718]
[173004,"SUMINISTRO, HABILITADO, ARMADO Y COLOCACION DE ACERO DE REFUERZO FY=4,200 KG/CM2 (G.E.), DE 1/2\" ( #4 ), EN CIMENTACION, INCLUYE: MATERIALES, HABILITADO,  DOBLECES,  SILLETAS, ALAMBRE, GANCHOS, ESCUADRAS, TRASLAPES, DESPERDICIOS HERRAMIENTAS, MANO DE OBRA Y ACARREO DE MATERIALES AL SITIO DE SU COLOCACION.","KG ","107.4000",0,"CERO PESOS 00/100 M.N.",0,330719]
[176008,"SUMINISTRO Y COLOCACION DE CONCRETO HECHO EN OBRA F'C=250 KG/CM2, TMA= 3/4\", R.N. EN CIMENTACION. INCLUYE: TENDIDO, RASTREADO, VIBRADO, NIVELACION, HERRAMIENTAS, LIMPIEZA, PRUEBAS,  CURADO CON CURACRETO ROJO,  DESPERDICIO Y MANO DE OBRA.","M3 ","8.0500",0,"CERO PESOS 00/100 M.N.",0,330720]
[180054,"RELLENO EN CEPAS POR CUALQUIER MEDIO, CON MATERIAL DE BANCO, (ARENA LIMOSA) COMPACTADO AL 95% PROCTOR, EN CAPAS DE 15 CM, MEDIDO COMPACTO. INCLUYE:  SUMINISTRO DE AGUA PARA LOGRAR HUMEDAD OPTIMA, DESPERDICIOS, TENDIDO, TRASPALEOS,  EQUIPO, PRUEBAS DE COMPACTACION, AFINE, NIVELACION, HERRAMIENTAS, MANO DE OBRA Y  ACARREO HASTA EL SITIO DE SU COLOCACION.  (VOLUMEN MEDIDO COMPACTADO).","M3 ","40.0000",0,"CERO PESOS 00/100 M.N.",0,330721]
[180103,"RELLENO COMPACTADO AL 95% PROCTOR, CON MATERIAL DE BANCO, EN CAPAS DE 15 CM DE ESPESOR, AGREGANDO AGUA PARA LOGRAR SU HUMEDAD OPTIMA, POR CUALQUIER MEDIO, INCLUYE: SUMINISTRO DE AGUA PARA LOGRAR HUMEDAD OPTIMA, TENDIDO, TRASPALEOS,  DESPERDICIOS, EQUIPO, PRUEBAS DE COMPACTACION, AFINE, NIVELACION, HERRAMIENTAS, MANO DE OBRA Y  ACARREO HASTA EL SITIO DE SU COLOCACION.  (VOLUMEN MEDIDO COMPACTADO).","M3 ","210.3000",0,"CERO PESOS 00/100 M.N.",0,330722]
[180407,"RELLENO CON MATERIAL PRODUCTO DE LA EXCAVACION AGREGANDO CALHIDRA EN PROPORCION 25 KG/M3, COMPACTADO AL 95% PROCTOR, INCLUYE: ESCARIFICADO DEL TERRENO, HUMEDAD OPTIMA, MEZCLADO, TENDIDO, COMPACTACION POR CUALQUIER MEDIO EN CAPAS DE 15 CMS., NIVELADO, PRUEBAS DE COMPACTACION, TRASPALEOS, HERRAMIENTAS, MANO DE OBRA Y LOS ACARREOS NECESARIOS. MEDIDO COMPACTO.","M3 ","49.6000",0,"CERO PESOS 00/100 M.N.",0,330723]
[190022,"MURETE DE ENRRASE EN CIMENTACION CON BLOCK SOLIDO DE JALCRETO 11 X 14 X 28 CM DE SECCION, A SOGA, ASENTADO CON MORTERO CEMENTO-ARENA EN PROP. 1:3, ACABADO COMUN, INCLUYE:TRAZO, NIVELACION, PLOMEO, HERRAMIENTAS, DESPERDICIOS, MANO DE OBRA, LIMPIEZA Y ACARREO DE MATERIALES AL SITIO DE SU UTILIZACION.","M2 ","53.6000",0,"CERO PESOS 00/100 M.N.",0,330724]
[190042,"MURETE DE ENRRASE EN CIMENTACION CON BLOCK SOLIDO DE JALCRETO 11 X 14 X 28 CM DE SECCION, A TEZON, ASENTADO CON MORTERO CEMENTO-ARENA EN PROP. 1:3, ACABADO COMUN, INCLUYE:TRAZO, NIVELACION, PLOMEO, HERRAMIENTAS, DESPERDICIOS, MANO DE OBRA, LIMPIEZA Y ACARREO DE MATERIALES AL SITIO DE SU UTILIZACION.","M2 ","44.0000",0,"CERO PESOS 00/100 M.N.",0,330725]
[192514,"ANCLAJE DE CASTILLO EN CIMENTACION 14 X 20 CMS., CONCRETO F'C=250 KG/CM2, ARMADO CON 4 VARILLAS DEL #3 (3/8\") Y ESTRIBOS DEL #2 A CADA 15 CMS., INCLUYE: ARMADO, COLADO, CURADO, VIBRADO, CIMBRA COMUN, DESCIMBRA, DESPERDICIOS, TRASLAPES, CRUCES DE VARILLAS CON ELEMENTOS TRANSVERSALES, ANDAMIOS, MANO DE OBRA, HERRAMIENTA Y ACARREO DE MATERIALES AL SITIO DE SU UTILIZACION, A CUALQUIER ALTURA.","ML ","13.4000",0,"CERO PESOS 00/100 M.N.",0,330726]
[192518,"ANCLAJE DE CASTILLO EN CIMENTACION 14 X 30 CMS., CONCRETO F'C=250 KG/CM2, ARMADO CON 4 VARILLAS DEL #3 (3/8\") Y ESTRIBOS DEL #2 A CADA 15 CMS., INCLUYE: ARMADO, COLADO, CURADO, VIBRADO, CIMBRA COMUN, DESCIMBRA, DESPERDICIOS, TRASLAPES, CRUCES DE VARILLAS CON ELEMENTOS TRANSVERSALES, ANDAMIOS, MANO DE OBRA, HERRAMIENTA Y ACARREO DE MATERIALES AL SITIO DE SU UTILIZACION, A CUALQUIER ALTURA.","ML ","34.0000",0,"CERO PESOS 00/100 M.N.",0,330727]
["F.03(200)","ESTRUCTURA                                        ",null,null,null,null,{"$f":"TEXT(SUM(G49:G56), \"$ #,##0.00 ;\")","v":"$ 0.00 "}]
[210222,"CIMBRA DE MADERA, ACABADO APARENTE, EN TRABES, INCLUYE: HABILITADO, CHAFLANES, CIMBRA, DESCIMBRA, DESPERDICIOS,  HERRAMIENTAS, PUNTALES, ANDAMIOS, LIMPIEZAS, MANO DE OBRA  Y ACARREO DE MATERIALES AL SITIO DE SU UTILIZACION, A CUALQUIER NIVEL.","M2 ","65.2800",0,"CERO PESOS 00/100 M.N.",0,330728]
[210322,"CIMBRA DE MADERA, ACABADO APARENTE, EN LOSAS, INCLUYE: HABILITADO, CHAFLANES, CIMBRA, DESCIMBRA, GOTEROS, HERRAMIENTAS, LIMPIEZAS, MANO DE OBRA  Y ACARREO DE MATERIALES AL SITIO DE SU UTILIZACION, A CUALQUIER NIVEL.","M2 ","256.2000",0,"CERO PESOS 00/100 M.N.",0,330729]
[213003,"SUMINISTRO, HABILITADO, ARMADO Y COLOCACION DE ACERO DE REFUERZO FY=4,200 KG/CM2 (G.E.), DE 3/8\" (# 3 ), EN ESTRUCTURA, INCLUYE: MATERIALES, HABILITADO,  DOBLECES,  SILLETAS, ALAMBRE, GANCHOS, ESCUADRAS, TRASLAPES, DESPERDICIOS HERRAMIENTAS, MANO DE OBRA Y ACARREO DE MATERIALES AL SITIO DE SU COLOCACION.","KG ","2,413.8000",0,"CERO PESOS 00/100 M.N.",0,330730]
[213004,"SUMINISTRO, HABILITADO, ARMADO Y COLOCACION DE ACERO DE REFUERZO FY=4,200 KG/CM2 (G.E.), DE 1/2\" (# 4 ), EN ESTRUCTURA, INCLUYE: MATERIALES, HABILITADO,  DOBLECES,  SILLETAS, ALAMBRE, GANCHOS, ESCUADRAS, TRASLAPES, DESPERDICIOS HERRAMIENTAS, MANO DE OBRA Y ACARREO DE MATERIALES AL SITIO DE SU COLOCACION.","KG ","428.2000",0,"CERO PESOS 00/100 M.N.",0,330731]
[213005,"SUMINISTRO, HABILITADO, ARMADO Y COLOCACION DE ACERO DE REFUERZO FY=4,200 KG/CM2 (G.E.), DE 5/8\" (# 5 ), EN ESTRUCTURA, INCLUYE: MATERIALES, HABILITADO,  DOBLECES,  SILLETAS, ALAMBRE, GANCHOS, ESCUADRAS, TRASLAPES, DESPERDICIOS HERRAMIENTAS, MANO DE OBRA Y ACARREO DE MATERIALES AL SITIO DE SU COLOCACION.","KG ","119.6500",0,"CERO PESOS 00/100 M.N.",0,330732]
[216932,"SUMINISTRO Y COLOCACION DE CONCRETO PREMEZCLADO BOMB, F'C=250 KG/CM2, T.M.A.= 3/4, R.N., EN TRABES Y FALDONES, INCLUYE:MATERIALES, FLETES, MANIOBRAS, BOMBEO, CURADO CON CURACRETO ROJO, VIBRADO, AFINE Y ACABADO REGLEADO,  DESPERDICIO, PRUEBAS DE RESISTENCIA Y MANO DE OBRA, A CUALQUIER NIVEL.","M3 ","5.8800",0,"CERO PESOS 00/100 M.N.",0,330733]
[216942,"SUMINISTRO Y COLOCACION DE CONCRETO PREMEZCLADO BOMB, F'C=250 KG/CM2, T.M.A.= 3/4, R.N., EN LOSAS, INCLUYE: MATERIALES, FLETES, MANIOBRAS, BOMBEO, CURADO CON CURACRETO ROJO, VIBRADO, AFINE Y ACABADO REGLEADO,  DESPERDICIO, PRUEBAS DE RESISTENCIA Y MANO DE OBRA, A CUALQUIER NIVEL.","M3 ","26.6700",0,"CERO PESOS 00/100 M.N.",0,330734]
[322512,"ACABADO PULIDO Y/O APALILLADO FINO POR CUALQUIER MEDIO DE LOSA Y/O ELEMENTOS DE CONCRETO (GRADAS, PISOS, AZOTEAS Y/O ENTREPISOS DE CONCRETO), TERMINADO EN FORMA INTEGRAL, (SIN UTILIZAR PASTA),  INCLUYE: DESPERDICIOS, ACARREOS, REGLEADO, REMATES, JUNTAS FRIAS CON VOLTEADOR, HERRAMIENTAS Y MANO DE OBRA.","M2 ","266.2800",0,"CERO PESOS 00/100 M.N.",0,330735]
["F.04(310)","MUROS, CADENAS, CASTILLOS Y REPIZONES.            ",null,null,null,null,{"$f":"TEXT(SUM(G58:G70), \"$ #,##0.00 ;\")","v":"$ 0.00 "}]
[310170,"DALA DE CONCRETO F'C=250 KG/CM2, T.M.A.=3/4\", CON SECCION DE 14 X 15 CMS., ARMADA CON 4 VARILLAS DEL # 3 Y ESTRIBOS DEL NO. 2 @ 30 CMS., INCLUYE: ARMADO, COLADO, CURADO, VIBRADO, CIMBRA COMUN, DESCIMBRA, TRASLAPES, CRUCES DE VARILLAS CON ELEMENTOS TRANSVERSALES, DESPERDICIOS, MANO DE OBRA, HERRAMIENTA Y ACARREO DE MATERIALES AL SITIO DE SU UTILIZACION, A CUALQUIER ALTURA.","ML ","27.4000",0,"CERO PESOS 00/100 M.N.",0,330736]
[310172,"DALA DE CONCRETO F'C=250 KG/CM2, T.M.A.=3/4\", CON SECCION DE 14 X 15 CMS., ARMADA CON 4 VARILLAS DEL # 3 Y ESTRIBOS DEL NO. 2 @ 20 CMS., INCLUYE: ARMADO, COLADO, CURADO, VIBRADO, CIMBRA COMUN, DESCIMBRA, TRASLAPES, CRUCES DE VARILLAS CON ELEMENTOS TRANSVERSALES, DESPERDICIOS, MANO DE OBRA, HERRAMIENTA Y ACARREO DE MATERIALES AL SITIO DE SU UTILIZACION, A CUALQUIER ALTURA.","ML ","54.7200",0,"CERO PESOS 00/100 M.N.",0,330737]
[310178,"DALA DE CONCRETO F'C=250 KG/CM2, T.M.A.=3/4\", CON SECCION DE 14 X 20 CMS., ARMADA CON 4 VARILLAS DEL # 3 Y ESTRIBOS DEL NO. 2 @ 15 CMS., INCLUYE: ARMADO, COLADO, CURADO, VIBRADO, CIMBRA COMUN, DESCIMBRA, TRASLAPES, CRUCES DE VARILLAS CON ELEMENTOS TRANSVERSALES, DESPERDICIOS, MANO DE OBRA, HERRAMIENTA Y ACARREO DE MATERIALES AL SITIO DE SU UTILIZACION, A CUALQUIER ALTURA.","ML ","52.9000",0,"CERO PESOS 00/100 M.N.",0,330738]
[310220,"DALA DE CONCRETO F'C=250 KG/CM2, T.M.A.=3/4\", CON SECCION DE 14 X 20 CMS., ARMADA CON 4 VARILLAS DEL # 4 Y ESTRIBOS DEL NO. 2 @ 20 CMS., INCLUYE: ARMADO, COLADO, CURADO, VIBRADO, CIMBRA COMUN, DESCIMBRA, DESPERDICIOS, MANO DE OBRA, HERRAMIENTA Y ACARREO DE MATERIALES AL SITIO DE SU UTILIZACION, A CUALQUIER ALTURA.","ML ","54.6000",0,"CERO PESOS 00/100 M.N.",0,330739]
[310230,"DALA DE CONCRETO F'C=250 KG/CM2, T.M.A.=3/4\", CON SECCION DE 21 X 15 CMS., ARMADA CON 6 VARILLAS DEL # 3 Y UN ESTRIBO + UNA GRAPA DEL NO. 2 @ 25 CMS., INCLUYE: ARMADO, COLADO, CURADO, VIBRADO, CIMBRA COMUN, DESCIMBRA, TRASLAPES, CRUCES DE VARILLAS CON ELEMENTOS TRANSVERSALES, DESPERDICIOS, MANO DE OBRA, HERRAMIENTA Y ACARREO DE MATERIALES AL SITIO DE SU UTILIZACION, A CUALQUIER ALTURA.","ML ","20.0000",0,"CERO PESOS 00/100 M.N.",0,330740]
[310538,"DALA DE CONCRETO F'C=250 KG/CM2, T.M.A.=3/4\", CON SECCION DE 14 X 10 CMS., SIN ARMAR, INCLUYE: COLADO, CURADO, VIBRADO, CIMBRA APARENTE, DESCIMBRA, DESPERDICIOS, MANO DE OBRA, HERRAMIENTA Y ACARREO DE MATERIALES AL SITIO DE SU UTILIZACION, A CUALQUIER ALTURA.","ML ","82.1200",0,"CERO PESOS 00/100 M.N.",0,330741]
[310540,"DALA DE CONCRETO F'C=250 KG/CM2, T.M.A.=3/4\", CON SECCION DE 21 X 10 CMS., SIN ARMAR, INCLUYE: COLADO, CURADO, VIBRADO, CIMBRA APARENTE, DESCIMBRA, DESPERDICIOS, MANO DE OBRA, HERRAMIENTA Y ACARREO DE MATERIALES AL SITIO DE SU UTILIZACION, A CUALQUIER ALTURA.","ML ","21.4000",0,"CERO PESOS 00/100 M.N.",0,330742]
[312212,"CASTILLO DE CONCRETO F'C=250 KG/CM2, T.M.A.=3/4\", CON SECCION DE 14 X 15 CMS., ARMADA CON 4 VARILLAS DEL # 3 Y ESTRIBOS DEL NO. 2 @ 15 CMS., INCLUYE: ARMADO, COLADO, CURADO, VIBRADO, CIMBRA COMUN, DESCIMBRA, DESPERDICIOS, TRASLAPES, CRUCES DE VARILLAS CON ELEMENTOS TRANSVERSALES, ANDAMIOS, MANO DE OBRA, HERRAMIENTA Y ACARREO DE MATERIALES AL SITIO DE SU UTILIZACION, A CUALQUIER ALTURA.","ML ","12.8200",0,"CERO PESOS 00/100 M.N.",0,330743]
[312256,"CASTILLO DE CONCRETO F'C=250 KG/CM2, T.M.A.=3/4\", CON SECCION DE 14 X 20 CMS., ARMADA CON 4 VARILLAS DEL # 3 Y ESTRIBOS DEL NO. 2 @ 15 CMS., INCLUYE: ARMADO, COLADO, CURADO, VIBRADO, CIMBRA COMUN, DESCIMBRA, TRASLAPES, CRUCES DE VARILLAS CON ELEMENTOS TRANSVERSALES, DESPERDICIOS, MANO DE OBRA, HERRAMIENTA Y ACARREO DE MATERIALES AL SITIO DE SU UTILIZACION, A CUALQUIER ALTURA.","ML ","27.5500",0,"CERO PESOS 00/100 M.N.",0,330744]
[312257,"CASTILLO DE CONCRETO F'C=250 KG/CM2, T.M.A.=3/4\", CON SECCION DE 14 X 21 CMS., ARMADA CON 4 VARILLAS DEL # 3 Y ESTRIBOS DEL NO. 2 @ 15 CMS., INCLUYE: ARMADO, COLADO, CURADO, VIBRADO, CIMBRA COMUN, DESCIMBRA, TRASLAPES, CRUCES DE VARILLAS CON ELEMENTOS TRANSVERSALES, DESPERDICIOS, MANO DE OBRA, HERRAMIENTA Y ACARREO DE MATERIALES AL SITIO DE SU UTILIZACION, A CUALQUIER ALTURA.","ML ","67.6000",0,"CERO PESOS 00/100 M.N.",0,330745]
[314032,"MURO DE TABIQUE DE LAMA, DE 14 CMS. DE ESPESOR PROMEDIO, A SOGA, CON TABIQUE DE LAMA 7 X 14 X 28 CMS., ACABADO COMUN, ASENTADO CON MORTERO CEMENTO-ARENA EN PROPORCION 1:3, EN CUALQUIER NIVEL, INCLUYE: TRAZO, NIVELACION, PLOMEO, ANDAMIOS, DESPERDICIOS, MANO DE OBRA, LIMPIEZA Y ACARREO DE MATERIALES AL SITIO DE SU UTILIZACION.","M2 ","158.6800",0,"CERO PESOS 00/100 M.N.",0,330746]
[314052,"MURO DE TABIQUE DE LAMA, DE 22 CMS. DE ESPESOR PROMEDIO, COMBINADO, CON TABIQUE DE LAMA 7 X 14 X 28 CMS., ACABADO COMUN, ASENTADO CON MORTERO CEMENTO-ARENA DE RIO EN PROPORCION 1:3, EN CUALQUIER NIVEL, INCLUYE: TRAZO, NIVELACION, PLOMEO, DESPERDICIOS, HERRAMIENTAS, ANDAMIOS, LIMPIEZAS, MANO DE OBRA Y ACARREO DE MATERIALES AL SITIO DE SU UTILIZACION. A CUALQUIE ALTURA.","M2 ","36.3000",0,"CERO PESOS 00/100 M.N.",0,330747]
[344012,"IMPERMEABILIZACION DE CADENAS DE DESPLANTE EN MUROS, CON UNA CAPA DE EMULTEX (O SIMILAR), DOS CAPAS DE BITUMEX (O SIMILAR) Y UNA CAPA DE CRISTAFLEX (O SIMILAR).","ML ","110.9200",0,"CERO PESOS 00/100 M.N.",0,330748]
["F.05(319)","ENTREPISOS, CUBIERTA Y ACABADOS DE AZOTEA         ",null,null,null,null,{"$f":"TEXT(SUM(G72:G72), \"$ #,##0.00 ;\")","v":"$ 0.00 "}]
[344125,"IMPERMEABILIZACION DE MUROS O LOSAS, A BASE DE MEMBRANA PREFABRICADA, MCA. IMPERQUIMIA, UNIPLAS AERO PLUS SBS, ALTO DESEMPEÑO CON VENTILACION ANTIABOLSAMIENTOS, FABRICADA A BASE DE ASFALTOS MODIFICADOS CON POLIMEROS SINTETICOS SBS (ESTIRENO BUTADIENO ESTIRENO) REFORZADA CON MALLA POLIESTER DE ALTA RESISTENCIA, ACABADO APARENTE A BASE DE GRAVILLA ESMALTADA A FUEGO, 4.5 MM  DE ESPESOR TOTAL, COLOR ROJO TERRACOTA, GARANTIA POR ESCRITO DE 10 AÑOS, POR LA EMPRESA CONTRATISTA., INCLUYE: LIMPIEZA Y PREPARACION DE LA SUPERFICIE, APLICACION DE PRIMER IMPERCOAT PRIMARIO SL, PARA ANCLAJE Y TAPAPORO DE LA SUPERFICIE, SELLADO DE FISURAS Y GRIETAS A BASE DE CEMENTO PLASTICO BITUMINOSO IMPERCOAT CEMENTO SBS, SUMINISTRO Y COLOCACION DE MEMBRANA POR MEDIO DE TERMOFUSION A BASE DE FUEGO DE SOPLETE DE GAS BUTANO, HACIENDO TRASLAPES MINIMOS DE 0.10 MTS. EN AMBOS SENTIDOS, SELLADO DE ORILLAS, REMATES Y TRASLAPES, MATERIALES MENORES Y DE CONSUMO, CORTES, DESPERDICIOS, LIMPIEZA GENERAL, HERRAMIENTAS, MANO DE OBRA ESPECIALIZADA Y ACARREOS AL SITIO DE SU COLOCACION.","M2 ","266.2800",0,"CERO PESOS 00/100 M.N.",0,330749]
["F.06(355)","RECUBRIMIENTOS Y ACABADOS                         ",null,null,null,null,{"$f":"TEXT(SUM(G74:G77), \"$ #,##0.00 ;\")","v":"$ 0.00 "}]
[355022,"APLANADO DE MUROS Y/O TECHOS CON MORTERO CEMENTO-CAL-ARENA DE RIO EN PROP. 1:2:6 DE 2 CM. DE ESPESOR PROMEDIO, A PLOMO Y REGLA, ACABADO APALILLADO FINO, INCLUYE: MATERIALES, DESPERDICIOS, ANDAMIOS, HERRAMIENTAS, PLOMEO, NIVELACION, REMATES, LIMPIEZA DEL AREA DE TRABAJO Y ACARREO DE MATERIALES AL SITIO DE SU UTILIZACION. A CUALQUIER NIVEL.\n","M2 ","490.6000",0,"CERO PESOS 00/100 M.N.",0,330750]
[357322,"BOQUILLAS EN PUERTAS Y VENTANAS, CON MORTERO CEMENTO-CAL-ARENA 1:2:6, INCLUYE: ANDAMIOS Y ACARREO DE MATERIALES AL SITIO DE SU UTILIZACION.","ML ","87.9100",0,"CERO PESOS 00/100 M.N.",0,330751]
[357352,"FILETES Y BOLEADOS, HECHOS CON MORTERO CEMENTO-CAL-ARENA EN PROPORCION 1:2:6, INCLUYE: DESPERDICIOS, ANDAMIOS Y ACARREO DE MATERIALES AL SITIO DE SU UTILIZACION, A CUALQUIER NIVEL.","ML ","284.0200",0,"CERO PESOS 00/100 M.N.",0,330752]
[358033,"SUMINISTRO Y COLOCACION DE LOSETA CERAMICA PARA MURO ( AZULEJO ), CON RECUBRIMIENTO ESMALTADO, DE 25 X 40 CM., MCA. INTERCERAMIC, LINEA CATANIA, CUALQUIER COLOR, DE PRIMERA CALIDAD, ASENTADO CON PEGAZULEJO Y JUNTEDO CON JUNTEADOR DE COLOR, JUNTAS A HUESO, INCLUYE: TRAZO, CORTE, REMATES, ESCUADRE, DESPERDICIOS, DESPATINADO, EMBOQUILLADOS, CERTIFICADO DE CALIDAD, HERRAMIENTAS, MATERIALES, MANO DE OBRA, LIMPIEZA Y ACARREO DE MATERIALES AL SITIO DE SU UTILIZACION, A CUALQUIER NIVEL.","M2 ","94.8000",0,"CERO PESOS 00/100 M.N.",0,330753]
["F.07(372)","PISOS                                             ",null,null,null,null,{"$f":"TEXT(SUM(G79:G88), \"$ #,##0.00 ;\")","v":"$ 0.00 "}]
[344511,"SUMINISTRO Y COLOCACION DE JUNTA DE CONTRACCION ELASTOMERICA. EN PISOS CON UNA SECCION TRANSVERSAL DE 6 X 10 MM, A BASE DE SILICON DE COLOR PARA JUNTAS DE DILATACION, INCLUYE: LIMPIEZA DEL AREA A TRATAR, DESPERDICIOS Y ACARREO DEL MATERIAL AL SITIO DE SU COLOCACION.","ML ","38.8800",0,"CERO PESOS 00/100 M.N.",0,330754]
[360565,"SUMINISTRO Y COLOCACION DE MALLA ELECTROSOLDADA 6X6-10/10 COMO REFUERZO EN PISOS DE CONCRETO, INCLUYE: DESPERDICIOS, TRASLAPES, HERRAMIENTA Y ACARREO DEL MATERIAL AL SITIO DE SU COLOCACION.","M2 ","212.8900",0,"CERO PESOS 00/100 M.N.",0,330755]
[372242,"FIRME DE CONCRETO F´C= 150 KG/CM2 TMA= 3/4\",  DE 8 CM DE ESPESOR, ACABADO APALILLADO. INCLUYE: TRAZO, NIVELACION, AFINE Y COMPACTACION DEL TERRENO, AGUA, MATERIALES, EXTENDIDO, REGLEADO, CURADO, DESPERDICIOS, HERRAMIENTAS, LIMPIEZA, MANO DE OBRA Y ACARREO DEL MATERIAL AL SITIO DE SU UTILIZACION","M2 ","181.7100",0,"CERO PESOS 00/100 M.N.",0,330756]
[373022,"PISO DE CONCRETO F'C=150 KG/CM², T.M.A. 3/4\", DE 0.10 M. DE ESPESOR, COLADO EN CUADROS NO MAYORES DE 3.00 ML POR LADO, INCLUYE: TRAZO, NIVELACION, AFINE Y COMPACTACION DEL TERRENO, AGUA, DESPERDICIOS, ACARREOS, REGLEADO, ACABADO INTEGRAL RAYADO CON BROCHA DE PELO (SIN UTILIZACION DE PASTA), CIMBRA EN FRONTERAS, DESCIMBRA, COLADO, CURADO, REMATES, ESCALONADO, MUESTREADO, JUNTAS FRIAS CON VOLTEADOR, HERRAMIENTAS Y MANO DE OBRA.","M2 ","31.0000",0,"CERO PESOS 00/100 M.N.",0,330757]
[373546,"CEJA DE CONCRETO F'C=250 KG/CM2, TMA=3/4\" DE 15 X 10 CM DE SECCION, ARMADA CON 1 VARILLA #3 (3/8\") Y ESTRIBOS DE 1/4\" @ 25.0 CM, EN CUALQUIER NIVEL. INCLUYE: CIMBRA APARENTE, DESCIMBRA, COLADO, VIBRADO, CURADO, PERFILADO, CHAFLANES, GOTERO, LIMPIEZA, HERRAMIENTAS, MATERIALES, DESPERDICIOS Y MANO DE OBRA.","ML ","47.9200",0,"CERO PESOS 00/100 M.N.",0,330758]
[373766,"FORJADO DE NARIZ DE REMATE EN PISO DE  BANQUETAS, CON 10.0  X  10.0 CM. DE SECCION, INCLUYE SOLO: CIMBRA APARENTE, DESCIMBRA, GOTERO, FORJADO, CHAFLANES, PERFILADO, DESPERDICIOS, HERRAMIENTAS, Y MANO DE OBRA. (NO INCLUYE CONCRETO).","ML ","29.2000",0,"CERO PESOS 00/100 M.N.",0,330759]
[374509,"GUARNICION O MACHUELO DE CONCRETO SIMPLE F'C=150 KG/CM2 CON SECCION DE 15 X 35 CMS., CON CIMBRA APARENTE, INCLUYE: TRAZO, EXCAVACION, CONFORMACION Y COMPACTACION DEL TERRENO NATURAL CON HERRAMIENTA MANUAL, INCORPORACION DE HUMEDAD OPTIMA, RETIRO DEL MATERIAL PRODUCTO DE LA EXCAVACION, CIMBRA APARENTE Y DESCIMBRA, COLADO, VIBRADO, CURADO, SEÑALAMIENTO PREVENTIVO, MATERIALES, HERRAMIENTAS, MANO DE OBRA Y ACARREO DE MATERIALES AL SITIO DE SU UTILIZACION.","ML ","28.5000",0,"CERO PESOS 00/100 M.N.",0,330760]
[376023,"SUMINISTRO Y COLOCACION DE PISO DE LOSETA CERAMICA DE 50 X 50 CM., MCA. INTERCERAMIC DE PRIMERA, LINEA SAYULITA, DE CUALQUIER COLOR, GRADO DE DUREZA (PEI) \"IV\" , ASENTADO CON PEGAPISO Y JUNTEDO CON JUNTEADOR DE COLOR, JUNTAS DE 4 MM. DE ANCHO, INCLUYE: TRAZO, CORTE, REMATES, ESCUADRE, DESPERDICIOS, DESPATINADO, EMBOQUILLADOS, CERTIFICADO DE CALIDAD, HERRAMIENTAS, MATERIALES, MANO DE OBRA, LIMPIEZA Y ACARREO DE MATERIALES AL SITIO DE SU UTILIZACION, A CUALQUIER ALTURA.","M2 ","181.7100",0,"CERO PESOS 00/100 M.N.",0,330761]
[376146,"SUMINISTRO Y COLOCACION DE CENEFA DE 15.00 CM APROXIMADAMENTE A BASE DE  PISO DE LOSETA CERAMICA DE PRIMERA, QUE DEBERA CUMPLIR CON LAS SIGUIENTES CARACTERISTICAS TECNICAS: ABSORCION <= 3% , COEFICIENTE DE ESTATICO DE FRICCION >= 0.5, MODULO DE RUPTURA >= 300 KG/CM², PEI, RESISTENCIA A LA ABRASION VISIBLE 1500 CICLOS (PEI IV), RESISTENTE AL MANCHADO, RESISTENCIA AL RAYADO >= 5.0 MOHS, RESISTENTE A LOS QUIMICOS, ASENTADO CON PEGA PISO Y JUNTEADO CON JUNTEADOR DE COLOR, CON JUNTAS DE 4.00 MM. DE ANCHO MINIMO. INCLUYE: HERRAMIENTAS, MATERIALES, TRAZO, CORTES,  NIVELACION,  LIMPIEZA, DESPERDICIOS, MANO DE OBRA Y ACARREO DE MATERIALES AL SITIO DE SU UTILIZACION.","ML ","7.2000",0,"CERO PESOS 00/100 M.N.",0,330762]
[378301,"SUMINISTRO E INSTALACION DE GUIA PODOTACTIL COLOR AMARILLO DE 30 CM DE ANCHO, ELABORADA A BASE TABLETAS DE ARCILLA POLISINTETICA DE 30 X 30 CM., PARA ALTO TRAFICO, ANTIBACTERIAL, ANTIGRAFITI, RESISTENTE A CAMBIOS BRUSCOS DE TEMPERATURA, MARCA ARQCCESIBLE O SIMILAR EN GARANTIA, CALIDAD Y ESPECIFICACIONES, INCLUYE: GUIAS DE ADVERTENCIA, TRAZO, ADHESIVOS, DESPERDICIOS, ACARREOS, LIMPIEZA, MANO DE OBRA, HERRAMIENTA Y MATERIALES.","ML ","32.1000",0,"CERO PESOS 00/100 M.N.",0,330763]
["F.08(382)","ELEMENTOS COMPLEMENTARIOS DE ALBAÑILERIA          ",null,null,null,null,{"$f":"TEXT(SUM(G90:G91), \"$ #,##0.00 ;\")","v":"$ 0.00 "}]
[382017,"LOSA DE CONCRETO FC=200 KG/CM2 DE 10.0 CMS. DE ESPESOR Y 60.0 CMS. DE ANCHO, PARA RECIBIR LAVABO U OVALIN, ARMADA CON VARILLA #3 @ 30.0 CMS. EN AMBOS SENTIDOS, ACABADO APALILLADO, INCLUYE: TRAZO, CIMBRA COMUN Y DESCIMBRADO, RECUBRIMIENTO DE MARMOL TRAVERTINO DE 2 CM. DE ESPESOR, ORILLAS REDONDEADAS, DESPERDICIOS, NIVELACION, CORTES, ABRILLANTADO, AJUSTES, REMATES, ZOCLO 10.0 CMS, FALDONES 10.0 CMS., TALADROS PARA LLAVES Y OVALINES, HERRAMIENTAS, MANO DE OBRA, LIMPIEZA Y ACARREO DE MATERIAL AL SITIO DE SU UTILIZACION, A CUALQUIER NIVEL .","ML ","4.8000",0,"CERO PESOS 00/100 M.N.",0,330764]
[383022,"FORJADO DE BASE PARA VERTEDERO DE 0.40 X 0.40 X 0.40 M. MEDIDAS INTERIORES, FORJADA CON LADRILLO DE LAMA DE 14 CM. DE ESPESOR ASENTADO Y APLANADO CON MORTERO CEMENTO-ARENA DE RIO EN PROPORCION 1:3, RECUBIERTA CON AZULEJO DE 1RA. EN AREAS  EXTERIORES, INCLUYE: TRAZO, NIVELACION, PLOMEO, EMBOQUILLADO, ACARREO DE MATERIALES AL SITIO DE SU UTILIZACION, MANO DE OBRA Y HERRAMIENTA.","PZA","2.0000",0,"CERO PESOS 00/100 M.N.",0,330765]
["F.09(390)","CARPINTERIA                                       ",null,null,null,null,{"$f":"TEXT(SUM(G93:G94), \"$ #,##0.00 ;\")","v":"$ 0.00 "}]
[390082,"SUMINISTRO Y COLOCACION DE PUERTA DE TAMBOR CON TRIPLAY DE CAOBILLA DE 6 MM. POR AMBAS CARAS, DE  0.91 A 1.10 MTS. X 2.50 MTS. FORMADA A BASE DE BASTIDOR Y MARCO DE  MADERA DE PINO DE PRIMERA DE  2\"  X  1 1/2\"   Y  PEINAZOS DE 1 1/2\" X 1 1/2\"  A CADA 30 CMS. EN AMBOS SENTIDOS, ACABADO ENTINTADO Y LACA BRILLANTE TRANSPARENTE,  INCLUYE: MARCO Y TOPES DE MADERA,  JAMBAS, CHAPA SCOVILL MODELO A-52-PS,  RESANADOR PARA MADERA, BISAGRA DE LIBRO DE 3\", DESPERDICIOS, MATERIALES MENORES Y DE CONSUMO, HERRAMIENTAS,  ACARREO DE MATERIALES AL SITIO DE SU COLOCACION,  LIMPIEZA DEL AREA DE TRABAJO Y MANO DE OBRA ESPECIALIZADA.","PZA","1.0000",0,"CERO PESOS 00/100 M.N.",0,330766]
[390156,"MUEBLE DIVISORIO EN DIRECCION, FABRICADO CON BASTIDOR DE PINO DE PRIMERA DE 1\" DE ESPESOR, FORRADO CON TRIPLAY DE CAOBILLA DE 6 MM. Y FONDO DE TRIPLAY DE CAOBILLA DE 6 MM., CONSTA DE DOS MODULOS (UNO MODULO LIBRERO DOBLE VISTA DE 2.43 MTS. DE ALTURA, 0.79 MTS. DE LARGO Y 0.30 MTS. DE FONDO DE CADA LADO Y CUATRO ENTREPAÑOS DE CADA LADO Y PUERTAS INFERIORES Y UN MODULO VITRINA PARA ASTA BANDERA DE 2.43 M. DE ALTURA, 1.03 MTS. DE LARGO Y 0.60 MTS. DE FONDO, CON DOS PUERTAS ABATIBLES AL FRENTE DE CRISTAL DE 6 MM. CON MEDIDAS DE 1.95 MTS. DE ALTURA Y 0.50 MTS. DE ANCHO CADA UNA), TERMINADOS COLOR MADERA ENTINTADA Y LACA TRANSPARENTE ACABADO BRILLANTE, DESPLANTADO SOBRE UN ZOCLO DE PERFIL TUBULAR METALICO TIPO ZR-300 CAL. 16, FORMANDO UN BASTIDOR CON DIMENSIONES DE 1.82 X 0.60 MTS. Y  7.5 CM DE PERALTE, FIJADO AL PISO CON TAQUETES DE PLASTICO Y PIJAS, INCLUYE: BASTIDOR METALICO, CHAPA PARA VITRINA, BISAGRAS DE LIBRO PARA LAS PUERTAS, HERRAJES PARA CRISTAL,  BROCHES PERICO PARA PUERTAS, JALADERAS DE BOTON, SELLADOR, TAPAPORO, DESPERDICIOS, MANO DE OBRA ESPECIALIZADA Y ACARREO DEL MATERIAL AL SITIO DE SU UTILIZACION (SEGUN PLANO).","PZA","1.0000",0,"CERO PESOS 00/100 M.N.",0,330767]
["F.10(393)","PINTURA                                           ",null,null,null,null,{"$f":"TEXT(SUM(G96:G100), \"$ #,##0.00 ;\")","v":"$ 0.00 "}]
[393010,"PINTURA VINIL-ACRÍLICA A BASE DE AGUA ACABADO SEMIMATE  LAVABLE, PARA INTERIORES Y EXTERIORES QUE NO DESPRENDA VAPORES TÓXICOS NI OLORES DESAGRADABLES, CON LAS SIGUIENTES CARACTERÍSTICAS ( SÓLIDOS POR PESO 46-52%, SÓLIDOS POR VOLUMEN 30-36%, VISCOSIDAD DE 100-130 UK A 25°C, DENSIDAD > O = 1.2 TON/M3., LAVABILIDAD > O = 4,000 CICLOS, TIEMPO DE SECADO AL TACTO, 30-40 MIN., TIEMPO DE SECADO DURO < O = 8 HRS., CICLO DE CURADO DE 7 DIAS, PH 6-8, RENDIMIENTO EN SUP. LISA 8-10 M2/LT., FINEZA DE MOLIDO (HEGMAN) 3-7 UH.)  EN CADENAS DE DESPLANTE, A UNA CARA, TRABAJO TERMINADO, A DOS MANOS, INCLUYE: MATERIALES MENORES Y DE CONSUMO, PREPARACION DE LA SUPERFICIE, SELLADO DE LA SUPERFICIE, HERRAMIENTAS, LIMPIEZA, MANO DE OBRA Y  ACARREOS DE MATERIALES AL SITIO DE SU UTILIZACION.","ML ","160.5200",0,"CERO PESOS 00/100 M.N.",0,330768]
[393022,"PINTURA VINIL-ACRÍLICA A BASE DE AGUA ACABADO SEMIMATE  LAVABLE, PARA INTERIORES Y EXTERIORES QUE NO DESPRENDA VAPORES TÓXICOS NI OLORES DESAGRADABLES, CON LAS SIGUIENTES CARACTERÍSTICAS ( SÓLIDOS POR PESO 46-52%, SÓLIDOS POR VOLUMEN 30-36%, VISCOSIDAD DE 100-130 UK A 25°C, DENSIDAD > O = 1.2 TON/M3., LAVABILIDAD > O = 4,000 CICLOS, TIEMPO DE SECADO AL TACTO, 30-40 MIN., TIEMPO DE SECADO DURO < O = 8 HRS., CICLO DE CURADO DE 7 DIAS, PH 6-8, RENDIMIENTO EN SUP. LISA 8-10 M2/LT., FINEZA DE MOLIDO (HEGMAN) 3-7 UH.)  EN MUROS APLANADOS DE MEZCLA APALILLADO O PULIDO, TRABAJO TERMINADO, A DOS MANOS, INCLUYE: MATERIALES MENORES Y DE CONSUMO, ANDAMIOS, PREPARACION DE LA SUPERFICIE, SELLADO DE LA SUPERFICIE, HERRAMIENTAS, LIMPIEZA, MANO DE OBRA Y  ACARREOS DE MATERIALES AL SITIO DE SU UTILIZACIÓN.","M2 ","401.2000",0,"CERO PESOS 00/100 M.N.",0,330769]
[393052,"PINTURA VINIL-ACRÍLICA A BASE DE AGUA ACABADO SEMIMATE  LAVABLE, PARA INTERIORES Y EXTERIORES QUE NO DESPRENDA VAPORES TÓXICOS NI OLORES DESAGRADABLES, CON LAS SIGUIENTES CARACTERÍSTICAS ( SÓLIDOS POR PESO 46-52%, SÓLIDOS POR VOLUMEN 30-36%, VISCOSIDAD DE 100-130 UK A 25°C, DENSIDAD > O = 1.2 TON/M3., LAVABILIDAD > O = 4,000 CICLOS, TIEMPO DE SECADO AL TACTO, 30-40 MIN., TIEMPO DE SECADO DURO < O = 8 HRS., CICLO DE CURADO DE 7 DIAS, PH 6-8, RENDIMIENTO EN SUP. LISA 8-10 M2/LT., FINEZA DE MOLIDO (HEGMAN) 3-7 UH.)  EN LOSAS Y ELEMENTOS DE CONCRETO, TRABAJO TERMINADO, A DOS MANOS, INCLUYE: MATERIALES MENORES Y DE CONSUMO, ANDAMIOS, PREPARACION DE LA SUPERFICIE DE CONCRETO, SELLADO DE LA SUPERFICIE, HERRAMIENTAS, LIMPIEZA, MANO DE OBRA Y  EQUIPO DE SEGURIDAD. A CUALQUIER ALTURA.","M2 ","310.1100",0,"CERO PESOS 00/100 M.N.",0,330770]
[393142,"PINTURA DE ESMALTE ALQUIDALICO ANTICORROSIVO, ACABADO BRILLANTE, PARA INTERIORES Y EXTERIORES QUE NO DESPRENDA VAPORES TÓXICOS NI OLORES DESAGRADABLES, CON LAS SIGUIENTES CARACTERÍSTICAS ( SÓLIDOS POR PESO 49-60%, SÓLIDOS POR VOLUMEN 40-46%, VISCOSIDAD DE 110-160 UK A 25°C, DENSIDAD 0.9-1.2 TON/M3., BRILLO A 60°C, 90%, TIEMPO DE SECADO AL TACTO, < O = 6 HRS., TIEMPO DE SECADO DURO < O = 24 HRS., ADHERENCIA 100%, RENDIMIENTO EN SUP. LISA 8-10 M2/LT., DILUCIÓN MÁXIMA (AGUARRÁS, THINER), 15 %,  EN HERRERIA ABIERTA DE PERFILES ESTRUCTURALES (PROTECCIONES), MEDIDA POR UN SOLO LADO, TRABAJO TERMINADO, A DOS MANOS, INCLUYE: MATERIALES MENORES Y DE CONSUMO, ANDAMIOS, PREPARACION DE LA SUPERFICIE, HERRAMIENTAS, LIMPIEZA, MANO DE OBRA Y  EQUIPO DE SEGURIDAD. A CUALQUIER NIVEL. (LA PINTURA ES POR AMBOS LADOS DE LA HERRERIA, PERO PARA SU PAGO ES MEDIDA SOLO POR 1 SOLO LADO).","M2 ","36.0600",0,"CERO PESOS 00/100 M.N.",0,330771]
[393525,"FABRICACION, SUMINISTRO E INSTALACION DE ROTULO DE IDENTIFICACION EN PUERTAS DE INGRESO A (SANITARIOS, DIRECCIONES, AULAS, ANEXOS, ETC.)  CON MEDIDAS GENERALES DE 40 X 20 CM., FABRICADOS A BASE DE ACRILICO SOLIDO DE 3 MM. DE ESPESOR, COLOR CRISTALINO, FORRADO CON VINIL ADHERIBLE OPACO, CON IMAGEN, TEXTO IMPRESO Y CODIGO BRAILLE AL MARGEN INFERIOR IZQUIERDO, INCLUYE: TRAZO, DISEÑO, MATERIALES, MARGEN IMPRESO DE 1 CM DE ANCHO,  ELEMENTOS DE FIJACION,  EQUIPO, HERRAMIENTA Y MANO DE OBRA. EN CUALQUIER NIVEL.","PZA","6.0000",0,"CERO PESOS 00/100 M.N.",0,330772]
["F.11(396)","LIMPIEZA                                          ",null,null,null,null,{"$f":"TEXT(SUM(G102:G106), \"$ #,##0.00 ;\")","v":"$ 0.00 "}]
[396012,"LIMPIEZA DE PISOS DE CONCRETO CON AGUA Y ACIDO MURIATICO AL 10%.","M2 ","31.0000",0,"CERO PESOS 00/100 M.N.",0,330773]
[396022,"LIMPIEZA EN PISO DE CERAMICA, CON AGUA Y JABON.","M2 ","181.7100",0,"CERO PESOS 00/100 M.N.",0,330774]
[396032,"LIMPIEZA DE RECUBRIMIENTOS VIDRIADOS EN MUROS, CON JABON, AGUA Y ACIDO MURIATICO AL 10 %.","M2 ","94.8000",0,"CERO PESOS 00/100 M.N.",0,330775]
[396042,"LIMPIEZA DE VIDRIOS CON AGUA Y JABON, 2 CARAS.","M2 ","36.0600",0,"CERO PESOS 00/100 M.N.",0,330776]
[396222,"LIMPIEZA DE MUEBLES DE BAÑO, CON AGUA Y JABON.","PZA","21.0000",0,"CERO PESOS 00/100 M.N.",0,330777]
["F.12(410)","CANCELERIA, HERRERIA, ALUMINIO, VIDRIOS Y CHAPAS  ",null,null,null,null,{"$f":"TEXT(SUM(G108:G115), \"$ #,##0.00 ;\")","v":"$ 0.00 "}]
[412004,"SUMINISTRO Y FABRICACION DE PROTECCIONES PARA VENTANERIA A BASE DE HERRERIA ESTRUCTURAL CON PERFIL CUADRADO Y/O REDONDO 1/2\" Y SOLERA DE 1/4\" X 1 1/2\", INCLUYE: CORTES, SOLDADURA, TALADROS, PINTURA DE TALLER,  AJUSTES Y DETALLES REALIZADOS EN OBRA DE ACUERDO A LO CONSTRUIDO,  ACARREOS, MATERIALES, DESPERDICIOS, HERRAMIENTAS Y EQUIPO NECESARIAS, MANO DE OBRA CALIFICADA Y TODO LO NECESARIO PARA SU CORRECTA EJECUCION.","KG ","438.1000",0,"CERO PESOS 00/100 M.N.",0,330778]
[412852,"COLOCACION DE HERRERIA TUBULAR Y/O ESTRUCTURAL SOLDADA Y/O ATORNILLADA A ESTRUCTURA Y REPISON EN CUALQUIER NIVEL, INCLUYE: PLOMEO, NIVELADO, AJUSTES Y ACARREO DE MATERIALES AL SITIO DE SU UTILIZACION","M2 ","36.0600",0,"CERO PESOS 00/100 M.N.",0,330779]
[420022,"SUMINISTRO, HABILITADO Y COLOCACION DE CANCELERIA FABRICADA  EN ALUMINIO ANODIZADO NATURAL CON PERFILES COMERCIALES DE 2\" X 1.25\",  MCA. CUPRUM ,  LINEA PANORAMA O SIMILAR, INCLUYE: TRAZO, CORTES, AJUSTES, MATERIALES, CORREDERAS, JALADERAS, OPERADORES, REPISON, SELLADO PERIMETRAL, SILICON, VINIL, HERRAJES, ELEMENTOS DE FIJACION, MATERIALES MENORES Y DE CONSUMO, DESPERDICIOS, HERRAMIENTAS, MANO DE OBRA ESPECIALIZADA, LIMPIEZA, FLETES, EQUIPO Y ACARREO DE MATERIALES AL SITIO DE SU COLOCACION, A CUALQUIER NIVEL.","M2 ","36.0600",0,"CERO PESOS 00/100 M.N.",0,330780]
[422020,"SUMINISTRO Y COLOCACION DE PUERTA PREFABRICADA, CON MEDIDAS GENERALES DE 1.20 X 2.10 MTS.,  MCA. PORCELTECH O SIMILAR EN GARANTIA Y CALIDAD. MOD. BETA, TIPO TAMBOR DE 36 MM. DE ESPESOR, FABRICADA CON BASTIDOR DE PERFIL TUBULAR  GALVANIZADO DE 1 1/4\" , NUCLEO RELLENO CON PANEL HONEY COMB DE 1 3/8\" DE ESPESOR Y DOBLE CARA (INTERIOR-EXTERIOR) DE  LAMINA DE ACERO PORCELANIZADO CAL. 24,  EN COLOR INDICADO POR LA SUPERVISION Y CUBRECANTOS DE ALUMINIO ANODIZADO NATURAL , MARCO Y ANTEPECHO DE HERRERIA TUBULAR DE PERFILES COMERCIALES DE 3\" X 1 1/2\" CAL 14., TOPE DE ANGULO DE 3/4\" X 1/8\", INCLUYE: MARCO, HERRAJES, BISAGRAS, NIVELACION, PLOMEO, ELEMENTOS DE FIJACION, MATERIALES MENORES Y DE CONSUMO, SELLADO PERIMETRAL, HERRAMIENTAS, LIMPIZA, MANO DE OBRA, FLETES Y ACARREOS DE MATERIALES AL SITIO DE SU COLOCACION, EN CUALQUIER NIVEL.","PZA","6.0000",0,"CERO PESOS 00/100 M.N.",0,330781]
[424094,"SUMINISTRO Y COLOCACION DE CERRADURA TIPO EUROPEO PARA PUERTA EXTERIOR, MCA. JAKO, MOD. KIT9001ENT, FABRICADA EN ACERO INOXIDABLE CON ACABADO SATINADO, DOBLE MANIJA DE PERFIL TUBULAR REDONDO Y CILINDRO LLAVE-MARIPOSA, INCLUYE: TRAZO, TALADROS, ELEMENTOS DE FIJACION, HERRAMIENTAS, CILINDRO, CHAPETÓN, LLAVES, LIMPIEZA,  MANO DE OBRA Y  ACARREO DE MATERIAL AL SITIO DE SU UTILIZACION.","PZA","6.0000",0,"CERO PESOS 00/100 M.N.",0,330782]
[424322,"SUMINISTRO Y COLOCACION DE TOPES DE PISO PARA PUERTA. INC.: ACARREO DE MATERIAL AL SITIO DE SU UTILIZACION, A CUALQUIER NIVEL.","PZA","6.0000",0,"CERO PESOS 00/100 M.N.",0,330783]
[426010,"SUMINISTRO Y COLOCACION DE CRISTAL FLOTADO DE 6 MM. DE ESPESOR,  ASENTADO CON SILICON, INCLUYE: CORTES, DESPERDICIOS Y ACARREO DE MATERIALES AL SITIO DE SU UTILIZACION A CUALQUIER NIVEL.","M2 ","36.0600",0,"CERO PESOS 00/100 M.N.",0,330784]
[907361,"SUMINISTRO Y COLOCACION DE PUERTAS Y/O  MAMPARAS MCA.  MODUMEX O SIMILAR, LINEA LEEDER,  MODELO ESTANDAR, FABRICADAS CON CAPAS DE FIBRA CELULOSA, PAPEL DECORATIVO Y RESINAS,  BAJO UN PROCESO DE LAMINADO PLASTICO DE ALTA PRESION, CON UN ESPESOR TOTAL DE 12.7 MM. , CON ACABADO ANTI GRAFFITI,  EN COLOR INDICADO EN OBRA POR LA SUPERVISION,  INCLUYE: HERRAJES, PASADORES CON AVISO DE VACANTE Y OCUPADO, BISAGRAS, TOPES, JALADERAS, SOPORTES INFERIORES PARA PILASTRA REDONDOS DE ACERO INOXIDABLE CAL. 12 Y CAPUCHON DE NYLON,  DESPERDICIOS, AJUSTES,  MATERIALES DE FIJACION, MANO DE OBRA ESPECIALIZADA, HERRAMIENTAS, MANO DE OBRA, LIMPIEZA Y ACARREO DE MATERIALES AL SITIO DE SU UTILIZACION. (AREA EFECTIVA DE LA MAMPARA)","M2 ","34.7000",0,"CERO PESOS 00/100 M.N.",0,330785]
["F.13(510)","INSTALACION ELECTRICA EN EDIFICIO                 ",null,null,null,null,{"$f":"TEXT(SUM(G117:G128), \"$ #,##0.00 ;\")","v":"$ 0.00 "}]
[514034,"SALIDA ELECTRICA DE CENTRO AISLADA OCULTA, CON TUBERIA Y CONEXIONES CONDUIT DE PVC. PESADO  DE AJUSTE DE 13 Y 19 MM. DE DIAMETRO, CABLE VINANEL THW-LS 600 V. A 75° C, 90° C, MARCA CONDUCTORES MONTERREY, (VIAKON-PROTOCOLIZADO), CABLE VINANEL 21 THW-LS 600 V. A 75° C, 90° C, MARCA CONDUMEX (CONDUMEX PROTOCOLIZADO).  CALIBRE 12 EN FASES Y 12 EN TIERRA FISICA, CAJAS DE REGISTRO  CUADRADAS, CHALUPAS Y TAPAS DE  PVC REFORZADO., INCLUYE: TRAZO, RANURAS, MATERIALES MENORES, HERRAMIENTA, MANO DE OBRA ESPECIALIZADA , CONEXIONES, LIMPIEZA DEL AREA DE TRABAJO, PRUEBAS, DESPERDICIOS Y ACARREO DEL MATERIAL AL SITIO DE SU COLOCACION, EN CUALQUIER NIVEL.","SAL","28.0000",0,"CERO PESOS 00/100 M.N.",0,330786]
[516018,"SALIDA ELECTRICA DE FUERZA PARA VENTILADOR DE TECHO, VISIBLE, CON TUBERIA Y CONEXIONES CONDUIT GALVANIZADA PARED DELGADA DE AJUSTE ETIQUETA VERDE DE 13 Y 19 MM. DE DIAMETRO, CABLE VINANEL THW-LS 600 V. A 75° C, 90° C, MARCA CONDUCTORES MONTERREY, (VIAKON-PROTOCOLIZADO), CABLE VINANEL 21 THW-LS 600 V. A 75° C, 90° C, MARCA CONDUMEX (CONDUMEX PROTOCOLIZADO).  CALIBRE, 12  Y 14, CON TAPA, INCLUYE: TRAZO,  MATERIALES MENORES Y DE CONSUMO, ELEMENTOS DE FIJACION,  HERRAMIENTA, ANDAMIOS, CONEXIONES, MANO DE OBRA ESPECIALIZADA, LIMPIEZA DEL AREA DE TRABAJO, PRUEBAS, DESPERDICIOS Y ACARREO DEL MATERIAL AL SITIO DE SU COLOCACION, A CUALQUIER ALTURA.","SAL","2.0000",0,"CERO PESOS 00/100 M.N.",0,330787]
[518046,"SALIDA ELECTRICA PARA CONTACTO MONOFÁSICO  DUPLEX POLARIZADO, OCULTA, CON TUBERIA Y CONEXIONES CONDUIT GALVANIZADA P.G., ETIQUETA VERDE DE AJUSTE DE 13 Y 19 MM. DE DIAMETRO,  CABLE VINANEL THW-LS 600 V. A 75° C, 90° C, MARCA CONDUCTORES MONTERREY, (VIAKON-PROTOCOLIZADO), CABLE VINANEL 21 THW-LS 600 V. A 75° C, 90° C, MARCA CONDUMEX (CONDUMEX PROTOCOLIZADO)., CAL.  12  EN FASES Y CAL. 12 PARA TIERRA FISICA, CAJAS DE REGISTRO  CUADRADAS, CHALUPAS Y TAPAS DE ACERO GALVANIZADO TIPO REFORZADO, CONTACTO QUINZIÑO MX, TAPA DE ALUMINIO, INCLUYE: TRAZO, RANURAS, CONEXION A TIERRA, MATERIALES MENORES, PRUEBAS, DESPERDICIOS, LIMPIEZAS, HERRAMIENTAS, MANO DE OBRA, Y ACARREO DEL MATERIAL AL SITIO DE SU COLOCACION, A CUALQUIER NIVEL.","SAL","16.0000",0,"CERO PESOS 00/100 M.N.",0,330788]
[522033,"SALIDA ELECTRICA PARA  APAGADOR SENCILLO, OCULTA, CON TUBERIA Y CONEXIONES CONDUIT DE PVC TIPO PESADO DE 13 Y 19 MM. DE DIAMETRO, CABLE VINANEL THW-LS 600 V. A 75° C, 90° C, MARCA CONDUCTORES MONTERREY, (VIAKON-PROTOCOLIZADO), CABLE VINANEL 21 THW-LS 600 V. A 75° C, 90° C, MARCA CONDUMEX (CONDUMEX PROTOCOLIZADO). CALIBRE 12, CAJAS CUADRADAS, CHALUPAS Y TAPAS DE PVC, APAGADOR QUINZIÑO, TAPA DE ALUMINIO, INCLUYE: RANURAS, MATERIALES MENORES, PRUEBAS, DESPERDICIOS Y ACARREO DEL MATERIAL AL SITIO DE SU COLOCACION, A CUALQUIER NIVEL.","SAL","9.0000",0,"CERO PESOS 00/100 M.N.",0,330789]
[542059,"SUMINISTRO Y COLOCACION DE CENTRO DE CARGA MARCA SQUARE- D TIPO QO-112L125G, 12 POLOS, 125 A. 1F, 3H, ZAPATAS, CAJA INTERIOR Y FRENTE QOC16U, INCLUYE: PRUEBAS, FLETES, MANO DE OBRA CALIFICADA, EQUIPO, HERRAMIENTA Y TODO LO NECESARIO PARA SU CORRECTA COLOCACION.","PZA","1.0000",0,"CERO PESOS 00/100 M.N.",0,330790]
[543012,"SUMINISTRO Y COLOCACION DE INTERRUPTOR TERMOMAGNETICO DERIVADO CON 1 POLOS, DE 15-60 AMPERES, MCA. SQUARE D, CAT. QO. INCLUYE: PRUEBAS, MATERIALES MENORES, HERRAMIENTAS, MANO DE OBRA ESPECIALIZADA  Y ACARREO DE MATERIALES AL SITIO DE SU COLOCACION.","PZA","7.0000",0,"CERO PESOS 00/100 M.N.",0,330791]
[543022,"SUMINISTRO Y COLOCACION DE INTERRUPTOR TERMOMAGNETICO DERIVADO CON 2 POLOS, DE 15-60 AMPERES, MCA. SQUARE D, CAT. QO. INCLUYE: PRUEBAS, MATERIALES MENORES, HERRAMIENTAS, MANO DE OBRA ESPECIALIZADA  Y ACARREO DE MATERIALES AL SITIO DE SU COLOCACION.","PZA","1.0000",0,"CERO PESOS 00/100 M.N.",0,330792]
[550221,"SUMINISTRO Y COLOCACION DE LUMINARIA HERMETICO DE SOBREPONER DE 2 X 16 WATTS, MCA. NOVALUX O SIMILAR, MOD. PISCIS, CAT. NVL-PIS-216-LED-P, EN GABINETE DE 1.27 X 0.17 MTS. FABRICADO EN RESINA POLIESTER Y FIBRA DE VIDRIO CON ACABADO A BASE DE PINTURA EN POLVO DE POLIESTER, APLICADA ELECTROSTATICAMENTE Y TERMOENDURECIDA, DIFUSOR DE ACRILICO DE ALTO IMPACTO TRANSPARENTE TERMOFORMADO, CON UNA REFLECTANCIA MINIMA DE 93%, IP-65 DISEÑADA A PRUEBA DE POLVO, VAPORES Y AGUA, PARA OPERAR CON DOS LAMPARA LED LINEAL T8, 16 WATTS CADA UNA, MULTIVOLTAJE 120-277 VOLTS , TEMPERATURA DE COLOR 4000°K, IRC>80,  VIDA UTIL DE 40,000 HRS., 2350 LUMENES TOTALES COMO MINIMO, DRIVER INTEGRADO , LA LUMINARIA (COMPLETA) DEBERA CUMPLIR CON LA NORMA ANCE, INCLUYE: MATERIALES DE FIJACION, LAMPARAS, PRUEBAS, COPIA DE CERTIFICACION ANCE ANEXA EN ELTRAMITE DE LA ESTIMACION, NIVELACION, MATERIALES MENORES Y DE CONSUMO, CONEXIONES, DESPERDICIOS, HERRAMIENTAS, ANDAMIOS, MANO DE OBRA, MATERIALES DE FIJACION, LIMPIEZA DEL AREA DE TRABAJO, Y ACARREO DE MATERIALES AL SITIO DE SU COLOCACION. A CUALQUIER ALTURA.","PZA","9.0000",0,"CERO PESOS 00/100 M.N.",0,330793]
[552022,"SUMINISTRO E INSTALACION DE FOTOCELDA CON BASE DE 1000 WATTS. 220 VOLTS.  INC.: MATERIALES MENORES, PRUEBAS Y ACARREO DE MATERIALES AL SITIO DE SU COLOCACION.","PZA","1.0000",0,"CERO PESOS 00/100 M.N.",0,330794]
[905629,"SUMINISTRO E INSTALACION DE LUMINARIO DE SOBREPONER MCA. HIGHLUMEN MOD. C-SBV20-S42TLC20-C, NOVALUX MOD. NOEII214.5LEDT8 MVSAPE, O SIMILAR, SISTEMA LED DE 30 WATTS. +- 8%, PARA OPERAR CON DOS TUBOS LED T8 (14-16 WATTS C/U), 4000°K, IRC>80, VIDA UTIL DE 40,000 HRS. 2350 LUMENES TOTALES COMO MINIMO, DRIVER INTEGRADO MULTIVOLTAJE 100-240 VOLTS , EN GABINETE METALICO FABRICADO EN LAMINA DE ACERO ROLADA EN FRIO CAL. 24 MINIMO, CON ACABADO EN POLVO POLIESTER EN APLICACION ELECTROSTÁTICA COLOR BLANCO, DIFUSOR ENVOLVENTE 100% ACRILICO, LA LUMINARIA (COMPLETA) DEBERA CUMPLIR CON LA NORMA ANCE, INCLUYE: ELEMENTOS DE FIJACION, CONEXION, MATERIALES MENORES Y DE CONSUMO, GARANTIAS, COPIA DE CERTIFICACION ANCE ANEXA EN ELTRAMITE DE LA ESTIMACION, HERRAMIENTAS, ANDAMIOS, MANO DE OBRA, PRUEBAS, LIMPIEZA Y ACARREOS.","PZA","7.0000",0,"CERO PESOS 00/100 M.N.",0,330795]
[905630,"SUMINISTRO E INSTALACION DE LUMINARIO DE SOBREPONER MCA. HIGHLUMEN MOD. C-SBV20-S43TLC20-C, NOVALUX MOD. NOEII314.5LEDT8 MVSAPE, O SIMILAR, SISTEMA LED DE 45 WATTS. +- 8%, PARA OPERAR CON TRES TUBOS LED T8 (14-16 WATTS C/U), 4000°K, IRC>80, VIDA UTIL DE 40,000 HRS. 3600 LUMENES TOTALES COMO MINIMO, DRIVER INTEGRADO MULTIVOLTAJE 100-240 VOLTS , EN GABINETE METALICO FABRICADO EN LAMINA DE ACERO ROLADA EN FRIO CAL. 24 MINIMO, CON ACABADO EN POLVO POLIESTER EN APLICACION ELECTROSTÁTICA COLOR BLANCO, DIFUSOR ENVOLVENTE 100% ACRILICO, LA LUMINARIA (COMPLETA) DEBERA CUMPLIR CON LA NORMA ANCE, INCLUYE: ELEMENTOS DE FIJACION, CONEXION, MATERIALES MENORES Y DE CONSUMO, GARANTIAS, COPIA DE CERTIFICACION ANCE ANEXA EN ELTRAMITE DE LA ESTIMACION, HERRAMIENTAS, ANDAMIOS, MANO DE OBRA, PRUEBAS, LIMPIEZA Y ACARREOS.","PZA","12.0000",0,"CERO PESOS 00/100 M.N.",0,330796]
[919549,"SUMINISTRO Y COLOCACION DE VENTILADOR DE USO CONTINUO DE 5 VELOCIDADES MARCA KDK CON ASPAS DE 56\" MODELO M56LG CON FUSIBLE TERMICO, SWITCH CORTACORRIENTE, SISTEMA DE PREVENCION CONTRA CAIDA DE ASPAS, MOTOR DE 78 WATTS A 120 VOLTS, CON UNA EFICIENCIA DE 176.9 M3/HR, INCLUYE: MATERIALES MENORES Y DE FIJACION, HERRAMIENTAS, LIMPIEZA, PRUEBAS, MANO DE OBRA, Y ACARREO AL SITIO DE SU COLOCACION.","PZA","2.0000",0,"CERO PESOS 00/100 M.N.",0,330797]
["F.14(530)","EQUIPOS E INSTALACIONES DE REDES DE VOZ Y DATOS.  ",null,null,null,null,{"$f":"TEXT(SUM(G130:G132), \"$ #,##0.00 ;\")","v":"$ 0.00 "}]
[524662,"SALIDA PARA EL SISTEMA DE RED DE VOZ Y/O DATOS, PARA SERVICIO A EQUIPOS DE COMPUTO EN AULA, LABORATORIO Y/O TALLER, FORMADA CON TUBERIA CONDUIT DE PVC TIPO PESADO DE 19 Y 25 MM DE DIAM, CAJA REGISTRO GALVANIZADA REFORZADA DE 120 X 120 MM CON TAPA REALZADA EN SALIDAS DE MURO, PISO Y/O LOSA, GUIADAS CON ALAMBRE GALVANIZADO CAL NO. 14,  INCLUYE: TRAZO, RANURAS, MATERIALES MENORES Y DE CONSUMO, ELEMENTOS DE  FIJACION, HERRAMIENTAS, PRUEBAS, MANO DE OBRA Y ACARREO DE MATERIALES.","SAL","4.0000",0,"CERO PESOS 00/100 M.N.",0,330798]
[524665,"SALIDA PARA EL SISTEMA DE RED DE VOZ Y/O DATOS, PARA SERVICIO A EQUIPOS DE COMPUTO EN LABORATORIO Y/O TALLER, FORMADA CON TUBERIA CONDUIT DE PVC TIPO PESADO DE 19, 25 Y 32 MM DE DIAM, CAJA REGISTRO GALVANIZADA DE 120 X 120 MM CON TAPA REALZADA EN SALIDAS DE MURO Y/O LOSA, GUIADAS CON ALAMBRE GALVANIZADO CAL NO. 14,  INCLUYE: TRAZO, RANURAS, MATERIALES MENORES Y DE CONSUMO, ELEMENTOS DE  FIJACION, HERRAMIENTAS, PRUEBAS, MANO DE OBRA Y ACARREO DE MATERIALES. (LONGITUD TOMADA DEL REGISTRO TELEFONICO AL SERVICIO-REGISTRO).","SAL","10.0000",0,"CERO PESOS 00/100 M.N.",0,330799]
[524771,"SUMINISTRO Y COLOCACION DE REGISTRO TELEFONICO CON FONDO DE MADERA Y MARCO DESATORNILLABLE DE 30 X 30 X 13 CMS. INCLUYE: MATERIALES MENORES Y ACARREO DE MATERIALES AL SITIO DE SU COLOCACION.\n","PZA","1.0000",0,"CERO PESOS 00/100 M.N.",0,330800]
["F.15(564)","INSTALACION HIDRAULICA, SANITARIA Y GAS EN EDIF.  ",null,null,null,null,{"$f":"TEXT(SUM(G134:G136), \"$ #,##0.00 ;\")","v":"$ 0.00 "}]
[570614,"SALIDA HIDRAULICA DE AGUA FRIA Y/O CALIENTE, PARA ALIMENTACION A MUEBLE SANITARIO, CONSISTENTE EN TUBERIA Y CONEXIONES DE CPVC DE 1/2\" A 2\" DE DIAMETRO,  INCLUYE: TRAZO, RANURAS, CAMARAS CONTRA GOLPE DE ARIETE, CONEXIONES, ( COPLES, CODOS, TAPONES, TEES, YEES, REDUCCIONES, ETC),  VALVULAS, TUERCAS UNION EN CUADROS DE VALVULAS, MATERIALES MENORES Y DE CONSUMO, PEGAMENTOS, ELEMENTOS DE FIJACION, DESPERDICIOS,  HERRAMIENTAS, LIMPIEZA, MANO DE OBRA, PRUEBAS HIDROSTATICAS, FLETES Y ACARREO DE LOS MATERIALES AL SITIO DE SU INSTALACION. (EN CUALQUIER NIVEL)","SAL","21.0000",0,"CERO PESOS 00/100 M.N.",0,330801]
[571102,"SALIDA SANITARIA A MUEBLE, CONSISTENTE EN TUBERIA Y CONEXIONES DE PVC DE 2\" Y 4\" DE DIAMETRO, INCLUYE: DESPERDICIO DE TUBERIA, LINEA DE VENTILACION (DESFOGUE),  COPLES, CODOS, TEES, YEES, REDUCCIONES, REGISTRO SANITARIO, MATERIALES MENORES, FLETES Y ACARREO DE LOS MATERIALES AL SITIO DE SU INSTALACION Y PRUEBAS.\n","SAL","32.0000",0,"CERO PESOS 00/100 M.N.",0,330802]
[592012,"SUMINISTRO Y COLOCACION DE CESPOL BOTE DE P.V.C. CON REJILLA CROMADA. INCLUYE: MATERIALES MENORES Y DE CONSUMO, HERRAMIENTAS, DESPERDICIOS, PRUEBAS, MANO DE OBRA Y ACARREO DE MATERIALES AL SITIO DE SU COLOCACION.","PZA","11.0000",0,"CERO PESOS 00/100 M.N.",0,330803]
["F.16(590)","MUEBLES DE BAÑO Y COCINA                          ",null,null,null,null,{"$f":"TEXT(SUM(G138:G149), \"$ #,##0.00 ;\")","v":"$ 0.00 "}]
[385040,"SUMINISTRO Y COLOCACION DE DISPENSADOR DE PAPEL HIGIENICO JUMBO JR, COLOR HUMO, MARCA KIMBERLY CLARK PROFESIONAL, MODELO 94208, INCLUYE: NIVELADO, PLOMEO, MATERIALES MENORES Y DE CONSUMO, ELEMENTOS DE FIJACION, EQUIPO,  HERRAMIENTA, LIMPIEZA, MANO DE OBRA Y ACARREOS AL SITIO DE SU INSTALACION. EN CUALQUIER NIVEL.","PZA","10.0000",0,"CERO PESOS 00/100 M.N.",0,330804]
[385060,"SUMINISTRO Y COLOCACION DE DESPACHADOR TOALLA INTERDOBLADA, COLOR HUMO, MARCA KIMBERLY CLARK PROFESIONAL, MODELO 92260, INCLUYE: NIVELADO, PLOMEO, MATERIALES MENORES Y DE CONSUMO, ELEMENTOS DE FIJACION, EQUIPO,  HERRAMIENTA, LIMPIEZA, MANO DE OBRA Y ACARREOS AL SITIO DE SU INSTALACIÓN. EN CUALQUIER NIVEL.","PZA","2.0000",0,"CERO PESOS 00/100 M.N.",0,330805]
[385066,"SUMINISTRO Y COLOCACION DE DESPACHADOR DE  JABON LIQUIDO, COLOR HUMO, MARCA KIMBERLY CLARK PROFESIONAL, MODELO 94236, INCLUYE: NIVELADO, PLOMEO, MATERIALES MENORES Y DE CONSUMO, ELEMENTOS DE FIJACION, EQUIPO,  HERRAMIENTA, LIMPIEZA, MANO DE OBRA Y ACARREOS AL SITIO DE SU INSTALACION. EN CUALQUIER NIVEL.","PZA","4.0000",0,"CERO PESOS 00/100 M.N.",0,330806]
[385302,"SUMINISTRO Y COLOCACION DE BARRA DE APOYO PARA DISCAPACITADOS DE ACERO INOXIDABLE PARA MINGITORIO (MULETAS) MOD. 7384-0 (1041) DE SANILOCK O SIMILAR CON CHAPETON, FIJADO A MURO. INCLUYE: ACCESORIOS Y MATERIALES DE FIJACION.","PZA","1.0000",0,"CERO PESOS 00/100 M.N.",0,330807]
[385306,"SUMINISTRO E INSTALACIÓN DE BARRA RECTA DE APOYO VERTICAL PARA DISCAPACITADOS FABRICADA CON PERFIL TUBULAR REDONDO, DE ACERO INOXIDABLE CAL.18, TIPO 304, ACABADO PULIDO, DE 1 1/4 (3.8 CM) DE DIÁMETRO Y 70 CM DE LONGITUD, MCA. SANILOCK, HELVEX O SIMILAR, INCLUYE: CHAPETONES, ACCESORIOS Y MATERIALES DE FIJACION, HERRAMIENTAS, MANO DE OBRA, EQUIPO, NIVELACIÓN, LIMPIEZA DEL ÁREA DE TRABAJO Y ACARREOS.","PZA","2.0000",0,"CERO PESOS 00/100 M.N.",0,330808]
[385312,"SUMINISTRO Y COLOCACION DE BARRA DE APOYO PARA DISCAPACITADOS DE ACERO INOXIDABLE PARA W.C. MOD. 7386-0 (1045) DE SANILOCK O SIMILAR CON CHAPETON, FIJADO A MURO. INCLUYE: ACCESORIOS Y MATERIALES DE FIJACION.","PZA","2.0000",0,"CERO PESOS 00/100 M.N.",0,330809]
[590030,"SUMINISTRO E INSTALACION DE INODORO PARA FLUXOMETRO, MODELO OLIMPICO FLUX, COLOR BLANCO, MARCA AMERICAN STANDARD, INCLUYE: ASIENTO DE PLASTICO, MATERIALES MENORES Y DE CONSUMO, ELEMENTOS DE FIJACION, LIMPIEZA, CUELLO DE CERA CON GUIA, PRUEBAS, HERRAMIENTAS, MANO DE OBRA Y ACARREO DE MATERIALES AL SITIO DE SU COLOCACION.","PZA","10.0000",0,"CERO PESOS 00/100 M.N.",0,330810]
[590163,"SUMINISTRO Y COLOCACION DE MINGITORIO PARA FLUXOMETRO, COLOR BLANCO, MCA. AMERICAN STANDARD, MODELO NIAGARA, O SIMILAR CON CESPOL INTEGRAL, INCLUYE: MATERIALES MENORES, HERRAMIENTAS, ELEMENTOS DE FIJACION, NIVELACION, PRUEBAS, MANO DE OBRA Y ACARREO DE MATERIALES AL SITIO DE SU COLOCACION.","PZA","3.0000",0,"CERO PESOS 00/100 M.N.",0,330811]
[590356,"SUMINISTRO Y COLOCACION DE VERTEDERO DE ACERO INOXIDABLE CAL. 18, TIPO 304 18/10, DE 40 X 40 X 26 M.,  INCLUYE: LLAVE DE CHORRO CROMADA FIG. 18-L, CHAPETON CROMADO, CONTRA CANASTA MCA. URREA FIG. 3801, MATERIALES MENORES Y DE CONSUMO, NIVELACION, SELLADO PERIMETRAL, PRUEBAS, HERRAMIENTAS, LIMPIEZA, MANO DE OBRA Y ACARREO AL SITIO DE SU COLOCACION.","PZA","2.0000",0,"CERO PESOS 00/100 M.N.",0,330812]
[591556,"SUMINISTRO Y COLOCACION DE FLUXOMETRO PARA W.C. DE PALANCA, MARCA HELVEX MODELO 110/32 O SIMILAR, INCLUYE: MATERIALES MENORES, PRUEBAS Y ACARREO DE MATERIALES AL SITIO DE SU COLOCACION, A CUALQUIER NIVEL.","PZA","10.0000",0,"CERO PESOS 00/100 M.N.",0,330813]
[591566,"SUMINISTRO Y COLOCACION DE FLUXOMETRO PARA MINGITORIO DE MANIJA MARCA HELVEX MODELO 185/19 O SIMILAR, INCLUYE: MATERIALES MENORES, PRUEBAS Y ACARREO DE MATERIALES AL SITIO DE SU COLOCACION, A CUALQUIER NIVEL.","PZA","3.0000",0,"CERO PESOS 00/100 M.N.",0,330814]
[907494,"SUMINISTRO Y COLOCACION DE  OVALINES DE DE SOBREPONER DE CEJA ANCHA, MARCA AMERICAN STANDARD MODELO RONDALYN MONOMANDO, INCLUYE: LLAVE ECONOMIZADORA MARCA HELVEX CROMADA MODELO TV-120, LLAVE ANGULAR MCA. URREA, FIG. 401, MANGUERA FLEXIBLE COFLEX, CESPOL CROMADO MCA. URREA FIG. 207, HERRAMIENTA, MATERIALES MENORES Y DE CONSUMO, ELEMENTOS DE FIJACION, LIMPIEZA, MANO DE OBRA Y ACARREO DEL MATERIAL AL SITIO DE SU UTILIZACION.","PZA","6.0000",0,"CERO PESOS 00/100 M.N.",0,330815]
["01","PLAZA Y ANDADORES",null,null,null,null,{"$f":"TEXT(SUM(G151 + G158 + G165 + G172 + G178), \"$ #,##0.00 ;\")","v":"$ 0.00 "}]
["01.01(140)","DEMOLICIONES, DESMONTAJES Y MECANICA DE SUELOS    ",null,null,null,null,{"$f":"TEXT(SUM(G152:G157), \"$ #,##0.00 ;\")","v":"$ 0.00 "}]
[140249,"DEMOLICION DE ARRIATE FORJADO A BASE DE LADRILLO DE LAMA Y/O BLOCK DE JALCRETO DE 15 CM. DE ESPESOR PROMEDIO, A SOGA EXISTENTE EN OBRA, CON UNA ALTURA PROMEDIO ENTRE 30 Y 70 CM.  INCLUYE: DEMOLICION DE DALAS Y CASTILLOS, HERRAMIENTA, LIMPIEZA, MANO DE OBRA Y RETIRO DE MATERIAL PRODUCTO DE LA DEMOLICION Y FUERA DE LA OBRA.","M2 ","18.4400",0,"CERO PESOS 00/100 M.N.",0,330816]
[140606,"DEMOLER ESCALONES FORJADOS EN LADRILLO DE LAMA Y/O BLOCK DE JALCRETO Y MORTERO CEM-ARENA  INCLUYE: HERRAMIENTAS, LIMPIEZA, MANO DE OBRA, CARGA Y RETIRO DE MATERIAL PRODUCTO DE DEMOLICIONES FUERA DE LA OBRA.\n","ML ","10.5000",0,"CERO PESOS 00/100 M.N.",0,330818]
[144116,"TALA Y RETIRO DE ARBOL DE TALLA CHICA CON UN DIAMETRO DEL TRONCO DE  DE 10 A 30 CMS.  Y CON UNA ALTURA TOTAL DE ENTRE 2.00 A 5.00 MTS., INCLUYE: TRAMITES DE PERMISOS, HERRAMIENTAS, EQUIPO DE SEGURIDAD Y SEÑALIZACION,  MANO DE OBRA ESPECIALIZADA Y CERTIFICADA, LIMPIEZA DEL AREA DE LOS TRABAJOS,  ACARREO Y RETIRO DE MATERIALES DE DESECHO  FUERA DE LA OBRA AL LUGAR PERMITIDO POR LAS AUTORIDADES CORRESPONDIENTES.","PZA","1.0000",0,"CERO PESOS 00/100 M.N.",0,330819]
[144122,"TALA Y RETIRO DE ARBOL DE TALLA MEDIANA CON UN DIAMETRO DEL TRONCO DE  DE 31 A 60 CMS.  Y CON UNA ALTURA TOTAL DE ENTRE 5.00 A 10.00 MTS., INCLUYE: TRAMITES DE PERMISOS, HERRAMIENTAS, EQUIPO DE SEGURIDAD Y SEÑALIZACION,  MANO DE OBRA ESPECIALIZADA Y CERTIFICADA, LIMPIEZA DEL AREA DE LOS TRABAJOS,  ACARREO Y RETIRO DE MATERIALES DE DESECHO  FUERA DE LA OBRA AL LUGAR PERMITIDO POR LAS AUTORIDADES CORRESPONDIENTES.","PZA","1.0000",0,"CERO PESOS 00/100 M.N.",0,330820]
[905183,"DEMOLICION DE BASE DE CONCRETO PARA ASTA BANDERA EXISTENTE EN OBRA, CON DIMENSIONES APROXIMADAS DE 40 X 40 X 50 CM.,  INCLUYE: DESMONTAJE DE ASTA CON RECUPERACION, DEMOLICION DE BASE RETIRO DE MATERIAL PRODUCTO DE LA DEMOLICION FUERA DE LA OBRA, MANO DE OBRA Y HERRAMIENTA.","PZA","1.0000",0,"CERO PESOS 00/100 M.N.",0,330821]
[929410,"DEMOLICION DE LOSA Y/O PISO DE CONCRETO  DE 15 CMS. DE ESPESOR PROMEDIO, EN RAMPAS, INCLUYE: ACARREO DE MATERIAL PRODUCTO DE LA DEMOLICION DENTRO Y FUERA DE LA OBRA, HERRAMIENTA, MANO DE OBRA .LIMPIEZA DEL AREA DE TRABAJO.","M2 ","3.7000",0,"CERO PESOS 00/100 M.N.",0,330822]
["01.02(150)","TRABAJOS PRELIMINARES                             ",null,null,null,null,{"$f":"TEXT(SUM(G159:G164), \"$ #,##0.00 ;\")","v":"$ 0.00 "}]
[150020,"LIMPIEZA DE TERRENO RETIRANDO BASURA Y DESHIERBE FUERA DE LA OBRA. INCLUYE: HERRAMIENTAS, MANO DE OBRA, RECOLECCION, JUNTA Y RETIRO. (PROYECCION DE CUBIERTA).","M2 ","114.4000",0,"CERO PESOS 00/100 M.N.",0,330823]
[150120,"TRAZO Y NIVELACION DE EXTERIORES ESTABLECIENDO REFERENCIAS DEFINITIVAS, CON TRANSITO Y NIVEL (EQUIPO TOPOGRAFICO), INCLUYE: PERSONAL TECNICO CALIFICADO, ESTACAS, MOJONERAS, LOCALIZACION DE EJES Y/O ENTRE EJES, BANCOS DE NIVEL, MATERIALES PARA SEÑALAMIENTO, EQUIPO, HERRAMIENTA Y MANO DE OBRA.","M2 ","262.4000",0,"CERO PESOS 00/100 M.N.",0,330828]
[150210,"DESPALME DE TERRENO NATURAL POR CUALQUIER MEDIO, CON ESPESOR PROMEDIO DE 20 CM. INCLUYE: CARGA Y ACARREO DEL PRODUCTO FUERA DE LA OBRA, MANO DE OBRA, HERRAMIENTA Y EQUIPO. (PROYECCION DE CUBIERTA).","M2 ","114.4000",0,"CERO PESOS 00/100 M.N.",0,330832]
[152202,"EXCAVACION EN CEPAS POR CUALQUIER MEDIO, MATERIAL TIPO \"A\", DE 0 A 2.00 M. DE PROFUNDIDAD, EN SECO, INCLUYE: AFINE DE TALUDES Y FONDO, TRAPALEOS,  MOVIMIENTOS Y ACARREOS DENTRO DE LA OBRA, HERRAMIENTAS Y MANO DE OBRA, MEDIDO EN BANCO.","M3 ","6.2000",0,"CERO PESOS 00/100 M.N.",0,330836]
[152402,"EXCAVACION A CIELO ABIERTO POR CUALQUIER MEDIO, MATERIAL TIPO \"A\", DE 0 A 2.00 M. DE PROFUNDIDAD, EN SECO, INCLUYE: AFINE DE TALUDES Y FONDO, TRAPALEOS,  MOVIMIENTOS Y ACARREOS DENTRO DE LA OBRA, HERRAMIENTAS Y MANO DE OBRA, MEDIDO EN BANCO.","M3 ","134.6000",0,"CERO PESOS 00/100 M.N.",0,330839]
[156002,"CARGA POR CUALQUIER MEDIO Y ACARREO EN CAMION DE MATERIAL DE DESPERDICIO PRODUCTO DE LAS EXCAVACIONES FUERA DE LA OBRA, A LUGAR PERMITIDO POR LAS AUTORIDADES CORRESPONDIENTES, MEDIDO EN BANCO. INCLUYE CARGA,  ACARREO Y DESCARGA A TIRO LIBRE, HERRAMIENTA, EQUIPO, MATERIALES DE CONSUMO Y MANO DE OBRA.","M3 ","140.8000",0,"CERO PESOS 00/100 M.N.",0,330842]
["01.03(160)","CIMENTACION                                       ",null,null,null,null,{"$f":"TEXT(SUM(G166:G171), \"$ #,##0.00 ;\")","v":"$ 0.00 "}]
[162002,"CIMIENTO DE PIEDRA BRAZA ACOMODADA PIEDRA POR PIEDRA, ASENTADA CON MORTERO CEMENTO-ARENA  EN PROPORCION 1:3. INCLUYE: MATERIALES, DESPERDICIOS, HERRAMIENTAS, LIMPIEZA, MANO DE OBRA Y ACARREO DE MATERIALES AL SITIO DE SU UTILIZACION.","M3 ","10.6000",0,"CERO PESOS 00/100 M.N.",0,330849]
[162302,"RODAPIE DE PIEDRA BRAZA, ACABADO APARENTE UNA CARA, ASENTADA CON MORTERO CEMENTO-ARENA 1:3. INCLUYE: MATERIALES, HERRAMIENTAS, PLOMEO,   LIMPIEZA, MANO DE OBRA Y ACARREO DE MATERIALES AL SITIO DE SU UTILIZACION.","M3 ","3.5000",0,"CERO PESOS 00/100 M.N.",0,330855]
[162404,"NIVELACION DE MURO DE MAMPOSTERIA CON RAJUELA DE PIEDRA BRAZA JUNTEADA CON MORTERO CEM-ARE 1:3. DE 0.10 M. DE ESPESOR X 0.40 M. DE ANCHO PROMEDIO. INCLUYE: NIVELACION, TRAZO, MANO DE OBRA Y HERRAMIENTA. (NO INCLUYE MATERIALES)","ML ","44.1000",0,"CERO PESOS 00/100 M.N.",0,330857]
[180054,"RELLENO EN CEPAS POR CUALQUIER MEDIO, CON MATERIAL DE BANCO, (ARENA LIMOSA) COMPACTADO AL 95% PROCTOR, EN CAPAS DE 15 CM, MEDIDO COMPACTO. INCLUYE:  SUMINISTRO DE AGUA PARA LOGRAR HUMEDAD OPTIMA, DESPERDICIOS, TENDIDO, TRASPALEOS,  EQUIPO, PRUEBAS DE COMPACTACION, AFINE, NIVELACION, HERRAMIENTAS, MANO DE OBRA Y  ACARREO HASTA EL SITIO DE SU COLOCACION.  (VOLUMEN MEDIDO COMPACTADO).","M3 ","2.6500",0,"CERO PESOS 00/100 M.N.",0,330870]
[180103,"RELLENO COMPACTADO AL 95% PROCTOR, CON MATERIAL DE BANCO, EN CAPAS DE 15 CM DE ESPESOR, AGREGANDO AGUA PARA LOGRAR SU HUMEDAD OPTIMA, POR CUALQUIER MEDIO, INCLUYE: SUMINISTRO DE AGUA PARA LOGRAR HUMEDAD OPTIMA, TENDIDO, TRASPALEOS,  DESPERDICIOS, EQUIPO, PRUEBAS DE COMPACTACION, AFINE, NIVELACION, HERRAMIENTAS, MANO DE OBRA Y  ACARREO HASTA EL SITIO DE SU COLOCACION.  (VOLUMEN MEDIDO COMPACTADO).","M3 ","199.3000",0,"CERO PESOS 00/100 M.N.",0,330872]
[180407,"RELLENO CON MATERIAL PRODUCTO DE LA EXCAVACION AGREGANDO CALHIDRA EN PROPORCION 25 KG/M3, COMPACTADO AL 95% PROCTOR, INCLUYE: ESCARIFICADO DEL TERRENO, HUMEDAD OPTIMA, MEZCLADO, TENDIDO, COMPACTACION POR CUALQUIER MEDIO EN CAPAS DE 15 CMS., NIVELADO, PRUEBAS DE COMPACTACION, TRASPALEOS, HERRAMIENTAS, MANO DE OBRA Y LOS ACARREOS NECESARIOS. MEDIDO COMPACTO.","M3 ","52.5000",0,"CERO PESOS 00/100 M.N.",0,330876]
["01.04(372)","PISOS                                             ",null,null,null,null,{"$f":"TEXT(SUM(G173:G177), \"$ #,##0.00 ;\")","v":"$ 0.00 "}]
[360455,"HABILITADO, SUMINISTRO Y COLOCACION DE PASAJUNTAS EN PISOS DE CONCRETO CON VARILLA DE REDONDO LISO DE 5/8\" DE DIAMETRO Y 50 CM. LONGITUD, ENCAMISADA CON POLIDUCTO NARANJA DE 3/4\" DIAM. (VER DETALLE CONSTRUCTIVO Y LOCALIZACION EN PLANOS), INCLUYE: GRASA MECANICA EN MANGUERA, NIVELACION, ELEMENTOS DE SUJECION, DESPERDICIOS, HERRAMIENTAS Y MANO DE OBRA.","PZA","171.0000",0,"CERO PESOS 00/100 M.N.",0,330904]
[360565,"SUMINISTRO Y COLOCACION DE MALLA ELECTROSOLDADA 6X6-10/10 COMO REFUERZO EN PISOS DE CONCRETO, INCLUYE: DESPERDICIOS, TRASLAPES, HERRAMIENTA Y ACARREO DEL MATERIAL AL SITIO DE SU COLOCACION.","M2 ","262.4000",0,"CERO PESOS 00/100 M.N.",0,330905]
[373022,"PISO DE CONCRETO F'C=150 KG/CM², T.M.A. 3/4\", DE 0.10 M. DE ESPESOR, COLADO EN CUADROS NO MAYORES DE 3.00 ML POR LADO, INCLUYE: TRAZO, NIVELACION, AFINE Y COMPACTACION DEL TERRENO, AGUA, DESPERDICIOS, ACARREOS, REGLEADO, ACABADO INTEGRAL RAYADO CON BROCHA DE PELO (SIN UTILIZACION DE PASTA), CIMBRA EN FRONTERAS, DESCIMBRA, COLADO, CURADO, REMATES, ESCALONADO, MUESTREADO, JUNTAS FRIAS CON VOLTEADOR, HERRAMIENTAS Y MANO DE OBRA.","M2 ","262.4000",0,"CERO PESOS 00/100 M.N.",0,330906]
[373766,"FORJADO DE NARIZ DE REMATE EN PISO DE  BANQUETAS, CON 10.0  X  10.0 CM. DE SECCION, INCLUYE SOLO: CIMBRA APARENTE, DESCIMBRA, GOTERO, FORJADO, CHAFLANES, PERFILADO, DESPERDICIOS, HERRAMIENTAS, Y MANO DE OBRA. (NO INCLUYE CONCRETO).","ML ","44.1000",0,"CERO PESOS 00/100 M.N.",0,330910]
[378301,"SUMINISTRO E INSTALACION DE GUIA PODOTACTIL COLOR AMARILLO DE 30 CM DE ANCHO, ELABORADA A BASE TABLETAS DE ARCILLA POLISINTETICA DE 30 X 30 CM., PARA ALTO TRAFICO, ANTIBACTERIAL, ANTIGRAFITI, RESISTENTE A CAMBIOS BRUSCOS DE TEMPERATURA, MARCA ARQCCESIBLE O SIMILAR EN GARANTIA, CALIDAD Y ESPECIFICACIONES, INCLUYE: GUIAS DE ADVERTENCIA, TRAZO, ADHESIVOS, DESPERDICIOS, ACARREOS, LIMPIEZA, MANO DE OBRA, HERRAMIENTA Y MATERIALES.","ML ","43.0000",0,"CERO PESOS 00/100 M.N.",0,330912]
["01.05(396)","LIMPIEZA                                          ",null,null,null,null,{"$f":"TEXT(SUM(G179:G179), \"$ #,##0.00 ;\")","v":"$ 0.00 "}]
[396012,"LIMPIEZA DE PISOS DE CONCRETO CON AGUA Y ACIDO MURIATICO AL 10%.","M2 ","262.4000",0,"CERO PESOS 00/100 M.N.",0,330922]
[82,"CUBIERTA PARA PATIO CIVICO",null,null,null,null,{"$f":"TEXT(SUM(G181 + G183 + G187 + G198 + G203 + G205 + G207 + G211), \"$ #,##0.00 ;\")","v":"$ 0.00 "}]
["82.01(140)","DEMOLICIONES, DESMONTAJES Y MECANICA DE SUELOS    ",null,null,null,null,{"$f":"TEXT(SUM(G182:G182), \"$ #,##0.00 ;\")","v":"$ 0.00 "}]
[140602,"DEMOLICION DE FIRME Y/O PISO DE CONCRETO DE 10 CM DE ESPESOR PROMEDIO, EN SECCIONES OBLIGADAS, INC. CORTE CON DISCO PARA DELIMITAR AREA DE DEMOLICION; MANO DE OBRA, HERRAMIENTA, EQUIPO,  CARGA Y ACARREO INTERIOR Y FUERA DE LA OBRA DEL MATERIAL PRODUCTO DE LA DEMOLICION.","M2 ","18.0000",0,"CERO PESOS 00/100 M.N.",0,330817]
["82.02(150)","TRABAJOS PRELIMINARES                             ",null,null,null,null,{"$f":"TEXT(SUM(G184:G186), \"$ #,##0.00 ;\")","v":"$ 0.00 "}]
[150120,"TRAZO Y NIVELACION DE EXTERIORES ESTABLECIENDO REFERENCIAS DEFINITIVAS, CON TRANSITO Y NIVEL (EQUIPO TOPOGRAFICO), INCLUYE: PERSONAL TECNICO CALIFICADO, ESTACAS, MOJONERAS, LOCALIZACION DE EJES Y/O ENTRE EJES, BANCOS DE NIVEL, MATERIALES PARA SEÑALAMIENTO, EQUIPO, HERRAMIENTA Y MANO DE OBRA.","M2 ","356.4000",0,"CERO PESOS 00/100 M.N.",0,330831]
[152022,"EXCAVACION EN CEPAS POR CUALQUIER MEDIO, MATERIAL TIPO \"A\", DE 2.01 A 4.00 M. DE PROFUNDIDAD, EN SECO, INCLUYE: AFINE DE TALUDES Y FONDO Y ACARREOS DEL MATERIAL EXCEDENTE FUERA DE LA OBRA AL LUGAR INDICADO POR LA SUPERVISION, MEDIDO EN BANCO.","M3 ","25.2000",0,"CERO PESOS 00/100 M.N.",0,330835]
[156002,"CARGA POR CUALQUIER MEDIO Y ACARREO EN CAMION DE MATERIAL DE DESPERDICIO PRODUCTO DE LAS EXCAVACIONES FUERA DE LA OBRA, A LUGAR PERMITIDO POR LAS AUTORIDADES CORRESPONDIENTES, MEDIDO EN BANCO. INCLUYE CARGA,  ACARREO Y DESCARGA A TIRO LIBRE, HERRAMIENTA, EQUIPO, MATERIALES DE CONSUMO Y MANO DE OBRA.","M3 ","25.2000",0,"CERO PESOS 00/100 M.N.",0,330846]
["82.03(160)","CIMENTACION                                       ",null,null,null,null,{"$f":"TEXT(SUM(G188:G197), \"$ #,##0.00 ;\")","v":"$ 0.00 "}]
[160092,"PLANTILLA DE RELLENO DE EMBECO NO. 636, DE 5.0 CM DE ESPESOR PROMEDIO, PARA RECIBIR PLACA BASE DE COLUMNAS DE ESTRUCTURA METALICAS, INCLUYE: PREPARACION, CIMBRA, DESCIMBRADO, MATERIALES, DESPERDICIOS, HERRAMIENTAS, LIMPIEZAS Y MANO DE OBRA.","M2 ","1.6000",0,"CERO PESOS 00/100 M.N.",0,330847]
[160222,"PLANTILLA DE CONCRETO F'C=100 KG/CM2, TMA=3/4\", DE 5.00 CM DE ESPESOR PROMEDIO. INCLUYE: MATERIALES, HERRAMIENTAS, AFINE, NIVELACION, LIMPIEZA, MANO DE OBRA Y ACARREO DE MATERIALES AL SITIO DE SU UTILIZACION.","M2 ","18.0000",0,"CERO PESOS 00/100 M.N.",0,330848]
[170012,"CIMBRA  ACABADO COMUN, EN CIMENTACION, INCLUYE: DESPERDICIO, HABILITADO, CIMBRADO Y DESCIMBRA, NIVELACION, PLOMEO MATERIAL, MANO DE OBRA , LIMPIEZA, HERRAMIENTA, ACARREO DEL MATRIAL DENTRO Y FUERA DE LA OBRA.","M2 ","23.6000",0,"CERO PESOS 00/100 M.N.",0,330863]
[173003,"SUMINISTRO, HABILITADO, ARMADO Y COLOCACION DE ACERO DE REFUERZO FY=4,200 KG/CM2 (G.E.), DE 3/8\" ( #3 ), EN CIMENTACION, INCLUYE: MATERIALES, HABILITADO,  DOBLECES,  SILLETAS, ALAMBRE, GANCHOS, ESCUADRAS, TRASLAPES, DESPERDICIOS HERRAMIENTAS, MANO DE OBRA Y ACARREO DE MATERIALES AL SITIO DE SU COLOCACION.","KG ","213.9200",0,"CERO PESOS 00/100 M.N.",0,330864]
[173004,"SUMINISTRO, HABILITADO, ARMADO Y COLOCACION DE ACERO DE REFUERZO FY=4,200 KG/CM2 (G.E.), DE 1/2\" ( #4 ), EN CIMENTACION, INCLUYE: MATERIALES, HABILITADO,  DOBLECES,  SILLETAS, ALAMBRE, GANCHOS, ESCUADRAS, TRASLAPES, DESPERDICIOS HERRAMIENTAS, MANO DE OBRA Y ACARREO DE MATERIALES AL SITIO DE SU COLOCACION.","KG ","92.0000",0,"CERO PESOS 00/100 M.N.",0,330865]
[173008,"SUMINISTRO, HABILITADO, ARMADO Y COLOCACION DE ACERO DE REFUERZO FY=4,200 KG/CM2 (G.E.), DE 1\" (#8 ), EN CIMENTACION, INCLUYE: MATERIALES, HABILITADO,  DOBLECES,  SILLETAS, ALAMBRE, GANCHOS, ESCUADERAS, TRASLAPES, DESPERDICIOS HERRAMIENTAS, MANO DE OBRA Y ACARREO DE MATERIALES AL SITIO DE SU COLOCACION.","KG ","475.6000",0,"CERO PESOS 00/100 M.N.",0,330866]
[176008,"SUMINISTRO Y COLOCACION DE CONCRETO HECHO EN OBRA F'C=250 KG/CM2, TMA= 3/4\", R.N. EN CIMENTACION. INCLUYE: TENDIDO, RASTREADO, VIBRADO, NIVELACION, HERRAMIENTAS, LIMPIEZA, PRUEBAS,  CURADO CON CURACRETO ROJO,  DESPERDICIO Y MANO DE OBRA.","M3 ","5.3000",0,"CERO PESOS 00/100 M.N.",0,330867]
[180103,"RELLENO COMPACTADO AL 95% PROCTOR, CON MATERIAL DE BANCO, EN CAPAS DE 15 CM DE ESPESOR, AGREGANDO AGUA PARA LOGRAR SU HUMEDAD OPTIMA, POR CUALQUIER MEDIO, INCLUYE: SUMINISTRO DE AGUA PARA LOGRAR HUMEDAD OPTIMA, TENDIDO, TRASPALEOS,  DESPERDICIOS, EQUIPO, PRUEBAS DE COMPACTACION, AFINE, NIVELACION, HERRAMIENTAS, MANO DE OBRA Y  ACARREO HASTA EL SITIO DE SU COLOCACION.  (VOLUMEN MEDIDO COMPACTADO).","M3 ","20.1500",0,"CERO PESOS 00/100 M.N.",0,330875]
[180407,"RELLENO CON MATERIAL PRODUCTO DE LA EXCAVACION AGREGANDO CALHIDRA EN PROPORCION 25 KG/M3, COMPACTADO AL 95% PROCTOR, INCLUYE: ESCARIFICADO DEL TERRENO, HUMEDAD OPTIMA, MEZCLADO, TENDIDO, COMPACTACION POR CUALQUIER MEDIO EN CAPAS DE 15 CMS., NIVELADO, PRUEBAS DE COMPACTACION, TRASPALEOS, HERRAMIENTAS, MANO DE OBRA Y LOS ACARREOS NECESARIOS. MEDIDO COMPACTO.","M3 ","3.6000",0,"CERO PESOS 00/100 M.N.",0,330878]
[192324,"FABRICACION, SUMINISTRO Y COLOCACION DE JUEGO DE ANCLAS EN \"L\" DE REDONDO LISO (COLD ROLLED) CON 4 VARILLAS DE 1\" (#8), DE 70 CM DE DESARROLLO TOTAL (CADA ANCLA), CON 10 CM. DE ROSCA EN EXTREMO SUPERIOR, UNIDAS CON 2 ANILLETAS DE DE VARILLA CORRUGADA DE 3/8\" Y ALINEADAS A LA PLACA EN LA BASE DE COLUMNA. INCLUYE: CORTES, ROSCADO, DESPERDICIOS, ALINEACION, NIVELACION, PLOMEO, SOLDADURA, DOBLECES, TUERCAS, RONDANAS,  MANO DE OBRA, EQUIPO, HERRAMIENTA Y ACARREOS.","JGO","8.0000",0,"CERO PESOS 00/100 M.N.",0,330879]
["82.04(200)","ESTRUCTURA                                        ",null,null,null,null,{"$f":"TEXT(SUM(G199:G202), \"$ #,##0.00 ;\")","v":"$ 0.00 "}]
[280090,"SUMINISTRO, HABILITADO Y MONTAJE DE ESTRUCTURA METALICA DE ACERO ASTMA-36 F'Y=2530 KG/CM2, SOLDADOS Y/O ATORNILLADOS, (PERFILES IPR. IPS, CPS, REDONDOS SOLIDO, SOLERAS Y PLACAS, ETC, DIFERENTES DIMENSIONES Y CALIBRES,) PARA COLUMNAS, ARMADURAS, TRABES Y VIGAS, INCLUYE: MATERIALES MENORES Y DE CONSUMO, TRAZO, CORTES, AJUSTES, DESPERDICIOS, ENDEREZADO, BISELADO, DESCALIBRES, BARRENOS, TORQUES, SOLDADURA, UNA PRUEBA RADIOGRAFICA Y/O LIQUIDOS PENETRANTES POR CADA 500 KG. DE ACERO, FLETES, PINTURA ANTICORROSIVA, MANO DE OBRA CALIFICADA, HERRAMIENTA, EQUIPO, FLETES, ELEVACIONES, ACARREOS DE MATERIALES AL SITIO DE SU COLOCACION, ACUALQUIER ALTURA.","KG ","418.0000",0,"CERO PESOS 00/100 M.N.",0,330886]
[280095,"SUMINISTRO, HABILITADO Y MONTAJE DE ESTRUCTURA METALICA DE ACERO, ASTM A-500 GR-B, F'Y=3200 KG/CM2, SOLDADOS Y/O ATORNILLADOS, (OR, OC, TUBOS REDONDOS, PTR, ETC, DIFERENTES DIMENSIONES Y CALIBRES,) PARA COLUMNAS, ARMADURAS, TRABES Y VIGAS, INCLUYE: MATERIALES MENORES Y DE CONSUMO, TRAZO, CORTES, AJUSTES, DESPERDICIOS, ENDEREZADO, BISELADO, DESCALIBRES, BARRENOS, TORQUES, SOLDADURA, UNA PRUEBA RADIOGRAFICA Y/O LIQUIDOS PENETRANTES POR CADA 500 KG. DE ACERO, FLETES, PINTURA ANTICORROSIVA, MANO DE OBRA CALIFICADA, HERRAMIENTA, ANDAMIOS, EQUIPO, FLETES, ELEVACIONES, ACARREOS DE MATERIALES AL SITIO DE SU COLOCACION, A CUALQUIER ALTURA.","KG ","2,615.0000",0,"CERO PESOS 00/100 M.N.",0,330887]
[280096,"SUMINISTRO, HABILITADO, ROLADO Y MONTAJE DE ESTRUCTURA METALICA DE ACERO, ASTM A-500 GR-B, F'Y=3200 KG/CM2, SOLDADOS Y/O ATORNILLADOS, (OR, OC, TUBOS REDONDOS, PTR, ETC, DIFERENTES DIMENSIONES Y CALIBRES,) PARA COLUMNAS, ARMADURAS, TRABES Y VIGAS, INCLUYE: MATERIALES MENORES Y DE CONSUMO, TRAZO, CORTES, AJUSTES, DESPERDICIOS, ENDEREZADO, ROLADO, BISELADO, DESCALIBRES, BARRENOS, TORQUES, SOLDADURA, UNA PRUEBA RADIOGRAFICA Y/O LIQUIDOS PENETRANTES POR CADA 500 KG. DE ACERO, FLETES, PINTURA ANTICORROSIVA, MANO DE OBRA CALIFICADA, HERRAMIENTA, ANDAMIOS, EQUIPO, FLETES, ELEVACIONES, ACARREOS DE MATERIALES AL SITIO DE SU COLOCACION, A CUALQUIER ALTURA.","KG ","2,435.0000",0,"CERO PESOS 00/100 M.N.",0,330888]
[280202,"SUMINISTRO, HABILITADO  Y COLOCACION TENSORES, CRUCETAS Y/O TIRANTES DE REDONDO LISO (COLD ROLLED) DE ACERO DE BAJO CARBÓN ASTM A-108 DE ½\" A 1\" DE DIAMETRO, INCLUYE: TRAZO, CORTES, AJUSTES, BARRENOS, DESPERDICOS, DESCALIBRES, SOLDADURA DE PENETRACION, PRUEBAS RADIOGRAFICAS Y/O LIQUIDOS PENETRANTES, ROSCADO, TUERCAS, RONDANAS, TENSADO, TORQUES, FLETES, HERRAMIENTAS, ANDAMIOS, EQUIPO, PINTURA ANTICORROSIVA, MANO DE OBRA Y ACARREOS AL SITIO DE SU COLOCACION. A CUALQUIER ALTURA.","KG ","264.0000",0,"CERO PESOS 00/100 M.N.",0,330889]
["82.05(319)","ENTREPISOS, CUBIERTA Y ACABADOS DE AZOTEA         ",null,null,null,null,{"$f":"TEXT(SUM(G204:G204), \"$ #,##0.00 ;\")","v":"$ 0.00 "}]
[906752,"SUMINISTRO E INSTALACION DE MEMBRANA ARQUITECTONICA BLACK OUT PVC/PVDF, PESO 850 G/M2, TIPO I RESISTENCIA A LA RUPTURA: 3000 N/5CM, RESISTENCIA AL RASGADO 300 N, ADHESIÓN DE 100 A 120 N/5CM, AUTO-EXTINGUIBLE O TRATAMIENTO AL FUEGO, TRANSMITANCIA UV < 0.1%, TRATAMIENTO ANTI-HONGOS Y DURABILIDAD DE 15 AÑOS COMO MÍNIMO, UNIDAD CON TERMO SELLADO, INCLUYE: TRAZO, CORTES, CONFECCIÓN, HERRAJES, TENSORES, MATERIALES MENORES Y DE CONSUMO, DESPERDICIOS, ELEVACIÓN, HERRAMIENTAS, EQUIPO,  ELEMENTOS DE FIJACION, SELLADO, LIMPIEZA, MANO DE OBRA ESPECIALIZADA, FLETES Y ACARREOS.","M2 ","344.1500",0,"CERO PESOS 00/100 M.N.",0,330900]
["82.06(372)","PISOS                                             ",null,null,null,null,{"$f":"TEXT(SUM(G206:G206), \"$ #,##0.00 ;\")","v":"$ 0.00 "}]
[373022,"PISO DE CONCRETO F'C=150 KG/CM², T.M.A. 3/4\", DE 0.10 M. DE ESPESOR, COLADO EN CUADROS NO MAYORES DE 3.00 ML POR LADO, INCLUYE: TRAZO, NIVELACION, AFINE Y COMPACTACION DEL TERRENO, AGUA, DESPERDICIOS, ACARREOS, REGLEADO, ACABADO INTEGRAL RAYADO CON BROCHA DE PELO (SIN UTILIZACION DE PASTA), CIMBRA EN FRONTERAS, DESCIMBRA, COLADO, CURADO, REMATES, ESCALONADO, MUESTREADO, JUNTAS FRIAS CON VOLTEADOR, HERRAMIENTAS Y MANO DE OBRA.","M2 ","18.0000",0,"CERO PESOS 00/100 M.N.",0,330907]
["82.07(393)","PINTURA                                           ",null,null,null,null,{"$f":"TEXT(SUM(G208:G210), \"$ #,##0.00 ;\")","v":"$ 0.00 "}]
[393318,"PINTURA DE ESMALTE ALQUIDALICO ANTICORROSIVO, ACABADO BRILLANTE, PARA INTERIORES Y EXTERIORES QUE NO DESPRENDA VAPORES TÓXICOS NI OLORES DESAGRADABLES, CON LAS SIGUIENTES CARACTERÍSTICAS ( SÓLIDOS POR PESO 49-60%, SÓLIDOS POR VOLUMEN 40-46%, VISCOSIDAD DE 110-160 UK A 25°C, DENSIDAD 0.9-1.2 TON/M3., BRILLO A 60°C, 90%, TIEMPO DE SECADO AL TACTO, < O = 6 HRS., TIEMPO DE SECADO DURO < O = 24 HRS., ADHERENCIA 100%, RENDIMIENTO EN SUP. LISA 8-10 M2/LT., DILUCIÓN MÁXIMA (AGUARRÁS, THINER), 15 %,  DE TUBO DE FIERRO NEGRO DE 4\" A 6\" DE DIÁMETRO, (POSTES, PASAMANOS, BARANDALES, ESTRUCTURAS, REDES, ETC.), TRABAJO TERMINADO, A DOS MANOS, INCLUYE: MATERIALES MENORES Y DE CONSUMO, PREPARACION DE LA SUPERFICIE, ANDAMIOS, HERRAMIENTAS, LIMPIEZA, MANO DE OBRA Y  EQUIPO DE SEGURIDAD. CUALQUIER ALTURA.","ML ","235.5000",0,"CERO PESOS 00/100 M.N.",0,330918]
[393319,"PINTURA DE ESMALTE ALQUIDALICO ANTICORROSIVO, ACABADO BRILLANTE, PARA INTERIORES Y EXTERIORES QUE NO DESPRENDA VAPORES TÓXICOS NI OLORES DESAGRADABLES, CON LAS SIGUIENTES CARACTERÍSTICAS ( SÓLIDOS POR PESO 49-60%, SÓLIDOS POR VOLUMEN 40-46%, VISCOSIDAD DE 110-160 UK A 25°C, DENSIDAD 0.9-1.2 TON/M3., BRILLO A 60°C, 90%, TIEMPO DE SECADO AL TACTO, < O = 6 HRS., TIEMPO DE SECADO DURO < O = 24 HRS., ADHERENCIA 100%, RENDIMIENTO EN SUP. LISA 8-10 M2/LT., DILUCIÓN MÁXIMA (AGUARRÁS, THINER), 15 %,   EN TUBO DE FIERRO NEGRO DE 3/4\" A 1 1/2\" DE DIÁMETRO, (POSTES, PASAMANOS, BARANDALES, REDES, ETC.),  TRABAJO TERMINADO, A DOS MANOS, INCLUYE: MATERIALES MENORES Y DE CONSUMO, PREPARACION DE LA SUPERFICIE, ANDAMIOS, HERRAMIENTAS, LIMPIEZA, MANO DE OBRA Y  EQUIPO DE SEGURIDAD. CUALQUIER ALTURA.","ML ","65.6000",0,"CERO PESOS 00/100 M.N.",0,330919]
[917337,"PINTURA DE ESMALTE ALQUIDALICO ANTICORROSIVO, ACABADO BRILLANTE, PARA INTERIORES Y EXTERIORES QUE NO DESPRENDA VAPORES TÓXICOS NI OLORES DESAGRADABLES, CON LAS SIGUIENTES CARACTERÍSTICAS ( SÓLIDOS POR PESO 49-60%, SÓLIDOS POR VOLUMEN 40-46%, VISCOSIDAD DE 110-160 UK A 25°C, DENSIDAD 0.9-1.2 TON/M3., BRILLO A 60°C, 90%, TIEMPO DE SECADO AL TACTO, < O = 6 HRS., TIEMPO DE SECADO DURO < O = 24 HRS., ADHERENCIA 100%, RENDIMIENTO EN SUP. LISA 8-10 M2/LT., DILUCIÓN MÁXIMA (AGUARRÁS, THINER), 15 %,  DE TUBO DE FIERRO NEGRO DE 8\" A 10\" DE DIÁMETRO, (POSTES, PASAMANOS, BARANDALES, ESTRUCTURAS, REDES, ETC.), TRABAJO TERMINADO, A DOS MANOS, INCLUYE: MATERIALES MENORES Y DE CONSUMO, PREPARACION DE LA SUPERFICIE, ANDAMIOS, HERRAMIENTAS, LIMPIEZA, MANO DE OBRA Y  EQUIPO DE SEGURIDAD. CUALQUIER ALTURA.","ML ","40.8000",0,"CERO PESOS 00/100 M.N.",0,330921]
["82.08(396)","LIMPIEZA                                          ",null,null,null,null,{"$f":"TEXT(SUM(G212:G212), \"$ #,##0.00 ;\")","v":"$ 0.00 "}]
[396428,"LIMPIEZA GENERAL DE LA OBRA, INCLUYE: ACARREO DEL MATERIAL PRODUCTO DE LA LIMPIEZA , FUERA DE LA OBRA.","M2 ","356.4000",0,"CERO PESOS 00/100 M.N.",0,330925]
[15,"CUARTO DE MAQUINAS",null,null,null,null,{"$f":"TEXT(SUM(G214 + G221 + G231 + G235 + G240 + G246 + G250 + G253 + G255 + G260 + G262 + G266 + G275), \"$ #,##0.00 ;\")","v":"$ 0.00 "}]
["15.01(150)","TRABAJOS PRELIMINARES                             ",null,null,null,null,{"$f":"TEXT(SUM(G215:G220), \"$ #,##0.00 ;\")","v":"$ 0.00 "}]
[150020,"LIMPIEZA DE TERRENO RETIRANDO BASURA Y DESHIERBE FUERA DE LA OBRA. INCLUYE: HERRAMIENTAS, MANO DE OBRA, RECOLECCION, JUNTA Y RETIRO. (PROYECCION DE CUBIERTA).","M2 ","6.3000",0,"CERO PESOS 00/100 M.N.",0,330824]
[150110,"TRAZO Y NIVELACION DE EDIFICIOS ESTABLECIENDO REFERENCIAS DEFINITIVAS, CON TRANSITO Y NIVEL (EQUIPO TOPOGRAFICO), INCLUYE: PERSONAL TECNICO CALIFICADO, ESTACAS, MOJONERAS, LOCALIZACION DE ENTRE EJES, BANCOS DE NIVEL, MATERIALES PARA SEÑALAMIENTO, EQUIPO, HERRAMIENTA Y MANO DE OBRA.","M2 ","6.3000",0,"CERO PESOS 00/100 M.N.",0,330827]
[150210,"DESPALME DE TERRENO NATURAL POR CUALQUIER MEDIO, CON ESPESOR PROMEDIO DE 20 CM. INCLUYE: CARGA Y ACARREO DEL PRODUCTO FUERA DE LA OBRA, MANO DE OBRA, HERRAMIENTA Y EQUIPO. (PROYECCION DE CUBIERTA).","M2 ","6.3000",0,"CERO PESOS 00/100 M.N.",0,330833]
[152204,"EXCAVACION EN CEPAS POR CUALQUIER MEDIO, MATERIAL TIPO \"B\", DE 0 A 2.00 M. DE PROFUNDIDAD, EN SECO, INCLUYE: AFINE DE TALUDES Y FONDO, TRASPALEOS,  MOVIMIENTOS Y ACARREOS DENTRO DE LA OBRA, HERRAMIENTAS Y MANO DE OBRA, MEDIDO EN BANCO.","M3 ","0.8200",0,"CERO PESOS 00/100 M.N.",0,330837]
[152404,"EXCAVACION A CIELO ABIERTO EN CAJON POR CUALQUIER MEDIO, MATERIAL TIPO \"B\", DE 0 A 2.00 M. DE PROFUNDIDAD, EN SECO, INCLUYE: AFINE DE TALUDES Y FONDO, TRAPALEOS,  MOVIMIENTOS Y ACARREOS DENTRO DE LA OBRA, HERRAMIENTAS Y MANO DE OBRA, MEDIDO EN BANCO.","M3 ","1.2600",0,"CERO PESOS 00/100 M.N.",0,330840]
[156002,"CARGA POR CUALQUIER MEDIO Y ACARREO EN CAMION DE MATERIAL DE DESPERDICIO PRODUCTO DE LAS EXCAVACIONES FUERA DE LA OBRA, A LUGAR PERMITIDO POR LAS AUTORIDADES CORRESPONDIENTES, MEDIDO EN BANCO. INCLUYE CARGA,  ACARREO Y DESCARGA A TIRO LIBRE, HERRAMIENTA, EQUIPO, MATERIALES DE CONSUMO Y MANO DE OBRA.","M3 ","1.7600",0,"CERO PESOS 00/100 M.N.",0,330843]
["15.02(160)","CIMENTACION                                       ",null,null,null,null,{"$f":"TEXT(SUM(G222:G230), \"$ #,##0.00 ;\")","v":"$ 0.00 "}]
[162002,"CIMIENTO DE PIEDRA BRAZA ACOMODADA PIEDRA POR PIEDRA, ASENTADA CON MORTERO CEMENTO-ARENA  EN PROPORCION 1:3. INCLUYE: MATERIALES, DESPERDICIOS, HERRAMIENTAS, LIMPIEZA, MANO DE OBRA Y ACARREO DE MATERIALES AL SITIO DE SU UTILIZACION.","M3 ","1.5000",0,"CERO PESOS 00/100 M.N.",0,330850]
[162404,"NIVELACION DE MURO DE MAMPOSTERIA CON RAJUELA DE PIEDRA BRAZA JUNTEADA CON MORTERO CEM-ARE 1:3. DE 0.10 M. DE ESPESOR X 0.40 M. DE ANCHO PROMEDIO. INCLUYE: NIVELACION, TRAZO, MANO DE OBRA Y HERRAMIENTA. (NO INCLUYE MATERIALES)","ML ","6.2500",0,"CERO PESOS 00/100 M.N.",0,330858]
[167220,"DALA DE DESPLANTE DE CONCRETO F´C= 150 KG/CM2, T.M.A.= 3/4\", CON SECCION DE 14 X 25 CM., ARMADA CON 4 VARILLAS DEL #3 Y ESTRIBOS DEL #2 @ 20 CM., INCLUYE: ARMADO, COLADO, CURADO, VIBRADO, CIMBRA COMUN, DESCIMBRA, DESPERDICIOS, TRASLAPES, CRUCES DE VARILLAS CON ELEMENTOS TRANSVERSALES, ANDAMIOS, MANO DE OBRA, HERRAMIENTA Y ACARREO DE MATERIALES AL SITIO DE SU UTILIZACION, A CUALQUIER ALTURA.","ML ","5.9900",0,"CERO PESOS 00/100 M.N.",0,330861]
[167514,"DALA DE CONCRETO EN REMATE DE CIMENTACION, F'C=250 KG/CM2, T.M.A.=3/4\", CON SECCION DE 40 X 15 CMS., ARMADA CON 4 VARILLAS DEL # 4 Y ESTRIBOS DEL # 3 @ 20 CMS., INCLUYE: ARMADO, COLADO, CURADO, VIBRADO, CIMBRA COMUN, DESCIMBRA, DESPERDICIOS, MANO DE OBRA, HERRAMIENTA Y ACARREO DE MATERIALES AL SITIO DE SU UTILIZACION.","ML ","2.9900",0,"CERO PESOS 00/100 M.N.",0,330862]
[180002,"RELLENO EN CEPAS POR CUALQUIER MEDIO, CON MATERIAL PRODUCTO DE EXCAVACION, COMPACTADO AL 90% PROCTOR, EN CAPAS DE 20 CM, MEDIDO COMPACTO. INCLUYE: SUMINISTRO DE AGUA PARA LOGRAR HUMEDAD OPTIMA, TENDIDO, TRASPALEOS,  EQUIPO, PRUEBAS DE COMPACTACION, AFINE, NIVELACION, HERRAMIENTAS, MANO DE OBRA Y  ACARREO HASTA EL SITIO DE SU COLOCACION. (MEDIDO EN BANCO).","M3 ","0.3200",0,"CERO PESOS 00/100 M.N.",0,330868]
[180103,"RELLENO COMPACTADO AL 95% PROCTOR, CON MATERIAL DE BANCO, EN CAPAS DE 15 CM DE ESPESOR, AGREGANDO AGUA PARA LOGRAR SU HUMEDAD OPTIMA, POR CUALQUIER MEDIO, INCLUYE: SUMINISTRO DE AGUA PARA LOGRAR HUMEDAD OPTIMA, TENDIDO, TRASPALEOS,  DESPERDICIOS, EQUIPO, PRUEBAS DE COMPACTACION, AFINE, NIVELACION, HERRAMIENTAS, MANO DE OBRA Y  ACARREO HASTA EL SITIO DE SU COLOCACION.  (VOLUMEN MEDIDO COMPACTADO).","M3 ","3.4700",0,"CERO PESOS 00/100 M.N.",0,330873]
[180407,"RELLENO CON MATERIAL PRODUCTO DE LA EXCAVACION AGREGANDO CALHIDRA EN PROPORCION 25 KG/M3, COMPACTADO AL 95% PROCTOR, INCLUYE: ESCARIFICADO DEL TERRENO, HUMEDAD OPTIMA, MEZCLADO, TENDIDO, COMPACTACION POR CUALQUIER MEDIO EN CAPAS DE 15 CMS., NIVELADO, PRUEBAS DE COMPACTACION, TRASPALEOS, HERRAMIENTAS, MANO DE OBRA Y LOS ACARREOS NECESARIOS. MEDIDO COMPACTO.","M3 ","1.3000",0,"CERO PESOS 00/100 M.N.",0,330877]
[192862,"BASE PARA CASTILLO DE 40 X 40 X 40 CM, EN CIMENTACION DE PIEDRA, CON CONCRETO F'C=150 KG/CM2, TMA=3/4\", CON 4 VARILLAS DE 3/8\" DE DIAMETRO Y ESTRIBOS DE 1/4\" @ 20.0 CM. CIMBRA COMUN,  INCLUYE: CIMBRADO Y DESCIMBRADO, COLADO, VIBRADO, CURADO, MATERIALES, DESPERDICIOS, HERRAMIENTAS, LIMPIEZA, MANO DE OBRA Y ACARREO DE MATERIALES AL SITIO DE SU UTILIZACION.","PZA","4.0000",0,"CERO PESOS 00/100 M.N.",0,330881]
[916979,"IMPERMEABILIZACION DE DALAS DE DESPLANTE 3 CARAS CON PRODUCTOS FESTER, CON EL SIGUIENTE PROCEDIMIENTO: 1 CAPA APLICANDO MICROPRIMMER A RAZON DE 1.00 LTS X 2.50 ML, UNA CAPA DE TELA DE REFUERZO FESTERFLEX MARCA FESTER, ASEGURANDOSE UNA CORRECTA ADHERENCIA CON EL PRODUCTO ANTES APLICADO, Y OTRA APLICACION DE MICROPRIMMER CON LA MISMA PROPORCION ANTES MENCIONADA, ACABADO CON ARENA CERNIDA PARA LA CORRECTA ADHERENCIA DEL MORTERO, INCLUYE: ACARREOS Y ELEVACIONES DE LOS MATERIALES A CUALQUIER NIVEL, HERRAMIENTA Y MANO DE OBRA.","ML ","6.7200",0,"CERO PESOS 00/100 M.N.",0,330882]
["15.03(200)","ESTRUCTURA                                        ",null,null,null,null,{"$f":"TEXT(SUM(G232:G234), \"$ #,##0.00 ;\")","v":"$ 0.00 "}]
[210322,"CIMBRA DE MADERA, ACABADO APARENTE, EN LOSAS, INCLUYE: HABILITADO, CHAFLANES, CIMBRA, DESCIMBRA, GOTEROS, HERRAMIENTAS, LIMPIEZAS, MANO DE OBRA  Y ACARREO DE MATERIALES AL SITIO DE SU UTILIZACION, A CUALQUIER NIVEL.","M2 ","7.5200",0,"CERO PESOS 00/100 M.N.",0,330883]
[213003,"SUMINISTRO, HABILITADO, ARMADO Y COLOCACION DE ACERO DE REFUERZO FY=4,200 KG/CM2 (G.E.), DE 3/8\" (# 3 ), EN ESTRUCTURA, INCLUYE: MATERIALES, HABILITADO,  DOBLECES,  SILLETAS, ALAMBRE, GANCHOS, ESCUADRAS, TRASLAPES, DESPERDICIOS HERRAMIENTAS, MANO DE OBRA Y ACARREO DE MATERIALES AL SITIO DE SU COLOCACION.","KG ","51.2700",0,"CERO PESOS 00/100 M.N.",0,330884]
[216401,"SUMINISTRO Y COLOCACION DE CONCRETO HECHO EN OBRA, F'C=200 KG/CM2, T.M.A.= 3/4, R.N., EN ESTRUCTURA (COLUMNAS, TRABES, LOSAS, FALDONES, ETC), INCLUYE: MATERIALES, COLADO, AFINE, ACABADO, CURADO CON CURACRETO ROJO, VIBRADO, DESPERDICIO, HERRAMIENTAS, LIMPIEZA, MANO DE OBRA. A CUALQUIER NIVEL.","M3 ","0.7600",0,"CERO PESOS 00/100 M.N.",0,330885]
["15.04(310)","MUROS, CADENAS, CASTILLOS Y REPIZONES.            ",null,null,null,null,{"$f":"TEXT(SUM(G236:G239), \"$ #,##0.00 ;\")","v":"$ 0.00 "}]
[310212,"DALA DE CONCRETO F'C=150 KG/CM2, T.M.A.=3/4\", CON SECCION DE 14 X 20 CMS., ARMADA CON 4 VARILLAS DEL # 3 Y ESTRIBOS DEL NO. 2 @ 20 CMS., INCLUYE:  ARMADO, COLADO, CURADO, VIBRADO, CIMBRA COMUN, DESCIMBRA, TRASLAPES, CRUCES DE VARILLAS CON ELEMENTOS TRANSVERSALES, DESPERDICIOS, MANO DE OBRA, HERRAMIENTA Y ACARREO DE MATERIALES AL SITIO DE SU UTILIZACION, A CUALQUIER ALTURA.","ML ","8.7200",0,"CERO PESOS 00/100 M.N.",0,330890]
[310536,"DALA DE CONCRETO F'C=150 KG/CM2, T.M.A.=3/4\", CON SECCION DE 14 X 10 CMS., SIN ARMAR, INCLUYE: COLADO, CURADO, VIBRADO, CIMBRA APARENTE, DESCIMBRA, DESPERDICIOS, MANO DE OBRA, HERRAMIENTA Y ACARREO DE MATERIALES AL SITIO DE SU UTILIZACION, A CUALQUIER ALTURA.","ML ","6.7200",0,"CERO PESOS 00/100 M.N.",0,330892]
[312210,"CASTILLO DE CONCRETO F´C= 150 KGS/CM2 CON UNA SECCION DE 14 X 15 CM., ARMADO CON 4 VARILLAS DEL #3, ESTRIBOS DEL #2@15 CM.  INCLUYE: ARMADO, COLADO, CURADO, VIBRADO, CIMBRA COMUN, DESCIMBRA, TRASLAPES, CRUCES DE VARILLAS CON ELEMENTOS TRANSVERSALES, DESPERDICIOS, MANO DE OBRA, HERRAMIENTA Y ACARREO DE MATERIALES AL SITIO DE SU UTILIZACION, A CUALQUIER ALTURA.","ML ","9.6000",0,"CERO PESOS 00/100 M.N.",0,330893]
[314032,"MURO DE TABIQUE DE LAMA, DE 14 CMS. DE ESPESOR PROMEDIO, A SOGA, CON TABIQUE DE LAMA 7 X 14 X 28 CMS., ACABADO COMUN, ASENTADO CON MORTERO CEMENTO-ARENA EN PROPORCION 1:3, EN CUALQUIER NIVEL, INCLUYE: TRAZO, NIVELACION, PLOMEO, ANDAMIOS, DESPERDICIOS, MANO DE OBRA, LIMPIEZA Y ACARREO DE MATERIALES AL SITIO DE SU UTILIZACION.","M2 ","13.8400",0,"CERO PESOS 00/100 M.N.",0,330894]
["15.05(319)","ENTREPISOS, CUBIERTA Y ACABADOS DE AZOTEA         ",null,null,null,null,{"$f":"TEXT(SUM(G241:G245), \"$ #,##0.00 ;\")","v":"$ 0.00 "}]
[216582,"SUMINISTRO Y COLOCACION DE GARGOLA DE CONCRETO PREFABRICADA TIPO NAPRESA O SIMILAR, DE 22X40 CMS. PARA DESAGUE PLUVIAL, AMACIZADA CON MORTERO CEM-ARENA DE RIO 1:4, INCLUYE: MATERIALES PARA COLOCACION, ELEVACION, NIVELACION, HERRAMIENTAS, MANO DE OBRA Y ACARREOS AL SITIO DE SU COLOCACION.","PZA","1.0000",0,"CERO PESOS 00/100 M.N.",0,330895]
[322049,"ENTORTADO DE JALCRETO F´C= 100 KG/CM2, AGREGANDO IMPERMEABILIZANTE INTEGRAL A RAZON DE 1 KG/ 50 KG DE CEMENTO DE, DE 5.0 CM DE ESPESOR PROMEDIO, PARA DAR PENDIENTES EN ENTREPISOS Y AZOTEAS, ACABADO  APALILLADO FINO EN FORMA INTEGRAL (SIN PASTA), PARA RECIBIR IMPERMEABILIZANTE,  INCLUYE: MATERIALES, NIVELACION,  ELEVACIONES, DESPERDICIOS, HERRAMIENTAS,  LIMPIEZA, MANO DE OBRA Y ACARREOS AL SITIO DE SU COLOCACION, EN CUALQUIER NIVEL.","M2 ","5.1400",0,"CERO PESOS 00/100 M.N.",0,330896]
[324232,"FORJADO DE ZAVALETA EN AZOTEA A BASE DE JALCRETO SIMPLE F´C=100 KG/CM2, DE 15 CM POR LADO, A 45°, CON ACABADO APALILLADO, INCLUYE: MATERIALES, DESPERDICIOS, HERRAMIENTAS, EQUIPO DE SEGURIDAD, LIMPIEZA, MANO DE OBRA Y ACARREO DE MATERIALES AL LUGAR DE SU UTILIZACION A CUALQUIER NIVEL.","ML ","9.2200",0,"CERO PESOS 00/100 M.N.",0,330897]
[324332,"FORJADO DE PRETIL EN AZOTEA A BASE DE TABIQUE ROJO RECOCIDO DE 7 X 14 X 28 CM. A SOGA, DE 14 CM DE ESPESOR,  ASENTADO CON MORTERO DE  CEMENTO-CAL ARENA EN PROPORCION DE 1:2:6, INCLUYE: MATERIALES, DESPERDICIOS, NIVELACION, PLOMEO,  ELEVACIONES, HERRAMIENTAS, FLETES, LIMPIEZAS, MANO DE OBRA Y ACAREOS DE MATERIALES AL SITIO DE SU UTILIZACION. A CUALQUIER NIVEL.","M2 ","4.3400",0,"CERO PESOS 00/100 M.N.",0,330898]
[344125,"IMPERMEABILIZACION DE MUROS O LOSAS, A BASE DE MEMBRANA PREFABRICADA, MCA. IMPERQUIMIA, UNIPLAS AERO PLUS SBS, ALTO DESEMPEÑO CON VENTILACION ANTIABOLSAMIENTOS, FABRICADA A BASE DE ASFALTOS MODIFICADOS CON POLIMEROS SINTETICOS SBS (ESTIRENO BUTADIENO ESTIRENO) REFORZADA CON MALLA POLIESTER DE ALTA RESISTENCIA, ACABADO APARENTE A BASE DE GRAVILLA ESMALTADA A FUEGO, 4.5 MM  DE ESPESOR TOTAL, COLOR ROJO TERRACOTA, GARANTIA POR ESCRITO DE 10 AÑOS, POR LA EMPRESA CONTRATISTA., INCLUYE: LIMPIEZA Y PREPARACION DE LA SUPERFICIE, APLICACION DE PRIMER IMPERCOAT PRIMARIO SL, PARA ANCLAJE Y TAPAPORO DE LA SUPERFICIE, SELLADO DE FISURAS Y GRIETAS A BASE DE CEMENTO PLASTICO BITUMINOSO IMPERCOAT CEMENTO SBS, SUMINISTRO Y COLOCACION DE MEMBRANA POR MEDIO DE TERMOFUSION A BASE DE FUEGO DE SOPLETE DE GAS BUTANO, HACIENDO TRASLAPES MINIMOS DE 0.10 MTS. EN AMBOS SENTIDOS, SELLADO DE ORILLAS, REMATES Y TRASLAPES, MATERIALES MENORES Y DE CONSUMO, CORTES, DESPERDICIOS, LIMPIEZA GENERAL, HERRAMIENTAS, MANO DE OBRA ESPECIALIZADA Y ACARREOS AL SITIO DE SU COLOCACION.","M2 ","5.1400",0,"CERO PESOS 00/100 M.N.",0,330899]
["15.06(355)","RECUBRIMIENTOS Y ACABADOS                         ",null,null,null,null,{"$f":"TEXT(SUM(G247:G249), \"$ #,##0.00 ;\")","v":"$ 0.00 "}]
[355022,"APLANADO DE MUROS Y/O TECHOS CON MORTERO CEMENTO-CAL-ARENA DE RIO EN PROP. 1:2:6 DE 2 CM. DE ESPESOR PROMEDIO, A PLOMO Y REGLA, ACABADO APALILLADO FINO, INCLUYE: MATERIALES, DESPERDICIOS, ANDAMIOS, HERRAMIENTAS, PLOMEO, NIVELACION, REMATES, LIMPIEZA DEL AREA DE TRABAJO Y ACARREO DE MATERIALES AL SITIO DE SU UTILIZACION. A CUALQUIER NIVEL.\n","M2 ","45.2000",0,"CERO PESOS 00/100 M.N.",0,330901]
[357322,"BOQUILLAS EN PUERTAS Y VENTANAS, CON MORTERO CEMENTO-CAL-ARENA 1:2:6, INCLUYE: ANDAMIOS Y ACARREO DE MATERIALES AL SITIO DE SU UTILIZACION.","ML ","20.8000",0,"CERO PESOS 00/100 M.N.",0,330902]
[357352,"FILETES Y BOLEADOS, HECHOS CON MORTERO CEMENTO-CAL-ARENA EN PROPORCION 1:2:6, INCLUYE: DESPERDICIOS, ANDAMIOS Y ACARREO DE MATERIALES AL SITIO DE SU UTILIZACION, A CUALQUIER NIVEL.","ML ","13.4000",0,"CERO PESOS 00/100 M.N.",0,330903]
["15.07(372)","PISOS                                             ",null,null,null,null,{"$f":"TEXT(SUM(G251:G252), \"$ #,##0.00 ;\")","v":"$ 0.00 "}]
[373026,"PISO DE CONCRETO HECHO EN OBRA F'C=200 KG/CM2, TMA 3/4\", DE 10 CMS. DE ESPESOR, ACABADO RAYADO CON BROCHA, EN FORMA INTERGRAL, SIN UTILIZACION DE PASTA, COLADO A CUADROS, CON REFUERZO DE MALLA ELECTROSOLDADA 6-6 / 10-10, INCLUYE: TRAZO, NIVELACION, AFINE Y COMPACTACION DEL TERRENO, MATERIALES, CIMBRA DE FRONTERA, DESCIMBRA, DESPERDICIOS, CURADO, VIBRADO, MUESTREADO, JUNTAS FRIAS, VOLTEADOR,  HERRAMIENTAS, MANO DE OBRA Y ACARREOS DE MATERIALES AL SITIO DE SU UTILIZACION.","M2 ","3.6700",0,"CERO PESOS 00/100 M.N.",0,330908]
[373502,"CEJA DE CONCRETO F'C=150 KG/CM2, TMA=3/4\" DE 12.0 X 18.0 CM DE SECCION PROMEDIO, ARMADA CON 1 VARILLA #3 (3/8\") Y ESTRIBOS DE 1/4\" @ 25.0 CM, EN CUALQUIER NIVEL. INCLUYE: CIMBRA APARENTE, DESCIMBRA, COLADO, VIBRADO, CURADO, PERFILADO, CHAFLANES, GOTERO, LIMPIEZA, HERRAMIENTAS, MATERIALES, DESPERDICIOS Y MANO DE OBRA.","ML ","6.3000",0,"CERO PESOS 00/100 M.N.",0,330909]
["15.08(382)","ELEMENTOS COMPLEMENTARIOS DE ALBAÑILERIA          ",null,null,null,null,{"$f":"TEXT(SUM(G254:G254), \"$ #,##0.00 ;\")","v":"$ 0.00 "}]
[382053,"BASE DE CONCRETO F'C=150 KG/CM, DE 15 CM DE ALTURA., ARMADA CON  VARILLAS DE 3/8\"@20 CM. EN AMBOS SENTIDOS, PARA COLOCACION DE EQUIPOS DE EN GENERAL,  ACABADO APALILLADO, INCLUYE: MATERIALES, COLADO, VIBRADO, CURADO, CIMBRA Y DESCIMBRA, NIVELACION,  DESPERDICIOS, REMATES,  HERRAMIENTAS, LIMPIEZA, MANO DE OBRA  Y ACARREO DE MATERIAL AL SITIO DE SU UTILIZACION, A CUALQUIER NIVEL.","M2 ","2.0000",0,"CERO PESOS 00/100 M.N.",0,330913]
["15.09(393)","PINTURA                                           ",null,null,null,null,{"$f":"TEXT(SUM(G256:G259), \"$ #,##0.00 ;\")","v":"$ 0.00 "}]
[393010,"PINTURA VINIL-ACRÍLICA A BASE DE AGUA ACABADO SEMIMATE  LAVABLE, PARA INTERIORES Y EXTERIORES QUE NO DESPRENDA VAPORES TÓXICOS NI OLORES DESAGRADABLES, CON LAS SIGUIENTES CARACTERÍSTICAS ( SÓLIDOS POR PESO 46-52%, SÓLIDOS POR VOLUMEN 30-36%, VISCOSIDAD DE 100-130 UK A 25°C, DENSIDAD > O = 1.2 TON/M3., LAVABILIDAD > O = 4,000 CICLOS, TIEMPO DE SECADO AL TACTO, 30-40 MIN., TIEMPO DE SECADO DURO < O = 8 HRS., CICLO DE CURADO DE 7 DIAS, PH 6-8, RENDIMIENTO EN SUP. LISA 8-10 M2/LT., FINEZA DE MOLIDO (HEGMAN) 3-7 UH.)  EN CADENAS DE DESPLANTE, A UNA CARA, TRABAJO TERMINADO, A DOS MANOS, INCLUYE: MATERIALES MENORES Y DE CONSUMO, PREPARACION DE LA SUPERFICIE, SELLADO DE LA SUPERFICIE, HERRAMIENTAS, LIMPIEZA, MANO DE OBRA Y  ACARREOS DE MATERIALES AL SITIO DE SU UTILIZACION.","ML ","13.4400",0,"CERO PESOS 00/100 M.N.",0,330914]
[393022,"PINTURA VINIL-ACRÍLICA A BASE DE AGUA ACABADO SEMIMATE  LAVABLE, PARA INTERIORES Y EXTERIORES QUE NO DESPRENDA VAPORES TÓXICOS NI OLORES DESAGRADABLES, CON LAS SIGUIENTES CARACTERÍSTICAS ( SÓLIDOS POR PESO 46-52%, SÓLIDOS POR VOLUMEN 30-36%, VISCOSIDAD DE 100-130 UK A 25°C, DENSIDAD > O = 1.2 TON/M3., LAVABILIDAD > O = 4,000 CICLOS, TIEMPO DE SECADO AL TACTO, 30-40 MIN., TIEMPO DE SECADO DURO < O = 8 HRS., CICLO DE CURADO DE 7 DIAS, PH 6-8, RENDIMIENTO EN SUP. LISA 8-10 M2/LT., FINEZA DE MOLIDO (HEGMAN) 3-7 UH.)  EN MUROS APLANADOS DE MEZCLA APALILLADO O PULIDO, TRABAJO TERMINADO, A DOS MANOS, INCLUYE: MATERIALES MENORES Y DE CONSUMO, ANDAMIOS, PREPARACION DE LA SUPERFICIE, SELLADO DE LA SUPERFICIE, HERRAMIENTAS, LIMPIEZA, MANO DE OBRA Y  ACARREOS DE MATERIALES AL SITIO DE SU UTILIZACIÓN.","M2 ","45.2000",0,"CERO PESOS 00/100 M.N.",0,330915]
[393052,"PINTURA VINIL-ACRÍLICA A BASE DE AGUA ACABADO SEMIMATE  LAVABLE, PARA INTERIORES Y EXTERIORES QUE NO DESPRENDA VAPORES TÓXICOS NI OLORES DESAGRADABLES, CON LAS SIGUIENTES CARACTERÍSTICAS ( SÓLIDOS POR PESO 46-52%, SÓLIDOS POR VOLUMEN 30-36%, VISCOSIDAD DE 100-130 UK A 25°C, DENSIDAD > O = 1.2 TON/M3., LAVABILIDAD > O = 4,000 CICLOS, TIEMPO DE SECADO AL TACTO, 30-40 MIN., TIEMPO DE SECADO DURO < O = 8 HRS., CICLO DE CURADO DE 7 DIAS, PH 6-8, RENDIMIENTO EN SUP. LISA 8-10 M2/LT., FINEZA DE MOLIDO (HEGMAN) 3-7 UH.)  EN LOSAS Y ELEMENTOS DE CONCRETO, TRABAJO TERMINADO, A DOS MANOS, INCLUYE: MATERIALES MENORES Y DE CONSUMO, ANDAMIOS, PREPARACION DE LA SUPERFICIE DE CONCRETO, SELLADO DE LA SUPERFICIE, HERRAMIENTAS, LIMPIEZA, MANO DE OBRA Y  EQUIPO DE SEGURIDAD. A CUALQUIER ALTURA.","M2 ","7.5200",0,"CERO PESOS 00/100 M.N.",0,330916]
[393122,"PINTURA DE ESMALTE ALQUIDALICO ANTICORROSIVO, ACABADO BRILLANTE, PARA INTERIORES Y EXTERIORES QUE NO DESPRENDA VAPORES TÓXICOS NI OLORES DESAGRADABLES, CON LAS SIGUIENTES CARACTERÍSTICAS ( SÓLIDOS POR PESO 49-60%, SÓLIDOS POR VOLUMEN 40-46%, VISCOSIDAD DE 110-160 UK A 25°C, DENSIDAD 0.9-1.2 TON/M3., BRILLO A 60°C, 90%, TIEMPO DE SECADO AL TACTO, < O = 6 HRS., TIEMPO DE SECADO DURO < O = 24 HRS., ADHERENCIA 100%, RENDIMIENTO EN SUP. LISA 8-10 M2/LT., DILUCIÓN MÁXIMA (AGUARRÁS, THINER), 15 %,  EN HERRERIA CERRADA (DUELA DE LAMINA ACANALADA), TRABAJO TERMINADO, A DOS MANOS, INCLUYE: MATERIALES MENORES Y DE CONSUMO, ANDAMIOS, PREPARACION DE LA SUPERFICIE, HERRAMIENTAS, LIMPIEZA, MANO DE OBRA Y  EQUIPO DE SEGURIDAD. A CUALQUIER NIVEL.","M2 ","9.8000",0,"CERO PESOS 00/100 M.N.",0,330917]
["15.10(396)","LIMPIEZA                                          ",null,null,null,null,{"$f":"TEXT(SUM(G261:G261), \"$ #,##0.00 ;\")","v":"$ 0.00 "}]
[396012,"LIMPIEZA DE PISOS DE CONCRETO CON AGUA Y ACIDO MURIATICO AL 10%.","M2 ","3.6700",0,"CERO PESOS 00/100 M.N.",0,330923]
["15.11(410)","CANCELERIA, HERRERIA, ALUMINIO, VIDRIOS Y CHAPAS  ",null,null,null,null,{"$f":"TEXT(SUM(G263:G265), \"$ #,##0.00 ;\")","v":"$ 0.00 "}]
[412013,"SUMINISTRO, FABRICACION Y COLOCACION DE HERRERIA TUBULAR Y/O ESTRUCTURAL, INCLUYE: SOLDADURA, ELEMENTOS DE FIJACION, MATERIALES MENORES, DESCALIBRES, DESPERDICIOS, BISAGRAS, FONDO ANTICORROSIVO, FLETES, HERRAMIENTAS, EQUIPO, MANO DE OBRA  Y ACARREO DE MATERIALES AL SITIO DE SU UTLIZACION.","KG ","115.0000",0,"CERO PESOS 00/100 M.N.",0,330927]
[424043,"SUMINISTRO Y COLOCACION DE CHAPA PHILLIPS X-720 O AS-725, INCLUYE: PERFORACIONES, ELEMENTOS DE FIJACION, HERRAMIENTAS, MANO DE OBRA Y  ACARREO DE MATERIAL AL SITIO DE SU UTILIZACION.","PZA","1.0000",0,"CERO PESOS 00/100 M.N.",0,330928]
[424082,"SUMINISTRO Y COLOCACION DE CERRADURA DE SOBREPONER DE SEGURIDAD CON UN SOLO CILINDRO DE ACCION POR AMBOS LADOS TIPO BARRA, MCA. PHILLIPS MODELO 800 FD, INCLUYE: ELEMANTOS DE FIJACION, AJUSTES PRUEBAS, HERRAMIENTAS Y MANO DE OBRA.","PZA","1.0000",0,"CERO PESOS 00/100 M.N.",0,330929]
["15.12(511)","INSTALACION ELECTRICA EN OBRA EXTERIOR            ",null,null,null,null,{"$f":"TEXT(SUM(G267:G274), \"$ #,##0.00 ;\")","v":"$ 0.00 "}]
[514034,"SALIDA ELECTRICA DE CENTRO AISLADA OCULTA, CON TUBERIA Y CONEXIONES CONDUIT DE PVC. PESADO  DE AJUSTE DE 13 Y 19 MM. DE DIAMETRO, CABLE VINANEL THW-LS 600 V. A 75° C, 90° C, MARCA CONDUCTORES MONTERREY, (VIAKON-PROTOCOLIZADO), CABLE VINANEL 21 THW-LS 600 V. A 75° C, 90° C, MARCA CONDUMEX (CONDUMEX PROTOCOLIZADO).  CALIBRE 12 EN FASES Y 12 EN TIERRA FISICA, CAJAS DE REGISTRO  CUADRADAS, CHALUPAS Y TAPAS DE  PVC REFORZADO., INCLUYE: TRAZO, RANURAS, MATERIALES MENORES, HERRAMIENTA, MANO DE OBRA ESPECIALIZADA , CONEXIONES, LIMPIEZA DEL AREA DE TRABAJO, PRUEBAS, DESPERDICIOS Y ACARREO DEL MATERIAL AL SITIO DE SU COLOCACION, EN CUALQUIER NIVEL.","SAL","1.0000",0,"CERO PESOS 00/100 M.N.",0,330930]
[518046,"SALIDA ELECTRICA PARA CONTACTO MONOFÁSICO  DUPLEX POLARIZADO, OCULTA, CON TUBERIA Y CONEXIONES CONDUIT GALVANIZADA P.G., ETIQUETA VERDE DE AJUSTE DE 13 Y 19 MM. DE DIAMETRO,  CABLE VINANEL THW-LS 600 V. A 75° C, 90° C, MARCA CONDUCTORES MONTERREY, (VIAKON-PROTOCOLIZADO), CABLE VINANEL 21 THW-LS 600 V. A 75° C, 90° C, MARCA CONDUMEX (CONDUMEX PROTOCOLIZADO)., CAL.  12  EN FASES Y CAL. 12 PARA TIERRA FISICA, CAJAS DE REGISTRO  CUADRADAS, CHALUPAS Y TAPAS DE ACERO GALVANIZADO TIPO REFORZADO, CONTACTO QUINZIÑO MX, TAPA DE ALUMINIO, INCLUYE: TRAZO, RANURAS, CONEXION A TIERRA, MATERIALES MENORES, PRUEBAS, DESPERDICIOS, LIMPIEZAS, HERRAMIENTAS, MANO DE OBRA, Y ACARREO DEL MATERIAL AL SITIO DE SU COLOCACION, A CUALQUIER NIVEL.","SAL","1.0000",0,"CERO PESOS 00/100 M.N.",0,330931]
[522034,"SALIDA ELECTRICA PARA  APAGADOR DOBLE, OCULTA, CON TUBERIA Y CONEXIONES CONDUIT DE PVC TIPO PESADO DE 13 Y 19 MM. DE DIAMETRO, CABLE VINANEL THW-LS 600 V. A 75° C, 90° C, MARCA CONDUCTORES MONTERREY, (VIAKON-PROTOCOLIZADO), CABLE VINANEL 21 THW-LS 600 V. A 75° C, 90° C, MARCA CONDUMEX (CONDUMEX PROTOCOLIZADO). CALIBRE 12, CAJAS CUADRADAS, CHALUPAS Y TAPAS DE PVC, APAGADORES QUINZIÑO, TAPA DE ALUMINIO, INCLUYE: MATERIALES MENORES, PRUEBAS, DESPERDICIOS Y ACARREO DEL MATERIAL AL SITIO DE SU COLOCACION, A CUALQUIER NIVEL.","SAL","1.0000",0,"CERO PESOS 00/100 M.N.",0,330932]
[524526,"ALIMENTACION ELECTRICA DE FUERZA PARA SISTEMA DE EQUIPO HIDRONEUMATICO, CON TUBERIA Y CONEXIONES CONDUIT GALV. P.G. ROSCADA DE  25 MM. DE DIAMETRO,  Y TUBO LIQUATITE DE 1\" DE DIAM.,  CABLE VINANEL THW-LS 600 V. A 75° C, 90° C, MARCA CONDUCTORES MONTERREY, (VIAKON-PROTOCOLIZADO), CABLE VINANEL 21 THW-LS 600 V. A 75° C, 90° C, MARCA CONDUMEX (CONDUMEX PROTOCOLIZADO). CALIBRES 10, CONDULET RECTANGULAR FSC CON TAPA Y EMPAQUE,  INCLUYE: TRAZO,  MATERIALES MENORES, CONEXIONES, CONECTORES, HERRAMIENTAS,  PRUEBAS, CORTES, AJUSTES,  DESPERDICIOS, LIMPIEZAS,  MANO DE OBRA ESPECIALIZADA,  Y ACARREO DEL MATERIAL AL SITIO DE SU COLOCACION. (LONGITUD CONSIDERADA DESDE EL TABLERO DE ALIMENTACION AL TABLERO DEL EQUIPO, DENTRO DEL CUARTO)","SAL","1.0000",0,"CERO PESOS 00/100 M.N.",0,330933]
[540305,"SUMINISTRO E INSTALACION DE CENTRO DE CARGA CAT. QO-816L-100,  DE 8 POLOS  100 AMPERES, INCLUYE: MATERIALES, ZAPATAS, MANO DE OBRA, HERRAMIENTAS, ELEMENTOS DE FIJACION, PRUEBAS,  ACARREOS Y MATERIALES MENORES.","PZA","1.0000",0,"CERO PESOS 00/100 M.N.",0,330945]
[543012,"SUMINISTRO Y COLOCACION DE INTERRUPTOR TERMOMAGNETICO DERIVADO CON 1 POLOS, DE 15-60 AMPERES, MCA. SQUARE D, CAT. QO. INCLUYE: PRUEBAS, MATERIALES MENORES, HERRAMIENTAS, MANO DE OBRA ESPECIALIZADA  Y ACARREO DE MATERIALES AL SITIO DE SU COLOCACION.","PZA","2.0000",0,"CERO PESOS 00/100 M.N.",0,330946]
[543020,"SUMINISTRO Y COLOCACION DE INTERRUPTOR TERMOMAGNETICO CON 2 POLOS, DE 15-50 AMPERES, MCA. SQUARE D, CAT. QO. INCLUYE: PRUEBAS, FLETES, MATERIALES MENORES Y ACARREO DE MATERIALES AL SITIO DE SU COLOCACION.","PZA","2.0000",0,"CERO PESOS 00/100 M.N.",0,330947]
[550090,"SUMINISTRO E INSTALACION DE LUMINARIO FLUORESCENTE DE SOBREPONER, TIPO ENVOLVENTE, AHORRADOR DE ENERGIA DE 2 X 32 WATTS. FABRICADO EN LAMINA CAL 22, RECUBIERTO CON TRATAMIENTO FOSFATIZADO Y PINTURA ACRILICA O POLIESTER COLOR BLANCO, APLICADA ELECTROSTATICAMENTE Y TERMOENDURECIDA, PARA OBTENER UNA REFLECTANCIA MINIMA DE 90%, CON DIFUSOR ACRILICO PRISMATICO 100% PURO, TIPO ENVOLVENTE, CON UNA LONGITUD DE 120 CM., BALASTRO ELECTRONICO DE BAJA EMISION DE ARMONICAS, PARA OPERAR UNA O DOS LAMPARAS T8 DE 32 WATTS, LA LUMINARIA (COMPLETA) DEBERA CUMPLIR CON LA NORMA ANCE, INCLUYE: COPIA DE CERTIFICACION ANCE ANEXA EN ELTRAMITE DE LA ESTIMACION, FIJACION, CONEXION, MATERIALES MENORES, HERRAMIENTAS, GARANTIAS,  MANO DE OBRA, PRUEBAS Y ACARREOS.","PZA","1.0000",0,"CERO PESOS 00/100 M.N.",0,330949]
["15.13(565)","INSTALACION HIDRAULICA, SANITARIA Y GAS EN O. EXT.",null,null,null,null,{"$f":"TEXT(SUM(G276:G281), \"$ #,##0.00 ;\")","v":"$ 0.00 "}]
[579030,"SUCCION PARA LLENADO DE HIDRONEUMATICO A BASE DE TUBERIA DE COBRE DE 1 1/4\" A 1 1/2\" , DESDE LA CISTERNA HASTA EL EQUIPO DE BOMBEO, (DE ACUERDO A GUIAS DE INSTALACION PROPORCIONADAS POR CAPECE) CONSIDERANDO UNA DISTANCIA PROMEDIO DE 10 MTS. DESDE LA UBICACION DE LA CISTERNA AL EQUIPO HIDRONEUMATICO,  INCLUYE: TRAZO, EXCAVACIONES, RELLENOS,  ENCOFRACO CON CONCRETO F'C=100 KG/CM2, LINEAS DE SUCCION, LINEA DE RETORNO PARA PRUEBAS, PICHANCHA DE 1 1/2\", VALVULAS,  MATERIALES MENORES, DESPERDICIOS, CONEXIONES, PRUEBAS, LIMPIEZA,  Y ACARREO DE TODOS LOS MATERIALES AL SITIO DE SU UTILIZACION.","PZA","1.0000",0,"CERO PESOS 00/100 M.N.",0,330958]
[585006,"SUMINISTRO Y COLOCACION DE TUBO DE P.V.C. SANITARIO (ANGER),1 CAMPANA DE 2\" (50 MM) DIAM., INCLUYE: CONEXIONES, TRAZO, EXCAVACION, RELLENO COMPACTADO, DESPERDICIOS, PRUEBAS, PASOS EN CIMENTACION Y ACARREO DE MATERIALES AL SITIO DE SU COLOCACION.","ML ","2.5000",0,"CERO PESOS 00/100 M.N.",0,330959]
[589317,"SUMINISTRO Y TENDIDO DE TUBERIA DE CPVC-CTS, PARA CEMENTAR  DE 50 MM DE DIAM. INCLUYE: TRAZO, CONEXIONES (COPLES, CODOS, TEES, NIPLES, ETC), DESPERDICIOS, ENCOFRADO CON CONCRETO F'C=100 KG/CM2 DE 6 X 15 CMS DE SECCION, MATERIALES MENORES Y DE CONSUMO, PRUEBAS, EXCAVACION, RELLENO, HERRAMIENTAS, MANO DE OBRA Y ACARREO DE MATERIALES AL SITIO DE SU COLOCACION.","ML ","2.5000",0,"CERO PESOS 00/100 M.N.",0,330963]
[591414,"SUMINISTRO Y COLOCACION DE VALVULA DE ESFERA (BOLA) EXTREMOS ROSCADOS 2\" (51 MM) DE DIAMETRO. MCA URREA, FIG. 550,  INCLUYE: MATERIALES MENORES Y DE CONSUMO, HERRAMIENTAS, PRUEBAS, LIMPIEZA, MANO DE OBRA Y ACARREOS DE MATERIALES AL SITIO DE SU COLOCACION.","PZA","1.0000",0,"CERO PESOS 00/100 M.N.",0,330967]
[592012,"SUMINISTRO Y COLOCACION DE CESPOL BOTE DE P.V.C. CON REJILLA CROMADA. INCLUYE: MATERIALES MENORES Y DE CONSUMO, HERRAMIENTAS, DESPERDICIOS, PRUEBAS, MANO DE OBRA Y ACARREO DE MATERIALES AL SITIO DE SU COLOCACION.","PZA","1.0000",0,"CERO PESOS 00/100 M.N.",0,330968]
[918592,"SUMINISTRO Y COLOCACION DE EQUIPO DE BOMBEO INTEGRADO DE VELOCIDAD VARIABLE A PRESION CONSTANTE,  MARCA VICTORIA, RAINFORCE  MOD. RF2B3-200VV, CONSTRUIDO CON DOS MOTOBOMBA CENTRIFUGAS ELECTRICAS, MCA. VICTORIA, MOD. AF3-200 CWN, DE 1 1/2\" EN LA SUCCION POR 1 1/2\" EN LA DESCARGA, ACOPLADA DIRECTAMENTE A MOTOR ELECTRICO DE 2 HP., 220-440 V., 3 FASES, 60 HZ, 3500 RPM, TABLERO DE CONTROL INTELIGENTE CON VARIADOR DE VELOCIDAD, PROTECCIONES POR BAJO Y ALTO VOLTAJE, CORTO CIRCUITO, SISTEMA DE ARRANQUE SUAVE, DESCARGA Y FUNCIONAMIENTO EN SECO SELLADO HERMETICAMENTE,  DOS TANQUES PRECARGADOS DE DIAFRAGMA, MCA. VICTORIA DE 4.4 GALONES DE CAPACIDAD, INCLUYE: CABEZAL DE DESCARGA EN FIERRO GRIS DE 3\" DE DIAMETRO EXTREMO BRIDADO, CHASIS METALICO, MANOMETRO ANALOGO, SENSOR DE PRESION,  MATERIALES MENORES Y DE CONSUMO, CONEXIONES HIDRAULICAS Y ELECTRICAS, BRIDA DE FO.FO. DE 3\" CON UN EXTREMO ROSCADO, VALVULA PARA PRECARGADO DE CIERRE RAPIDO, HERRAMIENTAS, CALIBRACION, PRUEBAS, PUESTA EN MARCHA, MANUAL DE OPERACION, GARANTIAS POR ESCRITO, LIMPIEZA TRASLADOS AL SITIO DE SU INSTALACION Y MANO DE OBRA ESPACIALIZACA.","PZA","1.0000",0,"CERO PESOS 00/100 M.N.",0,330972]
[33,"MURO PARA CONTENCION Y ACOTAMIENTO PERIMETRAL.",null,null,null,null,{"$f":"TEXT(SUM(G283 + G288), \"$ #,##0.00 ;\")","v":"$ 0.00 "}]
["33.01(150)","TRABAJOS PRELIMINARES                             ",null,null,null,null,{"$f":"TEXT(SUM(G284:G287), \"$ #,##0.00 ;\")","v":"$ 0.00 "}]
[150020,"LIMPIEZA DE TERRENO RETIRANDO BASURA Y DESHIERBE FUERA DE LA OBRA. INCLUYE: HERRAMIENTAS, MANO DE OBRA, RECOLECCION, JUNTA Y RETIRO. (PROYECCION DE CUBIERTA).","M2 ","9.8000",0,"CERO PESOS 00/100 M.N.",0,330825]
[150120,"TRAZO Y NIVELACION DE EXTERIORES ESTABLECIENDO REFERENCIAS DEFINITIVAS, CON TRANSITO Y NIVEL (EQUIPO TOPOGRAFICO), INCLUYE: PERSONAL TECNICO CALIFICADO, ESTACAS, MOJONERAS, LOCALIZACION DE EJES Y/O ENTRE EJES, BANCOS DE NIVEL, MATERIALES PARA SEÑALAMIENTO, EQUIPO, HERRAMIENTA Y MANO DE OBRA.","M2 ","9.8000",0,"CERO PESOS 00/100 M.N.",0,330829]
[152204,"EXCAVACION EN CEPAS POR CUALQUIER MEDIO, MATERIAL TIPO \"B\", DE 0 A 2.00 M. DE PROFUNDIDAD, EN SECO, INCLUYE: AFINE DE TALUDES Y FONDO, TRASPALEOS,  MOVIMIENTOS Y ACARREOS DENTRO DE LA OBRA, HERRAMIENTAS Y MANO DE OBRA, MEDIDO EN BANCO.","M3 ","7.8500",0,"CERO PESOS 00/100 M.N.",0,330838]
[156002,"CARGA POR CUALQUIER MEDIO Y ACARREO EN CAMION DE MATERIAL DE DESPERDICIO PRODUCTO DE LAS EXCAVACIONES FUERA DE LA OBRA, A LUGAR PERMITIDO POR LAS AUTORIDADES CORRESPONDIENTES, MEDIDO EN BANCO. INCLUYE CARGA,  ACARREO Y DESCARGA A TIRO LIBRE, HERRAMIENTA, EQUIPO, MATERIALES DE CONSUMO Y MANO DE OBRA.","M3 ","4.9000",0,"CERO PESOS 00/100 M.N.",0,330844]
["33.02(160)","CIMENTACION                                       ",null,null,null,null,{"$f":"TEXT(SUM(G289:G294), \"$ #,##0.00 ;\")","v":"$ 0.00 "}]
[162002,"CIMIENTO DE PIEDRA BRAZA ACOMODADA PIEDRA POR PIEDRA, ASENTADA CON MORTERO CEMENTO-ARENA  EN PROPORCION 1:3. INCLUYE: MATERIALES, DESPERDICIOS, HERRAMIENTAS, LIMPIEZA, MANO DE OBRA Y ACARREO DE MATERIALES AL SITIO DE SU UTILIZACION.","M3 ","4.8500",0,"CERO PESOS 00/100 M.N.",0,330851]
[162102,"MAMPOSTERIA DE PIEDRA BRAZA, ACABADO APARENTE UNA CARA DE 0 A 1.5 MTS. DE ALTURA., ASENTADA CON MORTERO CEMENTO-ARENA 1:3. INCLUYE: MATERIALES, HERRAMIENTAS, PLOMEO,  LIMPIEZA, MANO DE OBRA Y ACARREO DE MATERIALES AL SITIO DE SU UTILIZACION.","M3 ","7.6500",0,"CERO PESOS 00/100 M.N.",0,330853]
[162116,"MAMPOSTERIA DE PIEDRA BRAZA, ACABADO APARENTE DOS CARAS DE 0 A 1.50 MTS, ASENTADA CON  CEMENTO-ARENA 1:3, INCLUYE: MATERIALES, HERRAMIENTAS, PLOMEO,  LIMPIEZA, MANO DE OBRA Y ACARREO DE MATERIALES AL SITIO DE SU UTILIZACION.","M3 ","2.1500",0,"CERO PESOS 00/100 M.N.",0,330854]
[162404,"NIVELACION DE MURO DE MAMPOSTERIA CON RAJUELA DE PIEDRA BRAZA JUNTEADA CON MORTERO CEM-ARE 1:3. DE 0.10 M. DE ESPESOR X 0.40 M. DE ANCHO PROMEDIO. INCLUYE: NIVELACION, TRAZO, MANO DE OBRA Y HERRAMIENTA. (NO INCLUYE MATERIALES)","ML ","17.8000",0,"CERO PESOS 00/100 M.N.",0,330859]
[180002,"RELLENO EN CEPAS POR CUALQUIER MEDIO, CON MATERIAL PRODUCTO DE EXCAVACION, COMPACTADO AL 90% PROCTOR, EN CAPAS DE 20 CM, MEDIDO COMPACTO. INCLUYE: SUMINISTRO DE AGUA PARA LOGRAR HUMEDAD OPTIMA, TENDIDO, TRASPALEOS,  EQUIPO, PRUEBAS DE COMPACTACION, AFINE, NIVELACION, HERRAMIENTAS, MANO DE OBRA Y  ACARREO HASTA EL SITIO DE SU COLOCACION. (MEDIDO EN BANCO).","M3 ","2.9500",0,"CERO PESOS 00/100 M.N.",0,330869]
[180102,"RELLENO COMPACTADO AL 90 % PROCTOR, CON MATERIAL DE BANCO, EN CAPAS DE 20 CM DE ESPESOR, AGREGANDO AGUA PARA LOGRAR SU HUMEDAD OPTIMA, AL 90%. POR CUALQUIER MEDIO, INCLUYE: SUMINISTRO DE AGUA PARA LOGRAR HUMEDAD OPTIMA, TENDIDO, TRASPALEOS,  DESPERDICIOS, EQUIPO, PRUEBAS DE COMPACTACION, AFINE, NIVELACION, HERRAMIENTAS, MANO DE OBRA Y  ACARREO HASTA EL SITIO DE SU COLOCACION.  (VOLUMEN MEDIDO COMPACTADO).","M3 ","1.7800",0,"CERO PESOS 00/100 M.N.",0,330871]
[69,"RAMPAS",null,null,null,null,{"$f":"TEXT(SUM(G296 + G302 + G308 + G310 + G312 + G314 + G316), \"$ #,##0.00 ;\")","v":"$ 0.00 "}]
["69.01(150)","TRABAJOS PRELIMINARES                             ",null,null,null,null,{"$f":"TEXT(SUM(G297:G301), \"$ #,##0.00 ;\")","v":"$ 0.00 "}]
[150020,"LIMPIEZA DE TERRENO RETIRANDO BASURA Y DESHIERBE FUERA DE LA OBRA. INCLUYE: HERRAMIENTAS, MANO DE OBRA, RECOLECCION, JUNTA Y RETIRO. (PROYECCION DE CUBIERTA).","M2 ","24.9000",0,"CERO PESOS 00/100 M.N.",0,330826]
[150120,"TRAZO Y NIVELACION DE EXTERIORES ESTABLECIENDO REFERENCIAS DEFINITIVAS, CON TRANSITO Y NIVEL (EQUIPO TOPOGRAFICO), INCLUYE: PERSONAL TECNICO CALIFICADO, ESTACAS, MOJONERAS, LOCALIZACION DE EJES Y/O ENTRE EJES, BANCOS DE NIVEL, MATERIALES PARA SEÑALAMIENTO, EQUIPO, HERRAMIENTA Y MANO DE OBRA.","M2 ","24.9000",0,"CERO PESOS 00/100 M.N.",0,330830]
[150210,"DESPALME DE TERRENO NATURAL POR CUALQUIER MEDIO, CON ESPESOR PROMEDIO DE 20 CM. INCLUYE: CARGA Y ACARREO DEL PRODUCTO FUERA DE LA OBRA, MANO DE OBRA, HERRAMIENTA Y EQUIPO. (PROYECCION DE CUBIERTA).","M2 ","24.9000",0,"CERO PESOS 00/100 M.N.",0,330834]
[152404,"EXCAVACION A CIELO ABIERTO EN CAJON POR CUALQUIER MEDIO, MATERIAL TIPO \"B\", DE 0 A 2.00 M. DE PROFUNDIDAD, EN SECO, INCLUYE: AFINE DE TALUDES Y FONDO, TRAPALEOS,  MOVIMIENTOS Y ACARREOS DENTRO DE LA OBRA, HERRAMIENTAS Y MANO DE OBRA, MEDIDO EN BANCO.","M3 ","3.8000",0,"CERO PESOS 00/100 M.N.",0,330841]
[156002,"CARGA POR CUALQUIER MEDIO Y ACARREO EN CAMION DE MATERIAL DE DESPERDICIO PRODUCTO DE LAS EXCAVACIONES FUERA DE LA OBRA, A LUGAR PERMITIDO POR LAS AUTORIDADES CORRESPONDIENTES, MEDIDO EN BANCO. INCLUYE CARGA,  ACARREO Y DESCARGA A TIRO LIBRE, HERRAMIENTA, EQUIPO, MATERIALES DE CONSUMO Y MANO DE OBRA.","M3 ","3.8000",0,"CERO PESOS 00/100 M.N.",0,330845]
["69.02(160)","CIMENTACION                                       ",null,null,null,null,{"$f":"TEXT(SUM(G303:G307), \"$ #,##0.00 ;\")","v":"$ 0.00 "}]
[162002,"CIMIENTO DE PIEDRA BRAZA ACOMODADA PIEDRA POR PIEDRA, ASENTADA CON MORTERO CEMENTO-ARENA  EN PROPORCION 1:3. INCLUYE: MATERIALES, DESPERDICIOS, HERRAMIENTAS, LIMPIEZA, MANO DE OBRA Y ACARREO DE MATERIALES AL SITIO DE SU UTILIZACION.","M3 ","5.3000",0,"CERO PESOS 00/100 M.N.",0,330852]
[162302,"RODAPIE DE PIEDRA BRAZA, ACABADO APARENTE UNA CARA, ASENTADA CON MORTERO CEMENTO-ARENA 1:3. INCLUYE: MATERIALES, HERRAMIENTAS, PLOMEO,   LIMPIEZA, MANO DE OBRA Y ACARREO DE MATERIALES AL SITIO DE SU UTILIZACION.","M3 ","3.3200",0,"CERO PESOS 00/100 M.N.",0,330856]
[162404,"NIVELACION DE MURO DE MAMPOSTERIA CON RAJUELA DE PIEDRA BRAZA JUNTEADA CON MORTERO CEM-ARE 1:3. DE 0.10 M. DE ESPESOR X 0.40 M. DE ANCHO PROMEDIO. INCLUYE: NIVELACION, TRAZO, MANO DE OBRA Y HERRAMIENTA. (NO INCLUYE MATERIALES)","ML ","33.2000",0,"CERO PESOS 00/100 M.N.",0,330860]
[180103,"RELLENO COMPACTADO AL 95% PROCTOR, CON MATERIAL DE BANCO, EN CAPAS DE 15 CM DE ESPESOR, AGREGANDO AGUA PARA LOGRAR SU HUMEDAD OPTIMA, POR CUALQUIER MEDIO, INCLUYE: SUMINISTRO DE AGUA PARA LOGRAR HUMEDAD OPTIMA, TENDIDO, TRASPALEOS,  DESPERDICIOS, EQUIPO, PRUEBAS DE COMPACTACION, AFINE, NIVELACION, HERRAMIENTAS, MANO DE OBRA Y  ACARREO HASTA EL SITIO DE SU COLOCACION.  (VOLUMEN MEDIDO COMPACTADO).","M3 ","8.8000",0,"CERO PESOS 00/100 M.N.",0,330874]
[192360,"SUMINISTRO E INSTALACION DE CASQUILLO A BASE DE PTR DE 2 1/2\" X 2 1/2\" BLANCO,  Y 10 CM DE LONGITUD APROXIMADA, PARA RICIBIR DE BARANDAL METALICO,  AHOGADO EN LOSA DE CONCRETO, INCLUYE: TRAZO, CORTES, AJUSTES, NIVELACION, MATERIALES, HERRAMIENTAS,  LIMPIEZA Y MANO DE OBRA.","PZA","30.0000",0,"CERO PESOS 00/100 M.N.",0,330880]
["69.03(310)","MUROS, CADENAS, CASTILLOS Y REPIZONES.            ",null,null,null,null,{"$f":"TEXT(SUM(G309:G309), \"$ #,##0.00 ;\")","v":"$ 0.00 "}]
[310512,"DALA DE CONCRETO F'C=150 KG/CM2, T.M.A.=3/4\", CON SECCION DE 10 X 12 CMS., SIN ARMAR, INCLUYE: COLADO, CURADO, VIBRADO, CIMBRA APARENTE, DESCIMBRA, DESPERDICIOS, MANO DE OBRA, HERRAMIENTA, LIMPIEZA DEL AREA DE TRABAJO Y ACARREO DE MATERIALES AL SITIO DE SU UTILIZACION, A CUALQUIER ALTURA.","ML ","33.2000",0,"CERO PESOS 00/100 M.N.",0,330891]
["69.04(372)","PISOS                                             ",null,null,null,null,{"$f":"TEXT(SUM(G311:G311), \"$ #,##0.00 ;\")","v":"$ 0.00 "}]
[375242,"FORJADO DE RAMPA PARA MINUSVALIDOS FABRICADO A BASE DE CONCRETO F'C=150 KG/CM2. T.M.A. 3/4\" HECHO EN OBRA DE 0.10 MT. DE ESPESOR  PROMEDIO DANDO PENDIENTE DEL 6%. INCLUYE: HERRAMIENTAS, ACABADO RAYADO,  CIMBRA DESCIMBRA, MANO DE OBRA, REMATE EN PISO Y BANQUETA, ACARREO DEL  MATERIALES AL SITIO DE SU UTILIZACION.","M2 ","24.9000",0,"CERO PESOS 00/100 M.N.",0,330911]
["69.05(393)","PINTURA                                           ",null,null,null,null,{"$f":"TEXT(SUM(G313:G313), \"$ #,##0.00 ;\")","v":"$ 0.00 "}]
[393324,"PINTURA DE ESMALTE ALQUIDALICO ANTICORROSIVO, ACABADO BRILLANTE, PARA INTERIORES Y EXTERIORES QUE NO DESPRENDA VAPORES TÓXICOS NI OLORES DESAGRADABLES, CON LAS SIGUIENTES CARACTERÍSTICAS ( SÓLIDOS POR PESO 49-60%, SÓLIDOS POR VOLUMEN 40-46%, VISCOSIDAD DE 110-160 UK A 25°C, DENSIDAD 0.9-1.2 TON/M3., BRILLO A 60°C, 90%, TIEMPO DE SECADO AL TACTO, < O = 6 HRS., TIEMPO DE SECADO DURO < O = 24 HRS., ADHERENCIA 100%, RENDIMIENTO EN SUP. LISA 8-10 M2/LT., DILUCIÓN MÁXIMA (AGUARRÁS, THINER), 15 %,   EN TUBO DE FIERRO NEGRO DE 2\" DE DIÁMETRO, (POSTES, PASAMANOS, BARANDALES, ESTRUCTURAS, REDES, ETC.), TRABAJO TERMINADO, A DOS MANOS, INCLUYE: MATERIALES MENORES Y DE CONSUMO, PREPARACION DE LA SUPERFICIE, ANDAMIOS, HERRAMIENTAS, LIMPIEZA, MANO DE OBRA Y  EQUIPO DE SEGURIDAD. CUALQUIER ALTURA.","ML ","139.4500",0,"CERO PESOS 00/100 M.N.",0,330920]
["69.06(396)","LIMPIEZA                                          ",null,null,null,null,{"$f":"TEXT(SUM(G315:G315), \"$ #,##0.00 ;\")","v":"$ 0.00 "}]
[396012,"LIMPIEZA DE PISOS DE CONCRETO CON AGUA Y ACIDO MURIATICO AL 10%.","M2 ","24.9000",0,"CERO PESOS 00/100 M.N.",0,330924]
["69.07(410)","CANCELERIA, HERRERIA, ALUMINIO, VIDRIOS Y CHAPAS  ",null,null,null,null,{"$f":"TEXT(SUM(G317:G317), \"$ #,##0.00 ;\")","v":"$ 0.00 "}]
[412006,"SUMINISTRO, FABRICACION Y COLOCACION DE HERRERIA TUBULAR Y/O ESTRUCTURAL PARA BARANDAL O PASAMANOS,  INCLUYE: SOLDADURA, CORTES, AJUSTES, MATERIALES MENORES, DESCALIBRES, DESPERDICIOS, BISAGRAS, FONDO ANTICORROSIVO, FLETES, HERRAMIENTAS, MANO DE OBRA, Y ACARREO DE MATERIALES AL SITIO DE SU UTLIZACION.","KG ","297.1500",0,"CERO PESOS 00/100 M.N.",0,330926]
["02","RED ELECTRICA",null,null,null,null,{"$f":"TEXT((G319), \"$ #,##0.00 ;\")","v":"$ 0.00 "}]
["02.01(511)","INSTALACION ELECTRICA EN OBRA EXTERIOR            ",null,null,null,null,{"$f":"TEXT(SUM(G320:G339), \"$ #,##0.00 ;\")","v":"$ 0.00 "}]
[534006,"SUMINISTRO Y TENDIDO DE TUBO CONDUIT DE P.V.C. PESADO, DE 25 MM DIAM. INC.: CONEXIONES, TRAZO, EXCAVACION, RELLENO, DESPERDICIOS, MATERIALES MENORES, PRUEBAS Y ACARREO AL SITIO DE SU COLOCACION.","ML ","67.0000",0,"CERO PESOS 00/100 M.N.",0,330934]
[534010,"SUMINISTRO Y TENDIDO DE TUBO CONDUIT DE P.V.C. PESADO, DE 38 MM DIAM. INC.: CONEXIONES, TRAZO, EXCAVACION, RELLENO, DESPERDICIOS, MATERIALES MENORES, PRUEBAS Y ACARREO AL SITIO DE SU COLOCACION.","ML ","75.0000",0,"CERO PESOS 00/100 M.N.",0,330935]
[534012,"SUMINISTRO Y TENDIDO DE TUBO CONDUIT DE P.V.C. PESADO, DE 50 MM DIAM. INC.: CONEXIONES, TRAZO, EXCAVACION, RELLENO, DESPERDICIOS, MATERIALES MENORES, PRUEBAS Y ACARREO AL SITIO DE SU COLOCACION.","ML ","1.0000",0,"CERO PESOS 00/100 M.N.",0,330936]
[536008,"SUMINISTRO Y COLOCACION DE CABLE VINANEL THW-LS 600 V. A 75° C, 90° C, MARCA CONDUCTORES MONTERREY, (VIAKON-PROTOCOLIZADO), CABLE VINANEL 21 THW-LS 600 V. A 75° C, 90° C, MARCA CONDUMEX (CONDUMEX PROTOCOLIZADO). CAL. 10,  INCLUYE: DESPERDICIOS, MATERIALES MENORES, HERRAMIENTA, CONEXIONES, MANO DE OBRA ESPECIALIZADA, LIMPIEZA DEL AREA DE TRABAJO, PRUEBAS Y ACARREO AL SITIO DE SU COLOCACION.","ML ","73.7000",0,"CERO PESOS 00/100 M.N.",0,330937]
[536018,"SUMINISTRO Y COLOCACION DE CABLE VINANEL THW-LS 600 V. A 75° C, 90° C, MARCA CONDUCTORES MONTERREY, (VIAKON-PROTOCOLIZADO), CABLE VINANEL 21 THW-LS 600 V. A 75° C, 90° C, MARCA CONDUMEX (CONDUMEX PROTOCOLIZADO). CAL. 1/0,  INCLUYE: DESPERDICIOS, MATERIALES MENORES, HERRAMIENTA, CONEXIONES, MANO DE OBRA ESPECIALIZADA, LIMPIEZA DEL AREA DE TRABAJO, PRUEBAS Y ACARREO AL SITIO DE SU COLOCACION.","ML ","2.2000",0,"CERO PESOS 00/100 M.N.",0,330938]
[536020,"SUMINISTRO Y COLOCACION DE CABLE VINANEL THW-LS 600 V. A 75° C, 90° C, MARCA CONDUCTORES MONTERREY, (VIAKON-PROTOCOLIZADO), CABLE VINANEL 21 THW-LS 600 V. A 75° C, 90° C, MARCA CONDUMEX (CONDUMEX PROTOCOLIZADO). CAL. 2/0,  INCLUYE: DESPERDICIOS, MATERIALES MENORES, HERRAMIENTA, CONEXIONES, MANO DE OBRA ESPECIALIZADA, LIMPIEZA DEL AREA DE TRABAJO, PRUEBAS Y ACARREO AL SITIO DE SU COLOCACION.","ML ","1.1000",0,"CERO PESOS 00/100 M.N.",0,330939]
[537102,"SUMINISTRO Y COLOCACION DE CABLE DE COBRE DESNUDO CAL. 2, AWG, MCA. CONDUMEX, CONELEC O CONDUCTORES MONTERREY. INCLUYE: DESPERDICIOS, MATERIALES MENORES, PRUEBAS Y ACARREO AL SITIO DE SU COLOCACION.","ML ","1.1000",0,"CERO PESOS 00/100 M.N.",0,330940]
[537108,"SUMINISTRO Y COLOCACION DE CABLE DE COBRE DESNUDO CAL. 10, AWG, MCA. CONDUMEX, CONELEC O CONDUCTORES MONTERREY. INCLUYE: DESPERDICIOS, MATERIALES MENORES, PRUEBAS Y ACARREO AL SITIO DE SU COLOCACION.","ML ","73.7000",0,"CERO PESOS 00/100 M.N.",0,330941]
[537112,"SUMINISTRO Y COLOCACION DE CABLE DE COBRE DESNUDO CAL. 8, AWG, MCA. CONDUMEX, CONELEC O CONDUCTORES MONTERREY. INCLUYE: DESPERDICIOS, MATERIALES MENORES, PRUEBAS Y ACARREO AL SITIO DE SU COLOCACION.","ML ","82.5000",0,"CERO PESOS 00/100 M.N.",0,330942]
[538018,"SUMINISTRO E INSTALACION DE CABLE DE ALUMINIO CON AISLAMIENTO XLP, CAL.6 AWG, MONOPOLAR, PARA DISTRIBUCION SUBTERRANEA, VULCANEL SERIE AA 8000, TIPO XHHW-2, LS CT-SR ROHS, 90 °C, 600 V,  MARCA CONDUCTORES MONTERREY O  CONDUMEX,  INCLUYE: FLETE, ELEVACION, CONEXIONES, MATERIALES MENORES Y DE CONSUMO, HERRAMIENTAS, EQUIPO DE SEGURIDAD, DESPERDICIOS, LIMPIEZA DEL AREA DE TRABAJO, PRUEBAS, Y MANO DE OBRA,  EN CUALQUIER NIVEL.","ML ","165.0000",0,"CERO PESOS 00/100 M.N.",0,330943]
[538020,"SUMINISTRO E INSTALACION DE CABLE DE ALUMINIO CON AISLAMIENTO XLP, CAL.4 AWG, MONOPOLAR, PARA DISTRIBUCION SUBTERRANEA, VULCANEL SERIE AA 8000, TIPO XHHW-2, LS CT-SR ROHS, 90 °C, 600 V,  MARCA CONDUCTORES MONTERREY O  CONDUMEX,  INCLUYE: FLETE, ELEVACION, CONEXIONES, MATERIALES MENORES Y DE CONSUMO, HERRAMIENTAS, EQUIPO DE SEGURIDAD, DESPERDICIOS, LIMPIEZA DEL AREA DE TRABAJO, PRUEBAS, Y MANO DE OBRA,  EN CUALQUIER NIVEL.","ML ","82.5000",0,"CERO PESOS 00/100 M.N.",0,330944]
[543022,"SUMINISTRO Y COLOCACION DE INTERRUPTOR TERMOMAGNETICO DERIVADO CON 2 POLOS, DE 15-60 AMPERES, MCA. SQUARE D, CAT. QO. INCLUYE: PRUEBAS, MATERIALES MENORES, HERRAMIENTAS, MANO DE OBRA ESPECIALIZADA  Y ACARREO DE MATERIALES AL SITIO DE SU COLOCACION.","PZA","3.0000",0,"CERO PESOS 00/100 M.N.",0,330948]
[552022,"SUMINISTRO E INSTALACION DE FOTOCELDA CON BASE DE 1000 WATTS. 220 VOLTS.  INC.: MATERIALES MENORES, PRUEBAS Y ACARREO DE MATERIALES AL SITIO DE SU COLOCACION.","PZA","4.0000",0,"CERO PESOS 00/100 M.N.",0,330950]
[552220,"SUMINISTRO E INSTALACION DE LUMINARIO PUNTA DE POSTE MCA. ATP ILUMINACION,  MODELO LIBRA, CARCASA FABRICADA CON POLIMEROS REFORZADOS S7 DE ULTIMA GENERACION, DIFUSOR DE TERMO-POLIMERO TRANSPARENTE TROPICALIZADO DE ALTO IMPACTO T5, RESISTENTE A LA CORROSION Y HUMEDAD, HERMETICIDAD  IP66, RESISTENTE A GOLPES POR VANDALISMO NORMA IK10,  LAMPARA DE 55 WATTS, FORMADA POR UN MÓDULO DE 24 LED CERAMICOS DE ALTA POTENCIA, OPTICA S1, TEMPERATURA DE COLOR DE 4000 °K, DRIVER ELECTRONICO INTEGRADO, VOLTAJE DE OPERACION 220-240 V /60HZ, INCLUYE: LAMPARA, MATERIALES MENORES Y DE CONSUMO, ELEMENTOS DE FIJACION, COPLE DE ADAPTACION A POSTE, HERRAMIENTA, ANDAMIOS, CONEXIONES, CONECTORES, GARANTÍA POR ESCRITO DE 10 AÑOS, MANO DE OBRA ESPECIALIZADA, LIMPIEZA DEL AREA DE TRABAJO, PRUEBAS, DESPERDICIOS Y ACARREO DEL MATERIAL AL SITIO DE SU COLOCACION, A CUALQUIER ALTURA.","PZA","4.0000",0,"CERO PESOS 00/100 M.N.",0,330951]
[555022,"SUMINISTRO Y COLOCACION DE POSTE DE FIERRO CONICO CIRCULAR DE 6.00 MTS. DE ALTURA CON PINTURA ANTICORROSIVA Y PINTURA DE ESMALTE DE ACABADO EN COLOR VERDE JARDIN, INCLUYE; BASE DE CONCRETO F'C=200 KG/CM2 TRAPEZOIDAL DE 60 X 60 CMS. DE BASE INFERIOR, 40 X 40 CMS, BASE SUPERIOR, Y 80 CMS. DE ALTURA, ANCLAS, Y REGISTRO ELECTRICO DE CONCRETO PREFABRICADA DE 33 X 33 X 40 CM. INTERCONECTADO A BASE Y POSTE CON TUBO DE P.V.C. PESADO DE 25 MM. DE DIAMETRO,  CABLE VINANEL THW-LS 600 V. A 75° C, 90° C, MARCA CONDUCTORES MONTERREY, (VIAKON-PROTOCOLIZADO), CABLE VINANEL 21 THW-LS 600 V. A 75° C, 90° C, MARCA CONDUMEX (CONDUMEX PROTOCOLIZADO).  CAL. 10, MATERIALES MENORES, PRUEBAS Y ACARREO DEL MATERIAL AL SITIO DE SU COLOCACION.","PZA","4.0000",0,"CERO PESOS 00/100 M.N.",0,330952]
[558111,"SUMINISTRO E INSTALACION DE BASE SOCKET TIPO BIFASICA DE 5 X 100 AMP.,  INCLUYE: UNA MUFA CONDULET DE 32 MM., UN TRAMO DE TUBO CONDUIT PARED GRUESA ETIQUETA VERDE DE 32 MM DE DIAMETRO, 12 METROS DE CABLE DE COBRE TIPO THW-LS CAL. 6 AWG  600V, 75°, MCA CONDUMEX O CONDUCTORES MONTERREY,  MATERIALES MENORES, CONEXION, DESPERDICIOS, PRUEBAS, HERRAMIENTAS, LIMPIEZA, MANO DE OBRA ESPECIALIZADA Y ACARREO DE MATERIALES AL SITIO DE SU UTILIZACION.","PZA","1.0000",0,"CERO PESOS 00/100 M.N.",0,330953]
[558521,"SUMINISTRO Y COLOCACION DE VARILLA DE TIERRA COOPERWELD, DE 3.00 M X 16 MM DE DIAM.  INCLUYE:  1 CARGA CADWELD No. 90. 3 MTS DE CABLE DE COBRE DESNUDO SEMIDURO CAL. 2 AWG. PARTE PROPORCIONAL DE MOLDE 161V.   MATERIALES MENORES, HERRAMIENTAS, MANO DE OBRA,  PRUEBAS Y ACARREO AL SITIO DE SU COLOCACION.","PZA","1.0000",0,"CERO PESOS 00/100 M.N.",0,330954]
[880612,"SUMINISTRO Y COLOCACION DE REGISTRO ELECTRICO DE CONCRETO, PREFABRICADO, PARA BAJA TENSION TIPO 2 NORMA C.F.E.- RBTB-2 DE 66 X 100 X 65 CM., CON TAPA DE CONCRETO,  MARCO Y CONTRAMARCO  DE ACERO GALVANIZADO, INCLUYE: TRAZO, EXCAVACION, RELLENOS COMPACTADOS, FILTRO DE GRAVA, RESANADO FINO DE TUBERIAS EN SU INTERIOR, HERRAMIENTAS, MANO DE OBRA, FLETES, ACARREO AL SITIO DE SU COLOCACION Y LIMPIEZA DEL AREA DE TRABAJO.","PZA","2.0000",0,"CERO PESOS 00/100 M.N.",0,330955]
[880618,"SUMINISTRO Y COLOCACION DE REGISTRO ELECTRICO PARA ALUMBRADO, PREFABRICADO  DE 0.40 X 0.40 X 0.60 MTS. CON TAPA DE CONCRETO,  MARCO Y CONTRAMARCO DE FIERRO GALVANIZADO, INCLUYE: TRAZO, EXCAVACION, TAPA DE CONCRETO CON MARCO Y CONTRAMARCO DE ANGULO, RELLENO, FILTRO DE GRAVA, HERRAMIENTAS, MANO DE OBRA, FLETES, ACARREO AL SITIO DE SU COLOCACION Y LIMPIEZA DEL AREA DE TRABAJO.","PZA","5.0000",0,"CERO PESOS 00/100 M.N.",0,330956]
[880621,"SUMINISTRO Y COLOCACION DE REGISTRO ELECTRICO DE CONCRETO, PREFABRICADO, PARA BAJA TENSION TIPO 1 NORMA C.F.E.- RBTB-1 DE 50 X 80 X 65 CM., CON TAPA DE CONCRETO,  MARCO Y CONTRAMARCO  DE ACERO GALVANIZADO, INCLUYE: TRAZO, EXCAVACION, RELLENOS COMPACTADOS, FILTRO DE GRAVA, RESANADO FINO DE TUBERIAS EN SU INTERIOR, HERRAMIENTAS, MANO DE OBRA, FLETES, ACARREO AL SITIO DE SU COLOCACION Y LIMPIEZA DEL AREA DE TRABAJO.","PZA","7.0000",0,"CERO PESOS 00/100 M.N.",0,330957]
["03","RED SANITARIA",null,null,null,null,{"$f":"TEXT((G341), \"$ #,##0.00 ;\")","v":"$ 0.00 "}]
["03.01(565)","INSTALACION HIDRAULICA, SANITARIA Y GAS EN O. EXT.",null,null,null,null,{"$f":"TEXT(SUM(G342:G343), \"$ #,##0.00 ;\")","v":"$ 0.00 "}]
[585014,"SUMINISTRO Y COLOCACION DE TUBO DE P.V.C. SANITARIO (ANGER)  SERIE 25, CAMPANA, DE 6\" (150 MM) DIAM., INCLUYE: CONEXIONES, TRAZO, EXCAVACION,  PASOS POR CIMENTACION, CAMA DE ARENA, RELLENO COMPACTADO, DESPERDICIOS, PRUEBAS Y ACARREO DE MATERIALES AL SITIO DE SU COLOCACION.","ML ","50.0000",0,"CERO PESOS 00/100 M.N.",0,330960]
[596032,"REGISTRO SANITARIO DE 0.60 X 0.40 X 0.80 M, CON MURO DE LADRILLO DE LAMA DE 5.5 X 11.0 X 22.0 CM, ASENTADO CON MORTERO CEMENTO-ARENA 1:3, APLANADO CON MORTERO CEMENTO-ARENA DE RIO 1:3, INCLUYE: TRAZO, EXCAVACIONES, NIVELACION, RELLENO CON MATERIAL PRODUCTO DE EXCAVACION, RETIRO DE MATERIAL EXCEDENTE FUERA DE LA OBRA, TAPA DE CONCRETO F'C=200 KG/CM2, MARCO Y CONTRAMARCO DE ANGULO DE 1 1/2\" X 1/8\", MATERIALES, DESPERDICIOS, HERRAMIENTAS, MANO DE OBRA, LIMPIEZA, RETIRO DE MATERIAL PRODUCTO DE EXCAVACION FUERA DE LA OBRA Y ACARREO DE MATERIALES AL SITIO DE SU UTILIZACION.","PZA","4.0000",0,"CERO PESOS 00/100 M.N.",0,330970]
["04","RED HIDRAULICA",null,null,null,null,{"$f":"TEXT((G345), \"$ #,##0.00 ;\")","v":"$ 0.00 "}]
["04.01(565)","INSTALACION HIDRAULICA, SANITARIA Y GAS EN O. EXT.",null,null,null,null,{"$f":"TEXT(SUM(G346:G350), \"$ #,##0.00 ;\")","v":"$ 0.00 "}]
[589313,"SUMINISTRO Y TENDIDO DE TUBERÍA DE CPVC-CTS, PARA CEMENTAR  DE 19 MM DE DIAM. INCLUYE: TRAZO, CONEXIONES (COPLES, CODOS, TEES, NIPLES, ETC), DESPERDICIOS, ENCOFRADO CON CONCRETO F'C=100 KG/CM2 DE 6 X 15 CMS DE SECCION, MATERIALES MENORES Y DE CONSUMO, PRUEBAS, EXCAVACIÓN, RELLENO, HERRAMIENTAS, MANO DE OBRA Y ACARREO DE MATERIALES AL SITIO DE SU COLOCACIÓN.","ML ","22.8500",0,"CERO PESOS 00/100 M.N.",0,330961]
[589317,"SUMINISTRO Y TENDIDO DE TUBERIA DE CPVC-CTS, PARA CEMENTAR  DE 50 MM DE DIAM. INCLUYE: TRAZO, CONEXIONES (COPLES, CODOS, TEES, NIPLES, ETC), DESPERDICIOS, ENCOFRADO CON CONCRETO F'C=100 KG/CM2 DE 6 X 15 CMS DE SECCION, MATERIALES MENORES Y DE CONSUMO, PRUEBAS, EXCAVACION, RELLENO, HERRAMIENTAS, MANO DE OBRA Y ACARREO DE MATERIALES AL SITIO DE SU COLOCACION.","ML ","10.0000",0,"CERO PESOS 00/100 M.N.",0,330962]
[591410,"SUMINISTRO Y COLOCACION DE VALVULA DE ESFERA (BOLA) EXTREMOS ROSCADOS 3/4\" (19 MM) DE DIAMETRO. MCA URREA, FIG. 550,  INCLUYE: MATERIALES MENORES Y DE CONSUMO, HERRAMIENTAS, PRUEBAS, LIMPIEZA, MANO DE OBRA Y ACARREOS DE MATERIALES AL SITIO DE SU COLOCACION.","PZA","2.0000",0,"CERO PESOS 00/100 M.N.",0,330965]
[591414,"SUMINISTRO Y COLOCACION DE VALVULA DE ESFERA (BOLA) EXTREMOS ROSCADOS 2\" (51 MM) DE DIAMETRO. MCA URREA, FIG. 550,  INCLUYE: MATERIALES MENORES Y DE CONSUMO, HERRAMIENTAS, PRUEBAS, LIMPIEZA, MANO DE OBRA Y ACARREOS DE MATERIALES AL SITIO DE SU COLOCACION.","PZA","1.0000",0,"CERO PESOS 00/100 M.N.",0,330966]
[596002,"REGISTRO HIDRAULICO DE 0.40 X 0.40 X 0.60 M, CON MURO DE LADRILLO DE LAMA 5.5 X 11.0 X 22.0 CM, ASENTADO CON MORTERO CEMENTO-ARENA 1:3, A SOGA, APLANADO CON MORTERO CEMENTO-ARENA DE RIO 1:3,  Y PISO DE CONCRETO ACABADO PULIDO. INCLUYE: TRAZO, EXCAVACIONES, NIVELACION, RELLENO CON MATERIAL PRODUCTO DE EXCAVACION, RETIRO DE MATERIAL EXCEDENTE FUERA DE LA OBRA, TAPA DE CONCRETO F'C=200 KG/CM2, MARCO Y CONTRAMARCO DE ANGULO DE 1 1/2\" X 1/8\", MATERIALES, DESPERDICIOS, HERRAMIENTAS, MANO DE OBRA, LIMPIEZA, RETIRO DE MATERIAL PRODUCTO DE EXCAVACION FUERA DE LA OBRA Y ACARREO DE MATERIALES AL SITIO DE SU UTILIZACION.","PZA","2.0000",0,"CERO PESOS 00/100 M.N.",0,330969]
["05","CISTERNA",null,null,null,null,{"$f":"TEXT((G352), \"$ #,##0.00 ;\")","v":"$ 0.00 "}]
["05.01(565)","INSTALACION HIDRAULICA, SANITARIA Y GAS EN O. EXT.",null,null,null,null,{"$f":"TEXT(SUM(G353:G354), \"$ #,##0.00 ;\")","v":"$ 0.00 "}]
[591312,"SUMINISTRO Y COLOCACION DE VALVULA DE FLOTADOR ALTA PRESION DE 19 MM  DE DIAM., CON BOLA DE COBRE DE 6\" DE DIAM. INC.: MATERIALES MENORES, PRUEBAS Y ACARREO DE MATERIALES AL SITIO DE SU COLOCACION.","PZA","1.0000",0,"CERO PESOS 00/100 M.N.",0,330964]
[597109,"SUMINISTRO Y COLOCACION  DE CISTERNA PREFABRICADA DE 10 M3 DE CAPACIDAD, FORMADA A BASE DE SUMINISTRO E INSTALACION DE 2 (DOS) CISTERNAS PREFABRICADA DE CONCRETO F`C=250 KG/CM2, ARMADA CON ACERO DE REFUERZO F`Y= 5000 KG/CM2, PARA UNA CAPACIDAD DE 5,000 LTS. APROXIMADAMENTE, INCLUYE: FLETE, GRUA, TRAZO, LIMPIEZA, EXCAVACIONES EN MATERIAL TIPO \"A\" Y/O \"B\",  NIVELACION, AFINE, CONFORMACION DEL TERRENO RESULTANTE, INTERCONEXION DE LAS 2 CISTERNAS CON TUBERIA Y CONEXIONES DE PVC CED. 40 DE 6\" DE DIAMETRO, FIRME DE CONCRETO F´C= 150 KG/CM2, ARMADO CON MALLA ELECTROSOLDADE 6 X 6-10/10 DE 10 CMS. DE ESPESOR,  BROCALES, TAPAS METALICA DE FO.FO. PARA REGISTRO, AGUA PARA LLENADO DE CISTERNA DURANTE EL RELLENO, RELLENOS A VOLTEO Y RELLENOS COMPACTADOS AL 90% DE SU PVSM., DESPERDICIOS, PRUEBAS, EQUIPO, GARANTIA POR ESCRITO DE POR LO MENOS DE 5 AÑO,  HERRAMIENTA, MANO DE OBRA Y RETIRO DE MATERIAL SOBRANTE PRODUCTO DE EXCAVACION FUERA DE LA OBRA. ","PZA","1.0000",0,"CERO PESOS 00/100 M.N.",0,330971]
[null,"RESUMEN DE PARTIDAS"]
["BAS-CONA-06094","CONSTRUCCIÓN DE DOS AULAS DIDÁCTICAS, NÚCLEO DE SERVICIOS SANITARIOS, DIRECCIÓN, BODEGA, PATIO CÍVICO, ESTRUCTURA CON LONARIA PARA CUBIERTA DE PATIO CÍVICO, MURO DE CONTENCIÓN, OBRAS DE ACCESIBILIDAD, CASETA PARA HIDRONEUMÁTICO E INSTALACIONES EN OBRA EXTERIOR EN LA ESCUELA PRIMARIA BENITO JUÁREZ CCT 14EPR0086V, UBICADA EN LA CABECERA MUNICIPAL DE ATENGUILLO, JALISCO.",null,null,null,null,{"$f":"G17","v":"$ 0.00 "}]
["A","EDIFICIO A",null,null,null,null,{"$f":"G18","v":"$ 0.00 "}]
["A.01(140)","DEMOLICIONES, DESMONTAJES Y MECANICA DE SUELOS    ",null,null,null,null,{"$f":"G19","v":"$ 0.00 "}]
["F","EDIFICIO F",null,null,null,null,{"$f":"G23","v":"$ 0.00 "}]
["F.01(150)","TRABAJOS PRELIMINARES                             ",null,null,null,null,{"$f":"G24","v":"$ 0.00 "}]
["F.02(160)","CIMENTACION                                       ",null,null,null,null,{"$f":"G31","v":"$ 0.00 "}]
["F.03(200)","ESTRUCTURA                                        ",null,null,null,null,{"$f":"G48","v":"$ 0.00 "}]
["F.04(310)","MUROS, CADENAS, CASTILLOS Y REPIZONES.            ",null,null,null,null,{"$f":"G57","v":"$ 0.00 "}]
["F.05(319)","ENTREPISOS, CUBIERTA Y ACABADOS DE AZOTEA         ",null,null,null,null,{"$f":"G71","v":"$ 0.00 "}]
["F.06(355)","RECUBRIMIENTOS Y ACABADOS                         ",null,null,null,null,{"$f":"G73","v":"$ 0.00 "}]
["F.07(372)","PISOS                                             ",null,null,null,null,{"$f":"G78","v":"$ 0.00 "}]
["F.08(382)","ELEMENTOS COMPLEMENTARIOS DE ALBAÑILERIA          ",null,null,null,null,{"$f":"G89","v":"$ 0.00 "}]
["F.09(390)","CARPINTERIA                                       ",null,null,null,null,{"$f":"G92","v":"$ 0.00 "}]
["F.10(393)","PINTURA                                           ",null,null,null,null,{"$f":"G95","v":"$ 0.00 "}]
["F.11(396)","LIMPIEZA                                          ",null,null,null,null,{"$f":"G101","v":"$ 0.00 "}]
["F.12(410)","CANCELERIA, HERRERIA, ALUMINIO, VIDRIOS Y CHAPAS  ",null,null,null,null,{"$f":"G107","v":"$ 0.00 "}]
["F.13(510)","INSTALACION ELECTRICA EN EDIFICIO                 ",null,null,null,null,{"$f":"G116","v":"$ 0.00 "}]
["F.14(530)","EQUIPOS E INSTALACIONES DE REDES DE VOZ Y DATOS.  ",null,null,null,null,{"$f":"G129","v":"$ 0.00 "}]
["F.15(564)","INSTALACION HIDRAULICA, SANITARIA Y GAS EN EDIF.  ",null,null,null,null,{"$f":"G133","v":"$ 0.00 "}]
["F.16(590)","MUEBLES DE BAÑO Y COCINA                          ",null,null,null,null,{"$f":"G137","v":"$ 0.00 "}]
["01","PLAZA Y ANDADORES",null,null,null,null,{"$f":"G150","v":"$ 0.00 "}]
["01.01(140)","DEMOLICIONES, DESMONTAJES Y MECANICA DE SUELOS    ",null,null,null,null,{"$f":"G151","v":"$ 0.00 "}]
["01.02(150)","TRABAJOS PRELIMINARES                             ",null,null,null,null,{"$f":"G158","v":"$ 0.00 "}]
["01.03(160)","CIMENTACION                                       ",null,null,null,null,{"$f":"G165","v":"$ 0.00 "}]
["01.04(372)","PISOS                                             ",null,null,null,null,{"$f":"G172","v":"$ 0.00 "}]
["01.05(396)","LIMPIEZA                                          ",null,null,null,null,{"$f":"G178","v":"$ 0.00 "}]
[82,"CUBIERTA PARA PATIO CIVICO",null,null,null,null,{"$f":"G180","v":"$ 0.00 "}]
["82.01(140)","DEMOLICIONES, DESMONTAJES Y MECANICA DE SUELOS    ",null,null,null,null,{"$f":"G181","v":"$ 0.00 "}]
["82.02(150)","TRABAJOS PRELIMINARES                             ",null,null,null,null,{"$f":"G183","v":"$ 0.00 "}]
["82.03(160)","CIMENTACION                                       ",null,null,null,null,{"$f":"G187","v":"$ 0.00 "}]
["82.04(200)","ESTRUCTURA                                        ",null,null,null,null,{"$f":"G198","v":"$ 0.00 "}]
["82.05(319)","ENTREPISOS, CUBIERTA Y ACABADOS DE AZOTEA         ",null,null,null,null,{"$f":"G203","v":"$ 0.00 "}]
["82.06(372)","PISOS                                             ",null,null,null,null,{"$f":"G205","v":"$ 0.00 "}]
["82.07(393)","PINTURA                                           ",null,null,null,null,{"$f":"G207","v":"$ 0.00 "}]
["82.08(396)","LIMPIEZA                                          ",null,null,null,null,{"$f":"G211","v":"$ 0.00 "}]
[15,"CUARTO DE MAQUINAS",null,null,null,null,{"$f":"G213","v":"$ 0.00 "}]
["15.01(150)","TRABAJOS PRELIMINARES                             ",null,null,null,null,{"$f":"G214","v":"$ 0.00 "}]
["15.02(160)","CIMENTACION                                       ",null,null,null,null,{"$f":"G221","v":"$ 0.00 "}]
["15.03(200)","ESTRUCTURA                                        ",null,null,null,null,{"$f":"G231","v":"$ 0.00 "}]
["15.04(310)","MUROS, CADENAS, CASTILLOS Y REPIZONES.            ",null,null,null,null,{"$f":"G235","v":"$ 0.00 "}]
["15.05(319)","ENTREPISOS, CUBIERTA Y ACABADOS DE AZOTEA         ",null,null,null,null,{"$f":"G240","v":"$ 0.00 "}]
["15.06(355)","RECUBRIMIENTOS Y ACABADOS                         ",null,null,null,null,{"$f":"G246","v":"$ 0.00 "}]
["15.07(372)","PISOS                                             ",null,null,null,null,{"$f":"G250","v":"$ 0.00 "}]
["15.08(382)","ELEMENTOS COMPLEMENTARIOS DE ALBAÑILERIA          ",null,null,null,null,{"$f":"G253","v":"$ 0.00 "}]
["15.09(393)","PINTURA                                           ",null,null,null,null,{"$f":"G255","v":"$ 0.00 "}]
["15.10(396)","LIMPIEZA                                          ",null,null,null,null,{"$f":"G260","v":"$ 0.00 "}]
["15.11(410)","CANCELERIA, HERRERIA, ALUMINIO, VIDRIOS Y CHAPAS  ",null,null,null,null,{"$f":"G262","v":"$ 0.00 "}]
["15.12(511)","INSTALACION ELECTRICA EN OBRA EXTERIOR            ",null,null,null,null,{"$f":"G266","v":"$ 0.00 "}]
["15.13(565)","INSTALACION HIDRAULICA, SANITARIA Y GAS EN O. EXT.",null,null,null,null,{"$f":"G275","v":"$ 0.00 "}]
[33,"MURO PARA CONTENCION Y ACOTAMIENTO PERIMETRAL.",null,null,null,null,{"$f":"G282","v":"$ 0.00 "}]
["33.01(150)","TRABAJOS PRELIMINARES                             ",null,null,null,null,{"$f":"G283","v":"$ 0.00 "}]
["33.02(160)","CIMENTACION                                       ",null,null,null,null,{"$f":"G288","v":"$ 0.00 "}]
[69,"RAMPAS",null,null,null,null,{"$f":"G295","v":"$ 0.00 "}]
["69.01(150)","TRABAJOS PRELIMINARES                             ",null,null,null,null,{"$f":"G296","v":"$ 0.00 "}]
["69.02(160)","CIMENTACION                                       ",null,null,null,null,{"$f":"G302","v":"$ 0.00 "}]
["69.03(310)","MUROS, CADENAS, CASTILLOS Y REPIZONES.            ",null,null,null,null,{"$f":"G308","v":"$ 0.00 "}]
["69.04(372)","PISOS                                             ",null,null,null,null,{"$f":"G310","v":"$ 0.00 "}]
["69.05(393)","PINTURA                                           ",null,null,null,null,{"$f":"G312","v":"$ 0.00 "}]
["69.06(396)","LIMPIEZA                                          ",null,null,null,null,{"$f":"G314","v":"$ 0.00 "}]
["69.07(410)","CANCELERIA, HERRERIA, ALUMINIO, VIDRIOS Y CHAPAS  ",null,null,null,null,{"$f":"G316","v":"$ 0.00 "}]
["02","RED ELECTRICA",null,null,null,null,{"$f":"G318","v":"$ 0.00 "}]
["02.01(511)","INSTALACION ELECTRICA EN OBRA EXTERIOR            ",null,null,null,null,{"$f":"G319","v":"$ 0.00 "}]
["03","RED SANITARIA",null,null,null,null,{"$f":"G340","v":"$ 0.00 "}]
["03.01(565)","INSTALACION HIDRAULICA, SANITARIA Y GAS EN O. EXT.",null,null,null,null,{"$f":"G341","v":"$ 0.00 "}]
["04","RED HIDRAULICA",null,null,null,null,{"$f":"G344","v":"$ 0.00 "}]
["04.01(565)","INSTALACION HIDRAULICA, SANITARIA Y GAS EN O. EXT.",null,null,null,null,{"$f":"G345","v":"$ 0.00 "}]
["05","CISTERNA",null,null,null,null,{"$f":"G351","v":"$ 0.00 "}]
["05.01(565)","INSTALACION HIDRAULICA, SANITARIA Y GAS EN O. EXT.",null,null,null,null,{"$f":"G352","v":"$ 0.00 "}]
[]
["IMPORTE CON LETRA (IVA INCLUIDO)",null,null,null,null,"SUBTOTAL M.N.",{"$f":"TEXT(G17,  \"$ #,##0.00 ;\")","v":"$ 0.00 "}]
[{"$f":"UPPER(CONVERTIRNUM(ROUND( G17 * 1.16, 2)))","v":"CERO PESOS 00/100 M.N."},null,null,null,null,"IVA M.N.",{"$f":"TEXT(ROUND( G17 * 0.16, 2),  \"$ #,##0.00 ;\")","v":"$ 0.00 "}]
[null,null,null,null,null,"TOTAL M.N.",{"$f":"TEXT(ROUND( G17 * 1.16, 2),  \"$ #,##0.00 ;\")","v":"$ 0.00 "}]